Workbook

Sheet Accueil
C1: Sœurs de …
B2: =Deb_fin_exercice!C2& " - Comptabilité " &Deb_fin_exercice!H1 -> Ma Fraternité - Comptabilité 2015
B3: =IF(Controle!U2=0," ","Cliquez ici pour contrôler les écarts") -> Cliquez ici pour contrôler les écarts
B10: Version 33.0.1

Sheet Demarrer_Cloturer
B1: Sœurs de …
B2: =Deb_fin_exercice!C2 & "Comptabilité " &Deb_fin_exercice!H1 -> Ma FraternitéComptabilité 2015

Sheet Deb_fin_exercice
B1: Sœurs de … | G1: Année de l'exercice | H1: 2015
B2: Nom de la Fraternité : | C2: Ma Fraternité
B4: Soldes Fraternité au 1 janvier | C4: espèces | D4: 20 | E4: =D4+D5 -> 11842.55 | S4: Compte les sœurs
C5: banque | D5: 11822.55 | O5: ="Nbre de sœurs : " & S36 -> Nbre de sœurs : 10
B7: ="Sœurs présentes en " &G4 -> Sœurs présentes en | C7: Année de naissance | D7: Avoirs de début | F7: Total avoirs début exercice | G7: Sœurs arrivées sur l'exercice | H7: ="Sœurs parties au 1 janvier "&H1+1 -> Sœurs parties au 1 janvier 2016 | I7: Espèces fin exercice | J7: Banque fin exercice | K7: Avoirs fin exercice | M7: Récapitulatif des avoirs au début de l'exercice
D8: Espèces | E8: Banque | M8: Correspond aux avoirs à la fin de l'exercice précédent | U8: Sœurs parties au 1 janvier 2016
B9: Nom_Sœurs | C9: Naiss | D9: Especes | E9: Banque | F9: Total | G9: Srs_arrivées | H9: Srs_parties | I9: Esp1 | J9: Bq1 | K9: Total1
B10: Sœur numero 1 | D10: 2.24 | E10: 2164.18 | F10: =D10+E10 -> 2166.42 | I10: ='S1'!$O$53 -> 39.2 | J10: ='S1'!$O$54 -> 1428.13 | K10: ='S1'!O55 -> 1467.33 | M10: Total des avoirs Fraternité + Sœurs > | P10: =P16+P20 -> 26006.56 | S10: =IF(G10="oui","-",IF(B10>0,1,"-")) -> 1
B11: Sœur numero 2 | D11: 5.7 | E11: 767.74 | F11: =D11+E11 -> 773.44 | G11: oui | I11: ='S2'!O53 -> 18.2 | J11: ='S2'!O54 -> 625.32 | K11: ='S2'!O55 -> 643.52 | S11: -
B12: Sœur numero 3 | D12: 15.1 | E12: 1535.76 | F12: 1550.86 | I12: ='S3'!O53 -> 21.16 | J12: ='S3'!O54 -> 1134.53 | K12: ='S3'!O55 -> 1155.69 | S12: 1
B13: Sœur numero 4 | D13: 5.96 | E13: 1190.22 | F13: 1196.18 | H13: oui | I13: ='S4'!O53 -> 0 | J13: ='S4'!O54 -> 866.24 | K13: ='S4'!O55 -> 866.24 | M13: Avoirs répartis ainsi: | S13: 1
B14: Sœur numero 5 | D14: 12.22 | E14: 571.79 | F14: 584.01 | H14: oui | I14: ='S5'!O53 -> 33.09 | J14: ='S5'!O54 -> 361.01 | K14: ='S5'!O55 -> 394.1 | M14: Caisse Fraternité | P14: =D4 -> 20 | S14: 1
B15: Sœur numero 6 | D15: 13.74 | E15: 798.29 | F15: 812.03 | I15: ='S6'!O53 -> 12.49 | J15: ='S6'!O54 -> 348.55 | K15: ='S6'!O55 -> 361.04 | M15: Compte bancaire Fraternité | P15: =Resultat!G59 -> 11822.55 | S15: 1
B16: Sœur numero 7 | D16: 33.77 | E16: 1243.75 | F16: 1277.52 | I16: ='S7'!O53 -> 19.3 | J16: ='S7'!O54 -> 580.17 | K16: ='S7'!O55 -> 599.47 | M16: S / total Fraternité > | P16: =P14+P15 -> 11842.55 | S16: 1
B17: Sœur numero 8 | D17: 23.47 | E17: 2255.69 | F17: 2279.16 | H17: oui | I17: ='S8'!O53 -> 13.4 | J17: ='S8'!O54 -> 2214.35 | K17: ='S8'!O55 -> 2227.75 | S17: 1
B18: Sœur numero 9 | D18: 17.34 | E18: 1332.92 | F18: 1350.26 | H18: oui | I18: ='S9'!O53 -> 24.95 | J18: ='S9'!O54 -> 1881.82 | K18: ='S9'!O55 -> 1906.77 | M18: Caisse Sœurs | P18: =D36 -> 160.27 | S18: 1
B19: Sœur numero 10 | D19: 8.13 | E19: 1008.92 | F19: 1017.05 | I19: ='S10'!O53 -> 3.3 | J19: ='S10'!O54 -> 863.27 | K19: ='S10'!O55 -> 866.57 | M19: Compte bancaire sœurs | P19: =E36 -> 14003.74 | S19: 1
B20: Sœur numero 11 | D20: 28.3 | E20: 1902.22 | F20: 1930.52 | I20: ='S11'!O53 -> 3.95 | J20: ='S11'!O54 -> 3235.86 | K20: ='S11'!O55 -> 3239.81 | M20: S/ total Sœurs > | P20: =P18+P19 -> 14164.01 | S20: 1
D21: 0 | E21: 0 | F21: =D21+E21 -> 0 | I21: ='S12'!O53 -> 0 | J21: ='S12'!O54 -> 0 | K21: ='S12'!O55 -> 0 | S21: -
D22: 0 | E22: 0 | F22: =D22+E22 -> 0 | I22: ='S13'!O53 -> 0 | J22: ='S13'!O54 -> 0 | K22: ='S13'!O55 -> 0 | S22: -
D23: 0 | E23: 0 | F23: =D23+E23 -> 0 | I23: ='S14'!O53 -> 0 | J23: ='S14'!O54 -> 0 | K23: ='S14'!O55 -> 0 | S23: -
D24: 0 | E24: 0 | F24: 0 | I24: ='S15'!O53 -> 0 | J24: ='S15'!O54 -> 0 | K24: ='S15'!O55 -> 0 | S24: -
D25: 0 | E25: 0 | F25: 0 | I25: ='S16'!O53 -> 0 | J25: ='S16'!O54 -> 0 | K25: ='S16'!O55 -> 0 | S25: -
D26: 0 | E26: 0 | F26: 0 | I26: ='S17'!O53 -> 0 | J26: ='S17'!O54 -> 0 | K26: ='S17'!O55 -> 0 | S26: -
D27: 0 | E27: 0 | F27: 0 | I27: ='S18'!O53 -> 0 | J27: ='S18'!O54 -> 0 | K27: ='S18'!O55 -> 0 | S27: -
D28: 0 | E28: 0 | F28: 0 | I28: ='S19'!O53 -> 0 | J28: ='S19'!O54 -> 0 | S28: -
D29: 0 | E29: 0 | F29: 0 | I29: ='S20'!O53 -> 0 | J29: ='S20'!O54 -> 0 | K29: ='S20'!O55 -> 0 | S29: -
D30: 0 | E30: 0 | F30: 0 | I30: ='S21'!O53 -> 0 | J30: ='S21'!O54 -> 0 | K30: ='S21'!O55 -> 0 | S30: -
D31: 0 | E31: 0 | F31: 0 | I31: ='S22'!O53 -> 0 | J31: ='S22'!O54 -> 0 | K31: ='S22'!O55 -> 0 | S31: -
D32: 0 | E32: 0 | F32: 0 | I32: ='S23'!O53 -> 0 | J32: ='S23'!O54 -> 0 | K32: ='S23'!O55 -> 0 | S32: -
D33: 0 | E33: 0 | F33: 0 | I33: ='S24'!O53 -> 0 | J33: ='S24'!O54 -> 0 | K33: ='S24'!O55 -> 0 | S33: -
D34: 0 | E34: 0 | F34: 0 | I34: ='S25'!O53 -> 0 | J34: ='S25'!O54 -> 0 | K34: ='S25'!O55 -> 0 | S34: -
G35: oui | H35: oui
B36: Total avoirs au début d’exercice > | D36: =SUMIF(G10:G34,"",D10:D34) -> 160.27 | E36: =SUMIF(G10:G34,"",E10:E34) -> 14003.74 | F36: =SUMIF(G10:G34,"",F10:F34) -> 14164.01 | G36: << doit être égal au solde au 31/12 précédent | S36: =SUM(S10:S34) -> 10
B37: Total des avoirs y compris sœurs arrivées sur l'exercice > | D37: =D36+D4 -> 180.27 | E37: =E36+D5 -> 25826.29 | F37: =D37+E37 -> 26006.56

Sheet Budget
B1: Sœurs de …
B3: =" Exercice " & Deb_fin_exercice!H1 -> Exercice 2015
D4: BUDGET PREVISIONNEL
B5: DEPENSES
C6: Alimentation - Hébergement | D6: 48000
C7: Matières consommables | D7: 6000
C8: Combustibles | D8: 24000
C9: Eau - Electricité - Gaz | D9: 14000
C10: Pharmacie - Soins | D10: 15500
C11: Acquisition mobilier et matériel | D11: 200
C12: Fournitures administratives | D12: 1400
C13: Vestiaire personnel des Sœurs | D13: 2800
C14: Loyer | D14: 0
C15: Entretien mobilier, matériel | D15: 1300
C16: Entretien matériel de transport | D16: 2300
C17: Form. permanente-Ressourc. Spirituel | D17: 5000
C18: Culture et loisirs | D18: 2700
C19: Prestations diverses | D19: 500
C20: Cotis. Pourb., Cadeaux, Frais culte | D20: 1200
C21: Déplacements | D21: 5000
C22: Frais postaux & télécommunication | D22: 4000
C23: Impôts & Taxes (Tv /Habitation / PV) | D23: 400
C24: Charges de personnel
C25: Cotisation Mutuelle
C26: Partage - Solidarité
C27: TOTAL DES DEPENSES BRUTES (A) | D27: =SUM(D6:D26) -> 134300
B28: RECETTES ACCESSOIRES : à déduire
C29: Remboursements CPAM - CAVIMAC maladie -M.S.M. | D29: 6000
C30: Recettes d'accueil
C31: Dons faits à la fraternité
C32: TOTAL DES RECETTES ACCESSOIRES (B) | D32: =SUM(D29:D31) -> 6000
A33: TOTAL DES DEPENSES NETTES (A - B) | D33: =D27-D32 -> 128300
B34: RESSOURCES DES PERSONNES
C35: Salaires nets à la fin de l'exercice
C36: Indemnités à la fin de l'exercice
C37: Rentes CAVIMAC à la fin de l'exercice | D37: 39350
C38: Rentes CARSAT - MSA à la fin de l'exercice | D38: 50260
C39: Autres rentes à la fin de l'exercice | D39: 47660
C40: Allocation logement à la fin de l'exercice
C41: A.P.L. à la fin de l'exercice
C42: Aide sociale
C43: A déduire : IRPP payé pendant l'exercice | D43: 1460
A44: RESSOURCES NETTES de l'année ( C ) | D44: =SUM(D35:D42)-D43 -> 135810
C46: Total des ressources nettes de la Fraternité ……………..………... (C ) | D46: =D44 -> 135810
C47: Total des dépenses nettes de la Fraternité …………………….. (A+B) | D47: =D33 -> 128300
C48: RÉSULTAT "BUDGET" | D48: =D46-D47 -> 7510
C50: Versement au budget régional | D50: 7000
C52: Subvention demandée au budget régional
C54: Solde de départ de l'exercice | D54: =Deb_fin_exercice!P10 -> 26006.56
C56: SOLDE PRÉVISIONNEL | D56: =D48-D50+D52+D54 -> 26516.56
A57: =#REF!&" "&" - "&#REF!&" "&#REF!&" " &#REF! ->  | B57: =Deb_fin_exercice!C2&" "&" - "&Deb_fin_exercice!D3&" "&Deb_fin_exercice!P5&" " & Accueil!A16 -> Ma Fraternité -

Sheet Saisie
B2: ="Saisie des dépenses et recettes " &Deb_fin_exercice!H1 -> Saisie des dépenses et recettes 2015
B4: FRATERNITE
C5: =Deb_fin_exercice!B10 -> Sœur numero 1
C6: =Deb_fin_exercice!B11 -> Sœur numero 2
C7: =Deb_fin_exercice!B12 -> Sœur numero 3
C8: =Deb_fin_exercice!B13 -> Sœur numero 4
C9: =Deb_fin_exercice!B14 -> Sœur numero 5
C10: =Deb_fin_exercice!B15 -> Sœur numero 6
C11: =Deb_fin_exercice!B16 -> Sœur numero 7
C12: =Deb_fin_exercice!B17 -> Sœur numero 8
C13: =Deb_fin_exercice!B18 -> Sœur numero 9
C14: =Deb_fin_exercice!B19 -> Sœur numero 10
C15: =Deb_fin_exercice!B20 -> Sœur numero 11
C16: =Deb_fin_exercice!B21 -> 0
C17: =Deb_fin_exercice!B22 -> 0
C18: =Deb_fin_exercice!B23 -> 0
C19: =Deb_fin_exercice!B24 -> 0
C20: =Deb_fin_exercice!B25 -> 0
C21: =Deb_fin_exercice!B26 -> 0
C22: =Deb_fin_exercice!B27 -> 0
C23: =Deb_fin_exercice!B28 -> 0
C24: =Deb_fin_exercice!B29 -> 0
C25: =Deb_fin_exercice!B30 -> 0
C26: =Deb_fin_exercice!B31 -> 0
C27: =Deb_fin_exercice!B32 -> 0
C28: =Deb_fin_exercice!B33 -> 0
C29: =Deb_fin_exercice!B34 -> 0

Sheet Resultat
A2: Sœurs de …
A3: ="Fraternité : " &Deb_fin_exercice!C2 -> Fraternité : Ma Fraternité
B4: ="COMPTE DE RESULTAT - Année " &Deb_fin_exercice!H1 -> COMPTE DE RESULTAT - Année 2015
I5: BUDGET PREVISIONNEL
A6: DEPENSES
B7: 60210 | C7: Alimentation - Hébergement | H7: =T_Glob!P6 -> 18277.02 | I7: =Budget!D6 -> 48000
B8: 60220 | C8: Matières consommables | H8: =T_Glob!P7 -> 1569.74 | I8: =Budget!D7 -> 6000
B9: 60221 | C9: Combustibles | H9: =T_Glob!P8 -> 13081.28 | I9: =Budget!D8 -> 24000
B10: 60612 | C10: Eau - Electricité - Gaz | H10: =T_Glob!P9 -> 5575.79 | I10: =Budget!D9 -> 14000
B11: 60621 | C11: Pharmacie - Soins | H11: =T_Glob!P10 -> 2446.87 | I11: =Budget!D10 -> 15500
B12: 60630 | C12: Acquisition mobilier et matériel | H12: =T_Glob!P11 -> 0 | I12: =Budget!D11 -> 200
B13: 60640 | C13: Fournitures administratives | H13: =T_Glob!P12 -> 320.58 | I13: =Budget!D12 -> 1400
B14: 60681 | C14: Vestiaire personnel des Sœurs | H14: =T_Glob!P13 -> 738.68 | I14: =Budget!D13 -> 2800
B15: 61320 | C15: Loyer | H15: =T_Glob!P14 -> 0 | I15: =Budget!D14 -> 0
B16: 61520 | C16: Entretien mobilier, matériel | H16: =T_Glob!P15 -> 230.1 | I16: =Budget!D15 -> 1300
B17: 61550 | C17: Entretien matériel de transport | H17: =T_Glob!P16 -> 2339.01 | I17: =Budget!D16 -> 2300
B18: 61830 | C18: Formation permanente - Ressourcement spirituel | H18: =T_Glob!P17 -> 241 | I18: =Budget!D17 -> 5000
B19: 61860 | C19: Culture et loisirs | H19: =T_Glob!P18 -> 81.7 | I19: =Budget!D18 -> 2700
B20: 61870 | C20: Prestations diverses | H20: =T_Glob!P19 -> 41.8 | I20: =Budget!D19 -> 500
B21: 62382 | C21: Cotisations - Pourboires - Cadeaux - Frais de culte | H21: =T_Glob!P20 -> 1140.71 | I21: =Budget!D20 -> 1200
B22: 62510 | C22: Déplacements | H22: =T_Glob!P21 -> 791.03 | I22: =Budget!D21 -> 5000
B23: 62620 | C23: Frais postaux et télécommunications | H23: =T_Glob!P22 -> 1900.15 | I23: =Budget!D22 -> 4000
B24: 63513 | C24: Impôts et taxes | H24: =T_Glob!P23 -> 176 | I24: =Budget!D23 -> 400
B25: 64113 | C25: Charges de personnel | H25: =T_Glob!P25 -> 239.95 | I25: =Budget!D24 -> 0
B26: 64611 | C26: Cotisations mutuelles | H26: =T_Glob!P26 -> 0 | I26: =Budget!D25 -> 0
B27: 65710 | C27: Partage - Solidarité | H27: =T_Glob!P27 -> 71 | I27: =Budget!D26 -> 0
C29: TOTAL DES DEPENSES BRUTES (A) | H29: =SUM(H7:H27) -> 49262.41 | I29: =SUM(I7:I27) -> 134300
A31: RECETTES ACCESSOIRES : à déduire
B32: 70690 | C32: Remboursements CPAM - CAVIMAC maladie -M.S.M. | H32: =T_Glob!P40 -> 1861.72 | I32: =Budget!D29 -> 6000
B33: 70880 | C33: Recettes d'accueil | H33: =T_Glob!P41 -> 1691 | I33: =Budget!D30 -> 0
B34: 78400 | C34: Dons faits à la fraternité | H34: =T_Glob!P42 -> 500 | I34: =Budget!D31 -> 0
C35: TOTAL DES RECETTES ACCESSOIRES (B) | H35: =SUM(H32:H34) -> 4052.72 | I35: =SUM(I32:I34) -> 6000
A37: TOTAL DES DEPENSES NETTES (A-B) | H37: =+H29-H35 -> 45209.69 | I37: =Budget!D33 -> 128300
A38: RESSOURCES
B39: 70641 | C39: Salaires nets à la fin de l'exercice | H39: =T_Glob!P32 -> 0 | I39: =Budget!D35 -> 0
B40: 70641 | C40: Indemnités à la fin de l'exercice | H40: =T_Glob!P33 -> 0 | I40: =Budget!D36 -> 0
B41: 70661 | C41: Rentes CAVIMAC à la fin de l'exercice | H41: =T_Glob!P34 -> 16049.58 | I41: =Budget!D37 -> 39350
B42: 70662 | C42: Rentes CARSAT - MSA à la fin de l'exercice | H42: =T_Glob!P35 -> 20056.3 | I42: =Budget!D38 -> 50260
B43: 70668 | C43: Autres rentes à la fin de l'exercice | H43: =T_Glob!P36 -> 18469.22 | I43: =Budget!D39 -> 47660
B44: 70651 | C44: Allocation logement à la fin de l'exercice | H44: =T_Glob!P37 -> 0 | I44: =Budget!D40 -> 0
B45: 70652 | C45: A.P.L. à la fin de l'exercice | H45: =T_Glob!P38 -> 0 | I45: =Budget!D41 -> 0
B46: 70692 | C46: Aide sociale | H46: =T_Glob!P39 -> 0 | I46: =Budget!D42 -> 0
C48: A déduire : IRPP payé sur l'exercice | H48: =T_Glob!P24 -> 577 | I48: =Budget!D43 -> 1460
B50: ="RESSOURCES NETTES de l'année " & Deb_fin_exercice!H1 & " (C)" -> RESSOURCES NETTES de l'année 2015 (C) | H50: =SUM(H39:H46)-H48 -> 53998.1 | I50: =SUM(I39:I46)-I48 -> 135810
B52: TOTAL DES RESSOURCES DE LA FRATERNITE (C) | H52: =H50 -> 53998.1 | I52: =Budget!D46 -> 135810
B53: TOTAL DES DEPENSES NETTES (page 1) (A - B) | H53: =H37 -> 45209.69 | I53: =Budget!D47 -> 128300
B54: RESULTATS | H54: =H52-H53 -> 8788.41 | I54: =I52-I53 -> 7510
A56: =" SITUATION DE TRESORERIE AU 31 DECEMBRE " & Deb_fin_exercice!H1 -> SITUATION DE TRESORERIE AU 31 DECEMBRE 2015
B57: ="Avoir au 1er janvier "& Deb_fin_exercice!H1 -> Avoir au 1er janvier 2015 | E57: =" (conforme à celui du compte de résultat au 31 décembre " & (Deb_fin_exercice!H1-1)&")" -> (conforme à celui du compte de résultat au 31 décembre 2014)
C58: Réparti ainsi | F58: Espèces | G58: Banque | H58: Total
C59: Fraternité | F59: =Deb_fin_exercice!P14 -> 20 | G59: =Deb_fin_exercice!D5 -> 11822.55 | H59: =F59+G59 -> 11842.55
C60: Comptes personnels | F60: =Deb_fin_exercice!P18 -> 160.27 | G60: =Deb_fin_exercice!P19 -> 14003.74 | H60: =F60+G60 -> 14164.01
C61: Total (a) | F61: =SUM(F59:F60) -> 180.27 | G61: =SUM(G59:G60) -> 25826.29 | H61: =F61+G61 -> 26006.56
A62: =" Apport des Sœurs arrivées en "&Deb_fin_exercice!H1 -> Apport des Sœurs arrivées en 2015
C63: Réparti ainsi | F63: Espèces | G63: Banque | H63: Total
C64: =TabCroisésArrivDepart!A7 -> Sœur numero 2 | F64: =TabCroisésArrivDepart!B7 -> 5.7 | G64: =TabCroisésArrivDepart!C7 -> 767.74 | H64: =TabCroisésArrivDepart!D7 -> 773.44
C65: =TabCroisésArrivDepart!A8 -> 0 | F65: =TabCroisésArrivDepart!B8 -> 0 | G65: =TabCroisésArrivDepart!C8 -> 0 | H65: =TabCroisésArrivDepart!D8 -> 0
C66: =TabCroisésArrivDepart!A9 -> 0 | F66: =TabCroisésArrivDepart!B9 -> 0 | G66: =TabCroisésArrivDepart!C9 -> 0 | H66: =TabCroisésArrivDepart!D9 -> 0
C67: =TabCroisésArrivDepart!A10 -> 0 | F67: =TabCroisésArrivDepart!B10 -> 0 | G67: =TabCroisésArrivDepart!C10 -> 0 | H67: =TabCroisésArrivDepart!D10 -> 0
C68: =TabCroisésArrivDepart!A11 -> 0 | F68: =TabCroisésArrivDepart!B11 -> 0 | G68: =TabCroisésArrivDepart!C11 -> 0 | H68: =TabCroisésArrivDepart!D11 -> 0
C69: =TabCroisésArrivDepart!A12 -> 0 | F69: =TabCroisésArrivDepart!B12 -> 0 | G69: =TabCroisésArrivDepart!C12 -> 0 | H69: =TabCroisésArrivDepart!D12 -> 0
C70: =TabCroisésArrivDepart!A13 -> 0 | F70: =TabCroisésArrivDepart!B13 -> 0 | G70: =TabCroisésArrivDepart!C13 -> 0 | H70: =TabCroisésArrivDepart!D13 -> 0
C71: =TabCroisésArrivDepart!A14 -> 0 | F71: =TabCroisésArrivDepart!B14 -> 0 | G71: =TabCroisésArrivDepart!C14 -> 0 | H71: =TabCroisésArrivDepart!D14 -> 0
C72: =TabCroisésArrivDepart!A15 -> 0 | F72: =TabCroisésArrivDepart!B15 -> 0 | G72: =TabCroisésArrivDepart!C15 -> 0 | H72: =TabCroisésArrivDepart!D15 -> 0
C73: =TabCroisésArrivDepart!A16 -> 0 | F73: =TabCroisésArrivDepart!B16 -> 0 | G73: =TabCroisésArrivDepart!C16 -> 0 | H73: =TabCroisésArrivDepart!D16 -> 0
C74: Total (b) | F74: =SUM(F64:F71) -> 5.7 | G74: =SUM(G64:G71) -> 767.74 | H74: =F74+G74 -> 773.44 | I74: =H61+H74 -> 26780
A75: =" Avoir des Sœurs parties en "& Deb_fin_exercice!H1 -> Avoir des Sœurs parties en 2015
C76: Réparti ainsi | F76: Espèces | G76: Banque | H76: Total
C77: =TabCroisésArrivDepart!M7 -> Sœur numero 4 | F77: =TabCroisésArrivDepart!N7 -> 0 | G77: =TabCroisésArrivDepart!O7 -> 866.24 | H77: =F77+G77 -> 866.24
C78: =TabCroisésArrivDepart!M8 -> Sœur numero 5 | F78: =TabCroisésArrivDepart!N8 -> 33.09 | G78: =TabCroisésArrivDepart!O8 -> 361.01 | H78: 394.1
C79: =TabCroisésArrivDepart!M9 -> Sœur numero 8 | F79: =TabCroisésArrivDepart!N9 -> 13.4 | G79: =TabCroisésArrivDepart!O9 -> 2214.35 | H79: 2227.75
C80: =TabCroisésArrivDepart!M10 -> Sœur numero 9 | F80: =TabCroisésArrivDepart!N10 -> 24.95 | G80: =TabCroisésArrivDepart!O10 -> 1881.82 | H80: 1906.77
C81: =TabCroisésArrivDepart!M11 -> 0 | F81: =TabCroisésArrivDepart!N11 -> 0 | G81: =TabCroisésArrivDepart!O11 -> 0 | H81: 0
C82: =TabCroisésArrivDepart!M12 -> 0 | F82: =TabCroisésArrivDepart!N12 -> 0 | G82: =TabCroisésArrivDepart!O12 -> 0 | H82: 0
C83: =TabCroisésArrivDepart!M13 -> 0 | F83: =TabCroisésArrivDepart!N13 -> 0 | G83: =TabCroisésArrivDepart!O13 -> 0 | H83: 0
C84: =TabCroisésArrivDepart!M14 -> 0 | F84: =TabCroisésArrivDepart!N14 -> 0 | G84: =TabCroisésArrivDepart!O14 -> 0 | H84: =F84+G84 -> 0
C85: =TabCroisésArrivDepart!M15 -> 0 | F85: =TabCroisésArrivDepart!N15 -> 0 | G85: =TabCroisésArrivDepart!O15 -> 0 | H85: 0
C86: =TabCroisésArrivDepart!M16 -> 0 | F86: =TabCroisésArrivDepart!N16 -> 0 | G86: =TabCroisésArrivDepart!O16 -> 0 | H86: 0
C87: =TabCroisésArrivDepart!M17 -> 0 | F87: =TabCroisésArrivDepart!N17 -> 0 | G87: =TabCroisésArrivDepart!O17 -> 0 | H87: 0
C88: =TabCroisésArrivDepart!M18 -> 0 | F88: =TabCroisésArrivDepart!N18 -> 0 | G88: =TabCroisésArrivDepart!O18 -> 0 | H88: 0
C89: Total (c) | F89: =SUM(F77:F88) -> 71.44 | G89: =SUM(G77:G88) -> 5323.42 | H89: 5394.86
E91: AVOIR TOTAL (a+b-c) | H91: =H61+H74-H89 -> 21385.14
C93: Subventions reçues du Budget régional | H93: =T_Glob!P43 -> 0
E96: TOTAL | H96: =H91+H93 -> 21385.14
C98: Résultats (page2) | H98: =H54 -> 8788.41
E100: SOLDE | H100: =H96+H98 -> 30173.55
C102: Versements déjà effectués au Budget régional | H102: =T_Glob!P28 -> 10000
B104: ="AVOIR AU 31 DECEMBRE "&Deb_fin_exercice!H1 -> AVOIR AU 31 DECEMBRE 2015 | H104: =H100-H102 -> 20173.55
B107: =" TOTAL FONDS DE DEPART DE L'ANNEE "&Deb_fin_exercice!H1+1 -> TOTAL FONDS DE DEPART DE L'ANNEE 2016 | H107: =H104 -> 20173.55
C109: Réparti ainsi | F109: Espèces | G109: Banque | H109: Total
C110: FRATERNITE | F110: =Frat!O53 -> 310 | G110: =Frat!O54 -> 14730.12 | H110: =F110+G110 -> 15040.12
C111: =TabCroisésArrivDepart!X7 -> Sœur numero 1 | F111: =TabCroisésArrivDepart!Y7 -> 39.2 | G111: ='S1'!O54 -> 1428.13 | H111: 1467.33
C112: =TabCroisésArrivDepart!X8 -> Sœur numero 2 | F112: =TabCroisésArrivDepart!Y8 -> 18.2 | G112: ='S2'!O54 -> 625.32 | H112: 643.52
C113: =TabCroisésArrivDepart!X9 -> Sœur numero 3 | F113: =TabCroisésArrivDepart!Y9 -> 21.16 | G113: =TabCroisésArrivDepart!Z9 -> 1134.53 | H113: 1155.69
C114: =TabCroisésArrivDepart!X10 -> Sœur numero 6 | F114: =TabCroisésArrivDepart!Y10 -> 12.49 | G114: =TabCroisésArrivDepart!Z10 -> 348.55 | H114: 361.04
C115: =TabCroisésArrivDepart!X11 -> Sœur numero 7 | F115: =TabCroisésArrivDepart!Y11 -> 19.3 | G115: =TabCroisésArrivDepart!Z11 -> 580.17 | H115: 599.47
C116: =TabCroisésArrivDepart!X12 -> Sœur numero 10 | F116: =TabCroisésArrivDepart!Y12 -> 3.3 | G116: =TabCroisésArrivDepart!Z12 -> 863.27 | H116: 866.57
C117: =TabCroisésArrivDepart!X13 -> Sœur numero 11 | F117: =TabCroisésArrivDepart!Y13 -> 3.95 | G117: =TabCroisésArrivDepart!Z13 -> 3235.86 | H117: 3239.81
C118: =TabCroisésArrivDepart!X14 -> 0 | F118: =TabCroisésArrivDepart!Y14 -> 0 | G118: =TabCroisésArrivDepart!Z14 -> 0 | H118: 0
C119: =TabCroisésArrivDepart!X15 -> 0 | F119: =TabCroisésArrivDepart!Y15 -> 0 | G119: =TabCroisésArrivDepart!Z15 -> 0 | H119: 0
C120: =TabCroisésArrivDepart!X16 -> 0 | F120: =TabCroisésArrivDepart!Y16 -> 0 | G120: =TabCroisésArrivDepart!Z16 -> 0 | H120: 0
C121: =TabCroisésArrivDepart!X17 -> 0 | F121: =TabCroisésArrivDepart!Y17 -> 0 | G121: =TabCroisésArrivDepart!Z17 -> 0 | H121: 0
C122: =TabCroisésArrivDepart!X18 -> 0 | F122: =TabCroisésArrivDepart!Y18 -> 0 | G122: =TabCroisésArrivDepart!Z18 -> 0 | H122: 0
C123: =TabCroisésArrivDepart!X19 -> 0 | F123: =TabCroisésArrivDepart!Y19 -> 0 | G123: =TabCroisésArrivDepart!Z19 -> 0 | H123: 0
C124: =TabCroisésArrivDepart!X20 -> 0 | F124: =TabCroisésArrivDepart!Y20 -> 0 | G124: =TabCroisésArrivDepart!Z20 -> 0 | H124: 0
C125: =TabCroisésArrivDepart!X21 -> 0 | F125: =TabCroisésArrivDepart!Y21 -> 0 | G125: =TabCroisésArrivDepart!Z21 -> 0 | H125: 0
C126: =TabCroisésArrivDepart!X22 -> 0 | F126: =TabCroisésArrivDepart!Y22 -> 0 | G126: =TabCroisésArrivDepart!Z22 -> 0 | H126: 0
C127: =TabCroisésArrivDepart!X23 -> 0 | F127: =TabCroisésArrivDepart!Y23 -> 0 | G127: =TabCroisésArrivDepart!Z23 -> 0 | H127: =F127+G127 -> 0
C128: =TabCroisésArrivDepart!X24 -> 0 | F128: =TabCroisésArrivDepart!Y24 -> 0 | G128: =TabCroisésArrivDepart!Z24 -> 0 | H128: 0
C129: =TabCroisésArrivDepart!X25 -> 0 | F129: =TabCroisésArrivDepart!Y25 -> 0 | G129: =TabCroisésArrivDepart!Z25 -> 0 | H129: 0
C130: =TabCroisésArrivDepart!X26 -> 0 | F130: =TabCroisésArrivDepart!Y26 -> 0 | G130: =TabCroisésArrivDepart!Z26 -> 0 | H130: 0
C131: =TabCroisésArrivDepart!X27 -> 0 | F131: =TabCroisésArrivDepart!Y27 -> 0 | G131: =TabCroisésArrivDepart!Z27 -> 0 | H131: 0
C132: =TabCroisésArrivDepart!X28 -> 0 | F132: =TabCroisésArrivDepart!Y28 -> 0 | G132: =TabCroisésArrivDepart!Z28 -> 0 | H132: 0
H133: =SUM(H110:H132) -> 23373.55
C134: Ecart entre Avoir à fin décembre et répartition: | H134: =H107-H133 -> -3200
C136: =Deb_fin_exercice!C2&" - "&Accueil!A10 -> Ma Fraternité -

Sheet Ressources
B1: Sœurs de …
B2: ="Fraternité : "&Deb_fin_exercice!$C$2 -> Fraternité : Ma Fraternité
A4: Année naissance | B4: NOM - Prénom (civil) | C4: Profession | D4: Horaire hebdo | E4: Traitements soumis à sécu. | F4: CAVIMAC | G4: CARSAT MSA | H4: Autres rentes | I4: Indemnités | J4: Allocation logement | K4: A.P.L. | L4: I.R.P.P. (Impôts) | M4: Revenu net annuel
A5: =Deb_fin_exercice!C10 -> 0 | B5: =Deb_fin_exercice!B10 -> Sœur numero 1 | E5: ='S1'!$P$35 -> 0 | F5: ='S1'!P37 -> 1845.6 | G5: ='S1'!P38 -> 1560.95 | H5: ='S1'!P39 -> 630.35 | I5: ='S1'!P36 -> 0 | J5: ='S1'!P40 -> 0 | K5: ='S1'!P41 -> 0 | L5: ='S1'!P24 -> 0 | M5: =IF(SUM(E5:L5)=0,"",SUM(E5:K5)-L5) -> 4036.9
A6: =Deb_fin_exercice!C11 -> 0 | B6: =Deb_fin_exercice!B11 -> Sœur numero 2 | E6: ='S2'!$P$35 -> 0 | F6: ='S2'!P37 -> 944.05 | G6: ='S2'!P38 -> 983.85 | H6: ='S2'!P39 -> 3298.91 | I6: ='S2'!P36 -> 0 | J6: ='S2'!P40 -> 0 | K6: ='S2'!P41 -> 0 | L6: ='S2'!P24 -> 0 | M6: =IF(SUM(E6:L6)=0,"",SUM(E6:K6)-L6) -> 5226.81
A7: =Deb_fin_exercice!C12 -> 0 | B7: =Deb_fin_exercice!B12 -> Sœur numero 3 | E7: ='S3'!$P$35 -> 0 | F7: ='S3'!P37 -> 1953.95 | G7: ='S3'!P38 -> 628.05 | H7: ='S3'!P39 -> 1473.1 | I7: ='S3'!P36 -> 0 | J7: ='S3'!P40 -> 0 | K7: ='S3'!P41 -> 0 | L7: ='S3'!P24 -> 0 | M7: =IF(SUM(E7:L7)=0,"",SUM(E7:K7)-L7) -> 4055.1
A8: =Deb_fin_exercice!C13 -> 0 | B8: =Deb_fin_exercice!B13 -> Sœur numero 4 | E8: ='S4'!$P$35 -> 0 | F8: ='S4'!P37 -> 744.33 | G8: ='S4'!P38 -> 1631.85 | H8: ='S4'!P39 -> 1831.11 | I8: ='S4'!P36 -> 0 | J8: ='S4'!P40 -> 0 | K8: ='S4'!P41 -> 0 | L8: ='S4'!P24 -> 0 | M8: 4207.29
A9: =Deb_fin_exercice!C14 -> 0 | B9: =Deb_fin_exercice!B14 -> Sœur numero 5 | E9: ='S5'!$P$35 -> 0 | F9: ='S5'!P37 -> 1488.15 | G9: ='S5'!P38 -> 1590.55 | H9: ='S5'!P39 -> 1582.9 | I9: ='S5'!P36 -> 0 | J9: ='S5'!P40 -> 0 | K9: ='S5'!P41 -> 0 | L9: ='S5'!P24 -> 0 | M9: 4661.6
A10: =Deb_fin_exercice!C15 -> 0 | B10: =Deb_fin_exercice!B15 -> Sœur numero 6 | E10: ='S6'!$P$35 -> 0 | F10: ='S6'!P37 -> 1233.25 | G10: ='S6'!P38 -> 2134.55 | H10: ='S6'!P39 -> 3094.1 | I10: ='S6'!P36 -> 0 | J10: ='S6'!P40 -> 0 | K10: ='S6'!P41 -> 0 | L10: ='S6'!P24 -> 0 | M10: 6461.9
A11: =Deb_fin_exercice!C16 -> 0 | B11: =Deb_fin_exercice!B16 -> Sœur numero 7 | E11: ='S7'!$P$35 -> 0 | F11: ='S7'!P37 -> 1707.85 | G11: ='S7'!P38 -> 1387.55 | H11: ='S7'!P39 -> 699.85 | I11: ='S7'!P36 -> 0 | J11: ='S7'!P40 -> 0 | K11: ='S7'!P41 -> 0 | L11: ='S7'!P24 -> 0 | M11: 3795.25
A12: =Deb_fin_exercice!C17 -> 0 | B12: =Deb_fin_exercice!B17 -> Sœur numero 8 | E12: ='S8'!$P$35 -> 0 | F12: ='S8'!P37 -> 1147.55 | G12: ='S8'!P38 -> 2235.5 | H12: ='S8'!P39 -> 2703.85 | I12: ='S8'!P36 -> 0 | J12: ='S8'!P40 -> 0 | K12: ='S8'!P41 -> 0 | L12: ='S8'!P24 -> 0 | M12: 6086.9
A13: =Deb_fin_exercice!C18 -> 0 | B13: =Deb_fin_exercice!B18 -> Sœur numero 9 | E13: ='S9'!$P$35 -> 0 | F13: ='S9'!P37 -> 1953.95 | G13: ='S9'!P38 -> 1893.5 | H13: ='S9'!P39 -> 222.95 | I13: ='S9'!P36 -> 0 | J13: ='S9'!P40 -> 0 | K13: ='S9'!P41 -> 0 | L13: ='S9'!P24 -> 0 | M13: 4070.4
A14: =Deb_fin_exercice!C19 -> 0 | B14: =Deb_fin_exercice!B19 -> Sœur numero 10 | E14: ='S10'!$P$35 -> 0 | F14: ='S10'!P37 -> 1913.95 | G14: ='S10'!P38 -> 2055.55 | H14: ='S10'!P39 -> 70.3 | I14: ='S10'!P36 -> 0 | J14: ='S10'!P40 -> 0 | K14: ='S10'!P41 -> 0 | L14: ='S10'!P24 -> 0 | M14: 4039.8
A15: =Deb_fin_exercice!C20 -> 0 | B15: =Deb_fin_exercice!B20 -> Sœur numero 11 | E15: ='S11'!$P$35 -> 0 | F15: ='S11'!P37 -> 1116.95 | G15: ='S11'!P38 -> 3954.4 | H15: ='S11'!P39 -> 2861.8 | I15: ='S11'!P36 -> 0 | J15: ='S11'!P40 -> 0 | K15: ='S11'!P41 -> 0 | L15: ='S11'!P24 -> 311 | M15: 7622.15
A16: =Deb_fin_exercice!C21 -> 0 | B16: =Deb_fin_exercice!B21 -> 0 | E16: ='S12'!$P$35 -> 0 | F16: ='S12'!P37 -> 0 | G16: ='S12'!P38 -> 0 | H16: ='S12'!P39 -> 0 | I16: ='S12'!P36 -> 0 | J16: ='S12'!P40 -> 0 | K16: ='S12'!P41 -> 0 | L16: ='S12'!P24 -> 0
A17: =Deb_fin_exercice!C22 -> 0 | B17: =Deb_fin_exercice!B22 -> 0 | E17: ='S13'!$P$35 -> 0 | F17: ='S13'!P37 -> 0 | G17: ='S13'!P38 -> 0 | H17: ='S13'!P39 -> 0 | I17: ='S13'!P36 -> 0 | J17: ='S13'!P40 -> 0 | K17: ='S13'!P41 -> 0 | L17: ='S13'!P24 -> 0
A18: =Deb_fin_exercice!C23 -> 0 | B18: =Deb_fin_exercice!B23 -> 0 | E18: ='S14'!$P$35 -> 0 | F18: ='S14'!P37 -> 0 | G18: ='S14'!P38 -> 0 | H18: ='S14'!P39 -> 0 | I18: ='S14'!P36 -> 0 | J18: ='S14'!P40 -> 0 | K18: ='S14'!P41 -> 0 | L18: ='S14'!P24 -> 0
A19: =Deb_fin_exercice!C24 -> 0 | B19: =Deb_fin_exercice!B24 -> 0 | E19: ='S15'!$P$35 -> 0 | F19: ='S15'!P37 -> 0 | G19: ='S15'!P38 -> 0 | H19: ='S15'!P39 -> 0 | I19: ='S15'!P36 -> 0 | J19: ='S15'!P40 -> 0 | K19: ='S15'!P41 -> 0 | L19: ='S15'!P24 -> 0
A20: =Deb_fin_exercice!C25 -> 0 | B20: =Deb_fin_exercice!B25 -> 0 | E20: ='S16'!$P$35 -> 0 | F20: ='S16'!P37 -> 0 | G20: ='S16'!P38 -> 0 | H20: ='S16'!P39 -> 0 | I20: ='S16'!P36 -> 0 | J20: ='S16'!P40 -> 0 | K20: ='S16'!P41 -> 0 | L20: ='S16'!P24 -> 0
A21: =Deb_fin_exercice!C26 -> 0 | B21: =Deb_fin_exercice!B26 -> 0 | E21: ='S17'!$P$35 -> 0 | F21: ='S17'!P37 -> 0 | G21: ='S17'!P38 -> 0 | H21: ='S17'!P39 -> 0 | I21: ='S17'!P36 -> 0 | J21: ='S17'!P40 -> 0 | K21: ='S17'!P41 -> 0 | L21: ='S17'!P24 -> 0
A22: =Deb_fin_exercice!C27 -> 0 | B22: =Deb_fin_exercice!B27 -> 0 | E22: ='S18'!$P$35 -> 0 | F22: ='S18'!P37 -> 0 | G22: ='S18'!P38 -> 0 | H22: ='S18'!P39 -> 0 | I22: ='S18'!P36 -> 0 | J22: ='S18'!P40 -> 0 | K22: ='S18'!P41 -> 0 | L22: ='S18'!P24 -> 0
A23: =Deb_fin_exercice!C28 -> 0 | B23: =Deb_fin_exercice!B28 -> 0 | E23: ='S19'!$P$35 -> 0 | F23: ='S19'!P37 -> 0 | G23: ='S19'!P38 -> 0 | H23: ='S19'!P39 -> 0 | I23: ='S19'!P36 -> 0 | J23: ='S19'!P40 -> 0 | K23: ='S19'!P41 -> 0 | L23: ='S19'!P24 -> 0
A24: =Deb_fin_exercice!C29 -> 0 | B24: =Deb_fin_exercice!B29 -> 0 | E24: ='S20'!$P$35 -> 0 | F24: ='S20'!P37 -> 0 | G24: ='S20'!P38 -> 0 | H24: ='S20'!P39 -> 0 | I24: ='S20'!P36 -> 0 | J24: ='S20'!P40 -> 0 | K24: ='S20'!P41 -> 0 | L24: ='S20'!P24 -> 0
A25: =Deb_fin_exercice!C30 -> 0 | B25: =Deb_fin_exercice!B30 -> 0 | E25: ='S21'!$P$35 -> 0 | F25: ='S21'!P37 -> 0 | G25: ='S21'!P38 -> 0 | H25: ='S21'!P39 -> 0 | I25: ='S21'!P36 -> 0 | J25: ='S21'!P40 -> 0 | K25: ='S21'!P41 -> 0 | L25: ='S21'!P24 -> 0
A26: =Deb_fin_exercice!C31 -> 0 | B26: =Deb_fin_exercice!B31 -> 0 | E26: ='S22'!$P$35 -> 0 | F26: ='S22'!P37 -> 0 | G26: ='S22'!P38 -> 0 | H26: ='S22'!P39 -> 0 | I26: ='S22'!P36 -> 0 | J26: ='S22'!P40 -> 0 | K26: ='S22'!P41 -> 0 | L26: ='S22'!P24 -> 0
A27: =Deb_fin_exercice!C32 -> 0 | B27: =Deb_fin_exercice!B32 -> 0 | E27: ='S23'!$P$35 -> 0 | F27: ='S23'!P37 -> 0 | G27: ='S23'!P38 -> 0 | H27: ='S23'!P39 -> 0 | I27: ='S23'!P36 -> 0 | J27: ='S23'!P40 -> 0 | K27: ='S23'!P41 -> 0 | L27: ='S23'!P24 -> 0
A28: =Deb_fin_exercice!C33 -> 0 | B28: =Deb_fin_exercice!B33 -> 0 | E28: ='S24'!$P$35 -> 0 | F28: ='S24'!P37 -> 0 | G28: ='S24'!P38 -> 0 | H28: ='S24'!P39 -> 0 | I28: ='S24'!P36 -> 0 | J28: ='S24'!P40 -> 0 | K28: ='S24'!P41 -> 0 | L28: ='S24'!P24 -> 0
A29: =Deb_fin_exercice!C34 -> 0 | B29: =Deb_fin_exercice!B34 -> 0 | E29: ='S25'!$P$35 -> 0 | F29: ='S25'!P37 -> 0 | G29: ='S25'!P38 -> 0 | H29: ='S25'!P39 -> 0 | I29: ='S25'!P36 -> 0 | J29: ='S25'!P40 -> 0 | K29: ='S25'!P41 -> 0 | L29: ='S25'!P24 -> 0
C30: TOTAUX >> | E30: =SUM(E5:E29) -> 0 | F30: 16049.58 | G30: 20056.3 | H30: 18469.22 | I30: 0 | J30: 0 | K30: 0 | L30: 311 | M30: 54264.1
H31: Doit être égal au montant des RESSOURCES de l'année (page2)

Sheet Notes
C1: Pense-bête Vous pouvez noter ci-dessous toutes les informations que vous souhaitez conserver
B2: Date | C2: Observations
B3: mai | C3: Contrôler écart 1800 €

Sheet Controle
C1: Sœurs de … | G1: =IF(U2=0,"Pas d'écart à contrôler","Veuillez contrôler les écarts") -> Veuillez contrôler les écarts | O1: =IF(U2=0,"Pas d'écart à contrôler","Veuillez contrôler les écarts") -> Veuillez contrôler les écarts
U2: =SUM(ABS(F7)+ABS(F17)+ABS(F22)+ABS(F12)) -> 1800
A3: Contrôle transferts de fonds | N3: Premiers mois de l'année
B4: Entre SOMMES DONNÉES PAR LA FRATERNITE et SOMMES RECUES PAR LES SŒURS | E4: Ecart année précédente | F4: Total cumulé | G4: jan | H4: fév | I4: mars | J4: avr | K4: mai | L4: jun | M4: jul | N4: août | O4: sept | P4: oct | Q4: nov | R4: dec | T4: Feuille | U4: Ligne
C5: Donné aux Srs depuis caisse ou banque Frater. | F5: =SUM(G5:R5) -> 1410 | G5: =Frat!D30+E5 -> 440 | H5: =Frat!E30 -> 240 | I5: =Frat!F30 -> 240 | J5: =Frat!G30 -> 230 | K5: =Frat!H30 -> 260 | L5: =Frat!I30 -> 0 | M5: =Frat!J30 -> 0 | N5: =Frat!K30 -> 0 | O5: =Frat!L30 -> 0 | P5: =Frat!M30 -> 0 | Q5: =Frat!N30 -> 0 | R5: =Frat!O30 -> 0 | T5: "Fraternité" | U5: 30
C6: Reçu de la Fraternité par les Sœurs | F6: =SUM(G6:R6) -> 1410 | G6: =T_S!D49+E6 -> 440 | H6: =T_S!E49 -> 240 | I6: =T_S!F49 -> 210 | J6: =T_S!G49 -> 260 | K6: =T_S!H49 -> 260 | L6: =T_S!I49 -> 0 | M6: =T_S!J49 -> 0 | N6: =T_S!K49 -> 0 | O6: =T_S!L49 -> 0 | P6: =T_S!M49 -> 0 | Q6: =T_S!N49 -> 0 | R6: =T_S!O49 -> 0 | T6: "Sœurs" | U6: 54
D7: Ecart cumulé > | F7: =F5-F6 -> 0 | G7: =G5-G6 -> 0 | H7: =H5-H6 -> 0 | I7: =I5-I6 -> 30 | J7: -30 | K7: 0 | L7: 0 | M7: 0 | N7: 0 | O7: 0 | P7: 0 | Q7: 0 | R7: 0
B9: SOMMES VERSEES PAR LES SŒURS A LA FRATERNITE | E9: Ecart année précédente | F9: Total cumulé | G9: jan | H9: fév | I9: mars | J9: avr | K9: mai | L9: jun | M9: jul | N9: août | O9: sept | P9: oct | Q9: nov | R9: dec | T9: Feuille | U9: Ligne
C10: Versements effectués par les Sœurs | F10: =SUM(G10:R10) -> 50250 | G10: =T_S!D28+E10 -> 12250 | H10: =T_S!E28 -> 11700 | I10: =T_S!F28 -> 10700 | J10: =T_S!G28 -> 9400 | K10: =T_S!H28 -> 6200 | L10: =T_S!I28 -> 0 | M10: =T_S!J28 -> 0 | N10: =T_S!K28 -> 0 | O10: =T_S!L28 -> 0 | P10: =T_S!M28 -> 0 | Q10: =T_S!N28 -> 0 | R10: =T_S!O28 -> 0 | T10: "Soeurs" | U10: 28
C11: Reçu par la Fraternité | F11: =SUM(G11:R11) -> 48450 | G11: =Frat!D46+E11+T_S!D46 -> 12250 | H11: =Frat!E46+T_S!E46 -> 11700 | I11: =Frat!F46+T_S!F46 -> 10700 | J11: =Frat!G46+T_S!G46 -> 9400 | K11: =Frat!H46+T_S!H46 -> 4400 | L11: =Frat!I46+T_S!I46 -> 0 | M11: =Frat!J46+T_S!J46 -> 0 | N11: =Frat!K46+T_S!K46 -> 0 | O11: =Frat!L46+T_S!L46 -> 0 | P11: =Frat!M46+T_S!M46 -> 0 | Q11: =Frat!N46+T_S!N46 -> 0 | R11: =Frat!O46+T_S!O46 -> 0 | T11: "Fraternité" | U11: 51
D12: Ecart cumulé > | F12: =F10-F11 -> 1800 | G12: =G10-G11 -> 0 | H12: =H10-H11 -> 0 | I12: 0 | J12: 0 | K12: 1800 | L12: 0 | M12: 0 | N12: 0 | O12: 0 | P12: 0 | Q12: 0 | R12: 0
B14: Entre SORTIE BANQUE FRATERNITE et ENTREE CAISSE FRATERNITE | E14: Ecart année précédente | F14: Total cumulé | G14: jan | H14: fév | I14: mars | J14: avr | K14: mai | L14: jun | M14: jul | N14: août | O14: sept | P14: oct | Q14: nov | R14: dec | T14: Feuille | U14: Ligne
C15: Retrait compte courant Fraternité pour caisse | F15: =SUM(G15:R15) -> 1800 | G15: =Frat!D31+E15 -> 700 | H15: =Frat!E31 -> 0 | I15: =Frat!F31 -> 400 | J15: =Frat!G31 -> 300 | K15: =Frat!H31 -> 400 | L15: =Frat!I31 -> 0 | M15: =Frat!J31 -> 0 | N15: =Frat!K31 -> 0 | O15: =Frat!L31 -> 0 | P15: =Frat!M31 -> 0 | Q15: =Frat!N31 -> 0 | R15: =Frat!O31 -> 0 | T15: "Fraternité" | U15: 31
C16: Mis en caisse Fraternité depuis compte courant | F16: =SUM(G16:R16) -> 1800 | G16: =Frat!D48+E16 -> 700 | H16: =Frat!E48 -> 0 | I16: =Frat!F48 -> 400 | J16: =Frat!G48 -> 300 | K16: =Frat!H48 -> 400 | L16: =Frat!I48 -> 0 | M16: =Frat!J48 -> 0 | N16: =Frat!K48 -> 0 | O16: =Frat!L48 -> 0 | P16: =Frat!M48 -> 0 | Q16: =Frat!N48 -> 0 | R16: =Frat!O48 -> 0 | T16: "Fraternité" | U16: 53
D17: Ecart cumulé > | F17: =F15-F16 -> 0 | G17: =G15-G16 -> 0 | H17: =H15-H16 -> 0 | I17: 0 | J17: 0 | K17: 0 | L17: 0 | M17: 0 | N17: 0 | O17: 0 | P17: 0 | Q17: 0 | R17: 0
B19: Entre SORTIE BANQUE SŒURS et ENTREE CAISSE SŒURS | E19: Ecart année précédente | F19: Total cumulé | G19: jan | H19: fév | I19: mars | J19: avr | K19: mai | L19: jun | M19: jul | N19: août | O19: sept | P19: oct | Q19: nov | R19: dec | T19: Feuille | U19: Ligne
C20: Retrait compte courant Sœurs | F20: =SUM(G20:R20) -> 0 | G20: =T_S!D31+E20 -> 0 | H20: =T_S!E31 -> 0 | I20: =T_S!F31 -> 0 | J20: =T_S!G31 -> 0 | K20: =T_S!H31 -> 0 | L20: =T_S!I31 -> 0 | M20: =T_S!J31 -> 0 | N20: =T_S!K31 -> 0 | O20: =T_S!L31 -> 0 | P20: =T_S!M31 -> 0 | Q20: =T_S!N31 -> 0 | R20: =T_S!O31 -> 0 | T20: "Soeurs" | U20: 31
C21: Mis en caisse Sœurs depuis compte courant | F21: =SUM(G21:R21) -> 0 | G21: =T_S!D48+E21 -> 0 | H21: =T_S!E48 -> 0 | I21: =T_S!F48 -> 0 | J21: =T_S!G48 -> 0 | K21: =T_S!H48 -> 0 | L21: =T_S!I48 -> 0 | M21: =T_S!J48 -> 0 | N21: =T_S!K48 -> 0 | O21: =T_S!L48 -> 0 | P21: =T_S!M48 -> 0 | Q21: =T_S!N48 -> 0 | R21: =T_S!O48 -> 0 | T21: "Sœurs" | U21: 53
D22: Ecart cumulé > | F22: =F20-F21 -> 0 | G22: =G20-G21 -> 0 | H22: =H20-H21 -> 0 | I22: 0 | J22: 0 | K22: 0 | L22: 0 | M22: 0 | N22: 0 | O22: 0 | P22: 0 | Q22: 0 | R22: 0
A24: Si il y a un écart, effectuez les corrections éventuelles sur les feuilles de saisie. (Voir les noms des feuilles et les numéros de ligne à droite du tableau) | Q24: Premiers mois de l'année

Sheet Info
D1: Sœurs de …

Sheet S1
H1: ="Fraternité : " & Deb_fin_exercice!C2& " Exercice " &Deb_fin_exercice!H1 -> Fraternité : Ma Fraternité Exercice 2015
B2: =Deb_fin_exercice!B10 -> Sœur numero 1 | D2: JANVIER | E2: FEVRIER | F2: MARS | G2: AVRIL | H2: MAI | I2: JUIN | J2: JUILLET | K2: AOUT | L2: SEPTEMBRE | M2: OCTOBRE | N2: NOVEMBRE | O2: DECEMBRE | P2: Total annuel (après saisie de décembre)
A3: DEPENSES | B3: Avoir en début de mois | C3: Espèces | D3: =Deb_fin_exercice!D10 -> 2.24 | E3: =D53 -> 2.24 | F3: =E53 -> 51.08 | G3: 27.25 | H3: 27.25 | I3: 39.2 | J3: 39.2 | K3: 39.2 | L3: 39.2 | M3: 39.2 | N3: 39.2 | O3: 39.2
C4: Banque | D4: =Deb_fin_exercice!E10 -> 2164.18 | E4: =D54 -> 2469.43 | F4: =E54 -> 1331.85 | G4: 1616.48 | H4: 1777.2 | I4: 1428.13 | J4: 1428.13 | K4: 1428.13 | L4: 1428.13 | M4: 1428.13 | N4: 1428.13 | O4: 1428.13
C5: Total | D5: =D3+D4 -> 2166.42 | E5: =E3+E4 -> 2471.67 | F5: 1382.93 | G5: 1643.73 | H5: 1804.45 | I5: 1467.33 | J5: 1467.33 | K5: 1467.33 | L5: 1467.33 | M5: 1467.33 | N5: 1467.33 | O5: 1467.33
B6: Alimentation - Hébergement | D6: 244.35 | E6: 264.41 | F6: 210.34 | G6: 402.08 | H6: 191.75 | P6: =SUM(D6:O6) -> 1312.93
B7: Matières consommables | D7: 49.33 | E7: 110.64 | F7: 8.64 | G7: 134.46 | H7: 56.9 | P7: =SUM(D7:O7) -> 359.97
B8: Combustibles | P8: 0
B9: Eau - Electricité - Gaz | P9: 0
B10: Pharmacie - Soins | D10: 46.2 | E10: 3.18 | F10: 16.68 | G10: 23 | H10: 82.03 | P10: 171.09
B11: Acquisition mobilier et matériel | P11: 0
B12: Fournitures administratives | D12: 131.96 | E12: 11.98 | F12: 80.96 | G12: 16.89 | P12: 241.79
B13: Vestiaire personnel des Sœurs | D13: 10 | F13: 90 | H13: 100.5 | P13: 200.5
B14: Loyer | P14: 0
B15: Entretien mobilier, matériel | P15: 0
B16: Entretien matériel de transport | H16: 608.94 | P16: 608.94
B17: Form. permanente-Ressourc. Spirituel | H17: 6 | P17: 6
B18: Culture et loisirs | P18: 0
B19: Prestations diverses | P19: 0
B20: Cotis. Pourb., Cadeaux, Frais culte | D20: 100 | F20: 2.5 | H20: 1 | P20: 103.5
B21: Déplacements | E21: 43.75 | F21: 166.46 | G21: 62.23 | H21: 128.98 | P21: 401.42
B22: Frais postaux & télécommunication | D22: 46.05 | E22: 4.16 | F22: 3 | G22: 3 | H22: 3.05 | P22: 59.26
B23: Impôts & Taxes (Tv /Habitation / PV) | P23: 0
B24: Impôts Revenu Pers. Physiques | P24: 0
B25: Charges de personnel | P25: 0
B26: Cotisation Mutuelle | P26: 0
B27: Partage - Solidarité | D27: 10 | P27: =SUM(D27:O27) -> 10
B28: Versement à la Fraternité | E28: 1500 | P28: 1500
B29: Versement au budget régional | P29: 0
B30: Donné aux Soeurs depuis caisse ou banque | P30: 0
B31: Retrait compte. courant pour caisse | P31: 0
B32: Dépenses | C32: Espèces | D32: 110 | E32: 1.16 | F32: 23.83 | G32: 0 | H32: 18.05 | P32: 153.04
C33: Banque | D33: =D34-D32 -> 527.89 | E33: =E34-E32 -> 1936.96 | F33: 554.75 | G33: 641.66 | H33: 1161.1 | I33: 0 | J33: 0 | K33: 0 | L33: 0 | M33: 0 | N33: 0 | O33: 0 | P33: 4822.36
B34: Total dépenses | C34: Total | D34: =SUM(D6:D31) -> 637.89 | E34: 1938.12 | F34: 578.58 | G34: 641.66 | H34: 1179.15 | I34: 0 | J34: 0 | K34: 0 | L34: 0 | M34: 0 | N34: 0 | O34: 0 | P34: 4975.4
A35: RECETTES | B35: Salaires nets | P35: 0
B36: Indemnités | P36: 0
B37: Rentes CAVIMAC | D37: 361.12 | E37: 361.12 | F37: 401.12 | G37: 361.12 | H37: 361.12 | P37: 1845.6
B38: Rente CARSAT - MSA - CNAV | D38: 312.19 | E38: 312.19 | F38: 312.19 | G38: 312.19 | H38: 312.19 | P38: 1560.95
B39: Autres rentes | D39: 126.07 | E39: 126.07 | F39: 126.07 | G39: 126.07 | H39: 126.07 | P39: 630.35
B40: Allocation logement | P40: 0
B41: A.P.L. | P41: 0
B42: Aide sociale | P42: 0
B43: Remboursements soins | D43: 33.76 | G43: 3 | H43: 12.65 | P43: 49.41
B44: Recettes d'accueil | P44: 0
B45: Dons reçus | P45: 0
B46: Reçus des Sœurs | P46: 0
B47: Subvention reçue du budget régional | P47: 0
B48: Mis en caisse depuis cpte courant (Srs+Frat) | P48: 0
B49: Reçu de Fraternité (caisse & banque) | D49: 110 | E49: 50 | H49: 30 | P49: 190
B50: Recettes | C50: Espèces | D50: 110 | E50: 50 | F50: 0 | G50: 0 | H50: 30 | P50: 190
C51: Banque | D51: =D52-D50 -> 833.14 | E51: =E52-E50 -> 799.38 | F51: 839.38 | G51: 802.38 | H51: 812.03 | I51: 0 | J51: 0 | K51: 0 | L51: 0 | M51: 0 | N51: 0 | O51: 0 | P51: 4086.31
C52: Total | D52: =SUM(D35:D49) -> 943.14 | E52: 849.38 | F52: 839.38 | G52: 802.38 | H52: 842.03 | I52: 0 | J52: 0 | K52: 0 | L52: 0 | M52: 0 | N52: 0 | O52: 0 | P52: 4276.31
B53: Solde à fin de mois | C53: Espèces | D53: =D3-D32+D50 -> 2.24 | E53: 51.08 | F53: 27.25 | G53: 27.25 | H53: 39.2 | I53: 39.2 | J53: 39.2 | K53: 39.2 | L53: 39.2 | M53: 39.2 | N53: 39.2 | O53: 39.2
C54: Banque | D54: =D4-D33+D51 -> 2469.43 | E54: 1331.85 | F54: 1616.48 | G54: 1777.2 | H54: 1428.13 | I54: 1428.13 | J54: 1428.13 | K54: 1428.13 | L54: 1428.13 | M54: 1428.13 | N54: 1428.13 | O54: 1428.13
C55: Total | D55: =D53+D54 -> 2471.67 | E55: =E53+E54 -> 1382.93 | F55: 1643.73 | G55: 1804.45 | H55: 1467.33 | I55: 1467.33 | J55: 1467.33 | K55: 1467.33 | L55: 1467.33 | M55: 1467.33 | N55: 1467.33 | O55: 1467.33

Sheet S2
H1: ="Fraternité : " & Deb_fin_exercice!C2& " Exercice " &Deb_fin_exercice!H1 -> Fraternité : Ma Fraternité Exercice 2015
B2: =Deb_fin_exercice!B11 -> Sœur numero 2 | D2: JANVIER | E2: FEVRIER | F2: MARS | G2: AVRIL | H2: MAI | I2: JUIN | J2: JUILLET | K2: AOUT | L2: SEPTEMBRE | M2: OCTOBRE | N2: NOVEMBRE | O2: DECEMBRE | P2: Total annuel (après saisie de décembre)
A3: DEPENSES | B3: Avoir en début de mois | C3: Espèces | D3: =Deb_fin_exercice!D11 -> 5.7 | E3: =D53 -> 21.96 | F3: =E53 -> 13.96 | G3: 17.31 | H3: 33.9 | I3: 18.2 | J3: 18.2 | K3: 18.2 | L3: 18.2 | M3: 18.2 | N3: 18.2 | O3: 18.2
C4: Banque | D4: =Deb_fin_exercice!E11 -> 767.74 | E4: =D54 -> 541.58 | F4: =E54 -> 842.19 | G4: 714.43 | H4: 708.82 | I4: 625.32 | J4: 625.32 | K4: 625.32 | L4: 625.32 | M4: 625.32 | N4: 625.32 | O4: 625.32
C5: Total | D5: =D3+D4 -> 773.44 | E5: =E3+E4 -> 563.54 | F5: 856.15 | G5: 731.74 | H5: 742.72 | I5: 643.52 | J5: 643.52 | K5: 643.52 | L5: 643.52 | M5: 643.52 | N5: 643.52 | O5: 643.52
B6: Alimentation - Hébergement | D6: 16.58 | E6: 3.06 | F6: 15.32 | H6: 23.5 | P6: =SUM(D6:O6) -> 58.46
B7: Matières consommables | D7: 34.04 | E7: 7.14 | F7: 6.62 | G7: 33.44 | P7: =SUM(D7:O7) -> 81.24
B8: Combustibles | P8: 0
B9: Eau - Electricité - Gaz | P9: 0
B10: Pharmacie - Soins | D10: 43.37 | E10: 2.96 | F10: 207.45 | G10: 37.22 | H10: 6.07 | P10: 297.07
B11: Acquisition mobilier et matériel | P11: 0
B12: Fournitures administratives | G12: 2 | P12: 2
B13: Vestiaire personnel des Sœurs | E13: 2.7 | P13: 2.7
B14: Loyer | P14: 0
B15: Entretien mobilier, matériel | P15: 0
B16: Entretien matériel de transport | G16: 6 | P16: 6
B17: Form. permanente-Ressourc. Spirituel | G17: 10 | H17: 80 | P17: 90
B18: Culture et loisirs | D18: 6 | P18: 6
B19: Prestations diverses | P19: 0
B20: Cotis. Pourb., Cadeaux, Frais culte | F20: 37.5 | G20: 2 | H20: 3.5 | P20: 43
B21: Déplacements | E21: 21.93 | F21: 25.07 | G21: 30 | H21: 60.95 | P21: 137.95
B22: Frais postaux & télécommunication | D22: 20.03 | E22: 6 | F22: 6 | G22: 4.46 | H22: 11.76 | P22: 48.25
B23: Impôts & Taxes (Tv /Habitation / PV) | P23: 0
B24: Impôts Revenu Pers. Physiques | P24: 0
B25: Charges de personnel | P25: 0
B26: Cotisation Mutuelle | P26: 0
B27: Partage - Solidarité | F27: 10 | P27: =SUM(D27:O27) -> 10
B28: Versement à la Fraternité | D28: 1200 | E28: 1000 | F28: 800 | G28: 1000 | H28: 1000 | P28: 5000
B29: Versement au budget régional | P29: 0
B30: Donné aux Soeurs depuis caisse ou banque | P30: 0
B31: Retrait compte. courant pour caisse | P31: 0
B32: Dépenses | C32: Espèces | D32: 33.74 | E32: 8 | F32: 26.65 | G32: 13.41 | H32: 15.7 | P32: 97.5
C33: Banque | D33: =D34-D32 -> 1286.28 | E33: =E34-E32 -> 1035.79 | F33: 1081.31 | G33: 1111.71 | H33: 1170.08 | I33: 0 | J33: 0 | K33: 0 | L33: 0 | M33: 0 | N33: 0 | O33: 0 | P33: 5685.17
B34: Total dépenses | C34: Total | D34: =SUM(D6:D31) -> 1320.02 | E34: 1043.79 | F34: 1107.96 | G34: 1125.12 | H34: 1185.78 | I34: 0 | J34: 0 | K34: 0 | L34: 0 | M34: 0 | N34: 0 | O34: 0 | P34: 5782.67
A35: RECETTES | B35: Salaires nets | P35: 0
B36: Indemnités | P36: 0
B37: Rentes CAVIMAC | D37: 188.81 | E37: 188.81 | F37: 188.81 | G37: 188.81 | H37: 188.81 | P37: 944.05
B38: Rente CARSAT - MSA - CNAV | D38: 196.77 | E38: 196.77 | F38: 196.77 | G38: 196.77 | H38: 196.77 | P38: 983.85
B39: Autres rentes | D39: 454.89 | E39: 946.53 | F39: 495.47 | G39: 701.02 | H39: 701 | P39: 3298.91
B40: Allocation logement | P40: 0
B41: A.P.L. | P41: 0
B42: Aide sociale | P42: 0
B43: Remboursements soins | D43: 219.65 | E43: 4.29 | F43: 72.5 | G43: 19.5 | P43: 315.94
B44: Recettes d'accueil | P44: 0
B45: Dons reçus | P45: 0
B46: Reçus des Sœurs | P46: 0
B47: Subvention reçue du budget régional | P47: 0
B48: Mis en caisse depuis cpte courant (Srs+Frat) | P48: 0
B49: Reçu de Fraternité (caisse & banque) | D49: 50 | E49: 0 | F49: 30 | G49: 30 | P49: 110
B50: Recettes | C50: Espèces | D50: 50 | E50: 0 | F50: 30 | G50: 30 | H50: 0 | P50: 110
C51: Banque | D51: =D52-D50 -> 1060.12 | E51: =E52-E50 -> 1336.4 | F51: 953.55 | G51: 1106.1 | H51: 1086.58 | I51: 0 | J51: 0 | K51: 0 | L51: 0 | M51: 0 | N51: 0 | O51: 0 | P51: 5542.75
C52: Total | D52: =SUM(D35:D49) -> 1110.12 | E52: 1336.4 | F52: 983.55 | G52: 1136.1 | H52: 1086.58 | I52: 0 | J52: 0 | K52: 0 | L52: 0 | M52: 0 | N52: 0 | O52: 0 | P52: 5652.75
B53: Solde à fin de mois | C53: Espèces | D53: =D3-D32+D50 -> 21.96 | E53: 13.96 | F53: 17.31 | G53: 33.9 | H53: 18.2 | I53: 18.2 | J53: 18.2 | K53: 18.2 | L53: 18.2 | M53: 18.2 | N53: 18.2 | O53: 18.2
C54: Banque | D54: =D4-D33+D51 -> 541.58 | E54: 842.19 | F54: 714.43 | G54: 708.82 | H54: 625.32 | I54: 625.32 | J54: 625.32 | K54: 625.32 | L54: 625.32 | M54: 625.32 | N54: 625.32 | O54: 625.32
C55: Total | D55: =D53+D54 -> 563.54 | E55: =E53+E54 -> 856.15 | F55: 731.74 | G55: 742.72 | H55: 643.52 | I55: 643.52 | J55: 643.52 | K55: 643.52 | L55: 643.52 | M55: 643.52 | N55: 643.52 | O55: 643.52

Sheet S3
H1: ="Fraternité : " & Deb_fin_exercice!C2& " Exercice " &Deb_fin_exercice!H1 -> Fraternité : Ma Fraternité Exercice 2015
B2: =Deb_fin_exercice!B12 -> Sœur numero 3 | D2: JANVIER | E2: FEVRIER | F2: MARS | G2: AVRIL | H2: MAI | I2: JUIN | J2: JUILLET | K2: AOUT | L2: SEPTEMBRE | M2: OCTOBRE | N2: NOVEMBRE | O2: DECEMBRE | P2: Total annuel (après saisie de décembre)
A3: DEPENSES | B3: Avoir en début de mois | C3: Espèces | D3: =Deb_fin_exercice!D12 -> 15.1 | E3: =D53 -> 12.8 | F3: =E53 -> 12.8 | G3: 12.8 | H3: 8.16 | I3: 21.16 | J3: 21.16 | K3: 21.16 | L3: 21.16 | M3: 21.16 | N3: 21.16 | O3: 21.16
C4: Banque | D4: =Deb_fin_exercice!E12 -> 1535.76 | E4: =D54 -> 864.73 | F4: =E54 -> 878.75 | G4: 899.2 | H4: 826.51 | I4: 1134.53 | J4: 1134.53 | K4: 1134.53 | L4: 1134.53 | M4: 1134.53 | N4: 1134.53 | O4: 1134.53
C5: Total | D5: =Deb_fin_exercice!F12 -> 1550.86 | E5: =E3+E4 -> 877.53 | F5: 891.55 | G5: 912 | H5: 834.67 | I5: 1155.69 | J5: 1155.69 | K5: 1155.69 | L5: 1155.69 | M5: 1155.69 | N5: 1155.69 | O5: 1155.69
B6: Alimentation - Hébergement | P6: =SUM(D6:O6) -> 0
B7: Matières consommables | H7: 10.9 | P7: =SUM(D7:O7) -> 10.9
B8: Combustibles | P8: 0
B9: Eau - Electricité - Gaz | P9: 0
B10: Pharmacie - Soins | D10: 45.3 | F10: 22.57 | G10: 69.3 | H10: 6.1 | P10: 143.27
B11: Acquisition mobilier et matériel | P11: 0
B12: Fournitures administratives | P12: 0
B13: Vestiaire personnel des Sœurs | P13: 0
B14: Loyer | P14: 0
B15: Entretien mobilier, matériel | P15: 0
B16: Entretien matériel de transport | P16: 0
B17: Form. permanente-Ressourc. Spirituel | G17: 10 | P17: 10
B18: Culture et loisirs | P18: 0
B19: Prestations diverses | P19: 0
B20: Cotis. Pourb., Cadeaux, Frais culte | P20: 0
B21: Déplacements | P21: 0
B22: Frais postaux & télécommunication | D22: 1.05 | G22: 1.05 | P22: 2.1
B23: Impôts & Taxes (Tv /Habitation / PV) | P23: 0
B24: Impôts Revenu Pers. Physiques | P24: 0
B25: Charges de personnel | P25: 0
B26: Cotisation Mutuelle | P26: 0
B27: Partage - Solidarité | P27: =SUM(D27:O27) -> 0
B28: Versement à la Fraternité | D28: 1450 | E28: 800 | F28: 800 | G28: 800 | H28: 500 | P28: 4350
B29: Versement au budget régional | P29: 0
B30: Donné aux Soeurs depuis caisse ou banque | P30: 0
B31: Retrait compte. courant pour caisse | P31: 0
B32: Dépenses | C32: Espèces | D32: 22.3 | E32: 0 | F32: 0 | G32: 4.64 | H32: 17 | P32: 43.94
C33: Banque | D33: =D34-D32 -> 1474.05 | E33: =E34-E32 -> 800 | F33: 822.57 | G33: 875.71 | H33: 500 | I33: 0 | J33: 0 | K33: 0 | L33: 0 | M33: 0 | N33: 0 | O33: 0 | P33: 4472.33
B34: Total dépenses | C34: Total | D34: =SUM(D6:D31) -> 1496.35 | E34: 800 | F34: 822.57 | G34: 880.35 | H34: 517 | I34: 0 | J34: 0 | K34: 0 | L34: 0 | M34: 0 | N34: 0 | O34: 0 | P34: 4516.27
A35: RECETTES | B35: Salaires nets | P35: 0
B36: Indemnités | P36: 0
B37: Rentes CAVIMAC | D37: 382.79 | E37: 382.79 | F37: 422.79 | G37: 382.79 | H37: 382.79 | P37: 1953.95
B38: Rente CARSAT - MSA - CNAV | D38: 125.61 | E38: 125.61 | F38: 125.61 | G38: 125.61 | H38: 125.61 | P38: 628.05
B39: Autres rentes | D39: 294.62 | E39: 294.62 | F39: 294.62 | G39: 294.62 | H39: 294.62 | P39: 1473.1
B40: Allocation logement | P40: 0
B41: A.P.L. | P41: 0
B42: Aide sociale | P42: 0
B43: Remboursements soins | E43: 11 | H43: 5 | P43: 16
B44: Recettes d'accueil | P44: 0
B45: Dons reçus | P45: 0
B46: Reçus des Sœurs | P46: 0
B47: Subvention reçue du budget régional | P47: 0
B48: Mis en caisse depuis cpte courant (Srs+Frat) | P48: 0
B49: Reçu de Fraternité (caisse & banque) | D49: 20 | E49: 0 | F49: 0 | G49: 0 | H49: 30 | P49: 50
B50: Recettes | C50: Espèces | D50: 20 | E50: 0 | F50: 0 | G50: 0 | H50: 30 | P50: 50
C51: Banque | D51: =D52-D50 -> 803.02 | E51: =E52-E50 -> 814.02 | F51: 843.02 | G51: 803.02 | H51: 808.02 | I51: 0 | J51: 0 | K51: 0 | L51: 0 | M51: 0 | N51: 0 | O51: 0 | P51: 4071.1
C52: Total | D52: =SUM(D35:D49) -> 823.02 | E52: 814.02 | F52: 843.02 | G52: 803.02 | H52: 838.02 | I52: 0 | J52: 0 | K52: 0 | L52: 0 | M52: 0 | N52: 0 | O52: 0 | P52: 4121.1
B53: Solde à fin de mois | C53: Espèces | D53: =D3-D32+D50 -> 12.8 | E53: 12.8 | F53: 12.8 | G53: 8.16 | H53: 21.16 | I53: 21.16 | J53: 21.16 | K53: 21.16 | L53: 21.16 | M53: 21.16 | N53: 21.16 | O53: 21.16
C54: Banque | D54: =D4-D33+D51 -> 864.73 | E54: 878.75 | F54: 899.2 | G54: 826.51 | H54: 1134.53 | I54: 1134.53 | J54: 1134.53 | K54: 1134.53 | L54: 1134.53 | M54: 1134.53 | N54: 1134.53 | O54: 1134.53
C55: Total | D55: =D53+D54 -> 877.53 | E55: =E53+E54 -> 891.55 | F55: 912 | G55: 834.67 | H55: 1155.69 | I55: 1155.69 | J55: 1155.69 | K55: 1155.69 | L55: 1155.69 | M55: 1155.69 | N55: 1155.69 | O55: 1155.69

Sheet S4
H1: ="Fraternité : " & Deb_fin_exercice!C2& " Exercice " &Deb_fin_exercice!H1 -> Fraternité : Ma Fraternité Exercice 2015
B2: =Deb_fin_exercice!B13 -> Sœur numero 4 | D2: JANVIER | E2: FEVRIER | F2: MARS | G2: AVRIL | H2: MAI | I2: JUIN | J2: JUILLET | K2: AOUT | L2: SEPTEMBRE | M2: OCTOBRE | N2: NOVEMBRE | O2: DECEMBRE | P2: Total annuel (après saisie de décembre)
A3: DEPENSES | B3: Avoir en début de mois | C3: Espèces | D3: =Deb_fin_exercice!D13 -> 5.96 | E3: =D53 -> 9.16 | F3: =E53 -> 12.36 | G3: 11.36 | H3: 0 | I3: 0 | J3: 0 | K3: 0 | L3: 0 | M3: 0 | N3: 0 | O3: 0
C4: Banque | D4: =Deb_fin_exercice!E13 -> 1190.22 | E4: =D54 -> 1050.9 | F4: =E54 -> 796.45 | G4: 854.88 | H4: 866.24 | I4: 866.24 | J4: 866.24 | K4: 866.24 | L4: 866.24 | M4: 866.24 | N4: 866.24 | O4: 866.24
C5: Total | D5: =Deb_fin_exercice!F13 -> 1196.18 | E5: =E3+E4 -> 1060.06 | F5: 808.81 | G5: 866.24 | H5: 866.24 | I5: 866.24 | J5: 866.24 | K5: 866.24 | L5: 866.24 | M5: 866.24 | N5: 866.24 | O5: 866.24
B6: Alimentation - Hébergement | E6: 6.8 | P6: =SUM(D6:O6) -> 6.8
B7: Matières consommables | D7: 5 | E7: 50.88 | P7: =SUM(D7:O7) -> 55.88
B8: Combustibles | P8: 0
B9: Eau - Electricité - Gaz | P9: 0
B10: Pharmacie - Soins | D10: 53 | E10: 30 | F10: 23 | P10: 106
B11: Acquisition mobilier et matériel | P11: 0
B12: Fournitures administratives | F12: 1 | P12: 1
B13: Vestiaire personnel des Sœurs | P13: 0
B14: Loyer | P14: 0
B15: Entretien mobilier, matériel | P15: 0
B16: Entretien matériel de transport | P16: 0
B17: Form. permanente-Ressourc. Spirituel | P17: 0
B18: Culture et loisirs | P18: 0
B19: Prestations diverses | P19: 0
B20: Cotis. Pourb., Cadeaux, Frais culte | P20: 0
B21: Déplacements | P21: 0
B22: Frais postaux & télécommunication | D22: 11.05 | P22: 11.05
B23: Impôts & Taxes (Tv /Habitation / PV) | E23: 176 | P23: 176
B24: Impôts Revenu Pers. Physiques | P24: 0
B25: Charges de personnel | P25: 0
B26: Cotisation Mutuelle | P26: 0
B27: Partage - Solidarité | P27: =SUM(D27:O27) -> 0
B28: Versement à la Fraternité | D28: 1500 | E28: 1400 | F28: 1400 | P28: 4300
B29: Versement au budget régional | P29: 0
B30: Donné aux Soeurs depuis caisse ou banque | P30: 0
B31: Retrait compte. courant pour caisse | P31: 0
B32: Dépenses | C32: Espèces | D32: 6.8 | E32: 6.8 | F32: 1 | G32: 11.36 | P32: 25.96
C33: Banque | D33: =D34-D32 -> 1562.25 | E33: =E34-E32 -> 1656.88 | F33: 1423 | G33: -11.36 | H33: 0 | I33: 0 | J33: 0 | K33: 0 | L33: 0 | M33: 0 | N33: 0 | O33: 0 | P33: 4630.77
B34: Total dépenses | C34: Total | D34: =SUM(D6:D31) -> 1569.05 | E34: 1663.68 | F34: 1424 | G34: 0 | H34: 0 | I34: 0 | J34: 0 | K34: 0 | L34: 0 | M34: 0 | N34: 0 | O34: 0 | P34: 4656.73
A35: RECETTES | B35: Salaires nets | P35: 0
B36: Indemnités | P36: 0
B37: Rentes CAVIMAC | D37: 248.11 | E37: 248.11 | F37: 248.11 | P37: 744.33
B38: Rente CARSAT - MSA - CNAV | D38: 543.95 | E38: 543.95 | F38: 543.95 | P38: 1631.85
B39: Autres rentes | D39: 610.37 | E39: 610.37 | F39: 610.37 | P39: 1831.11
B40: Allocation logement | P40: 0
B41: A.P.L. | P41: 0
B42: Aide sociale | P42: 0
B43: Remboursements soins | D43: 20.5 | F43: 79 | P43: 99.5
B44: Recettes d'accueil | P44: 0
B45: Dons reçus | P45: 0
B46: Reçus des Sœurs | P46: 0
B47: Subvention reçue du budget régional | P47: 0
B48: Mis en caisse depuis cpte courant (Srs+Frat) | P48: 0
B49: Reçu de Fraternité (caisse & banque) | D49: 10 | E49: 10 | F49: 0 | P49: 20
B50: Recettes | C50: Espèces | D50: 10 | E50: 10 | F50: 0 | P50: 20
C51: Banque | D51: =D52-D50 -> 1422.93 | E51: =E52-E50 -> 1402.43 | F51: 1481.43 | G51: 0 | H51: 0 | I51: 0 | J51: 0 | K51: 0 | L51: 0 | M51: 0 | N51: 0 | O51: 0 | P51: 4306.79
C52: Total | D52: =SUM(D35:D49) -> 1432.93 | E52: 1412.43 | F52: 1481.43 | G52: 0 | H52: 0 | I52: 0 | J52: 0 | K52: 0 | L52: 0 | M52: 0 | N52: 0 | O52: 0 | P52: 4326.79
B53: Solde à fin de mois | C53: Espèces | D53: =D3-D32+D50 -> 9.16 | E53: 12.36 | F53: 11.36 | G53: 0 | H53: 0 | I53: 0 | J53: 0 | K53: 0 | L53: 0 | M53: 0 | N53: 0 | O53: 0
C54: Banque | D54: =D4-D33+D51 -> 1050.9 | E54: 796.45 | F54: 854.88 | G54: 866.24 | H54: 866.24 | I54: 866.24 | J54: 866.24 | K54: 866.24 | L54: 866.24 | M54: 866.24 | N54: 866.24 | O54: 866.24
C55: Total | D55: =D53+D54 -> 1060.06 | E55: =E53+E54 -> 808.81 | F55: 866.24 | G55: 866.24 | H55: 866.24 | I55: 866.24 | J55: 866.24 | K55: 866.24 | L55: 866.24 | M55: 866.24 | N55: 866.24 | O55: 866.24

Sheet S5
H1: ="Fraternité : " & Deb_fin_exercice!C2& " Exercice " &Deb_fin_exercice!H1 -> Fraternité : Ma Fraternité Exercice 2015
B2: =Deb_fin_exercice!B14 -> Sœur numero 5 | D2: JANVIER | E2: FEVRIER | F2: MARS | G2: AVRIL | H2: MAI | I2: JUIN | J2: JUILLET | K2: AOUT | L2: SEPTEMBRE | M2: OCTOBRE | N2: NOVEMBRE | O2: DECEMBRE | P2: Total annuel (après saisie de décembre)
A3: DEPENSES | B3: Avoir en début de mois | C3: Espèces | D3: =Deb_fin_exercice!D14 -> 12.22 | E3: =D53 -> 46.92 | F3: =E53 -> 23.95 | G3: 7.56 | H3: 50.36 | I3: 33.09 | J3: 33.09 | K3: 33.09 | L3: 33.09 | M3: 33.09 | N3: 33.09 | O3: 33.09
C4: Banque | D4: =Deb_fin_exercice!E14 -> 571.79 | E4: =D54 -> 437.46 | F4: =E54 -> 435.88 | G4: 409.02 | H4: 213.25 | I4: 361.01 | J4: 361.01 | K4: 361.01 | L4: 361.01 | M4: 361.01 | N4: 361.01 | O4: 361.01
C5: Total | D5: =Deb_fin_exercice!F14 -> 584.01 | E5: =E3+E4 -> 484.38 | F5: 459.83 | G5: 416.58 | H5: 263.61 | I5: 394.1 | J5: 394.1 | K5: 394.1 | L5: 394.1 | M5: 394.1 | N5: 394.1 | O5: 394.1
B6: Alimentation - Hébergement | D6: 35.98 | E6: 47.28 | F6: 78.8 | G6: 46.64 | H6: 33.77 | P6: =SUM(D6:O6) -> 242.47
B7: Matières consommables | E7: 2.14 | F7: 1.09 | G7: 2.4 | H7: 9.22 | P7: =SUM(D7:O7) -> 14.85
B8: Combustibles | P8: 0
B9: Eau - Electricité - Gaz | P9: 0
B10: Pharmacie - Soins | D10: 23 | E10: 8.45 | F10: 6.3 | G10: 49.5 | H10: 20.78 | P10: 108.03
B11: Acquisition mobilier et matériel | P11: 0
B12: Fournitures administratives | P12: 0
B13: Vestiaire personnel des Sœurs | E13: 9.1 | F13: 19.28 | G13: 3.2 | P13: 31.58
B14: Loyer | P14: 0
B15: Entretien mobilier, matériel | P15: 0
B16: Entretien matériel de transport | P16: 0
B17: Form. permanente-Ressourc. Spirituel | D17: 38 | G17: 10 | P17: 48
B18: Culture et loisirs | D18: 2 | P18: 2
B19: Prestations diverses | E19: 19 | G19: 13.5 | P19: 32.5
B20: Cotis. Pourb., Cadeaux, Frais culte | E20: 1 | F20: 2 | G20: 2 | H20: 10 | P20: 15
B21: Déplacements | F21: 18 | H21: 3.5 | P21: 21.5
B22: Frais postaux & télécommunication | D22: 13.57 | E22: 2 | F22: 2 | G22: 35.55 | H22: 2.34 | P22: 55.46
B23: Impôts & Taxes (Tv /Habitation / PV) | P23: 0
B24: Impôts Revenu Pers. Physiques | P24: 0
B25: Charges de personnel | P25: 0
B26: Cotisation Mutuelle | P26: 0
B27: Partage - Solidarité | D27: 20 | P27: =SUM(D27:O27) -> 20
B28: Versement à la Fraternité | D28: 1000 | E28: 1000 | F28: 800 | G28: 1000 | H28: 800 | P28: 4600
B29: Versement au budget régional | P29: 0
B30: Donné aux Soeurs depuis caisse ou banque | P30: 0
B31: Retrait compte. courant pour caisse | P31: 0
B32: Dépenses | C32: Espèces | D32: 65.3 | E32: 62.97 | F32: 36.39 | G32: 27.2 | H32: 77.27 | P32: 269.13
C33: Banque | D33: =D34-D32 -> 1067.25 | E33: =E34-E32 -> 1026 | F33: 891.08 | G33: 1135.59 | H33: 802.34 | I33: 0 | J33: 0 | K33: 0 | L33: 0 | M33: 0 | N33: 0 | O33: 0 | P33: 4922.26
B34: Total dépenses | C34: Total | D34: =SUM(D6:D31) -> 1132.55 | E34: 1088.97 | F34: 927.47 | G34: 1162.79 | H34: 879.61 | I34: 0 | J34: 0 | K34: 0 | L34: 0 | M34: 0 | N34: 0 | O34: 0 | P34: 5191.39
A35: RECETTES | B35: Salaires nets | P35: 0
B36: Indemnités | P36: 0
B37: Rentes CAVIMAC | D37: 297.63 | E37: 297.63 | F37: 297.63 | G37: 297.63 | H37: 297.63 | P37: 1488.15
B38: Rente CARSAT - MSA - CNAV | D38: 310.11 | E38: 310.11 | F38: 350.11 | G38: 310.11 | H38: 310.11 | P38: 1590.55
B39: Autres rentes | D39: 316.58 | E39: 416.68 | F39: 216.48 | G39: 316.58 | H39: 316.58 | P39: 1582.9
B40: Allocation logement | P40: 0
B41: A.P.L. | P41: 0
B42: Aide sociale | P42: 0
B43: Remboursements soins | D43: 8.6 | G43: 15.5 | H43: 25.78 | P43: 49.88
B44: Recettes d'accueil | P44: 0
B45: Dons reçus | P45: 0
B46: Reçus des Sœurs | P46: 0
B47: Subvention reçue du budget régional | P47: 0
B48: Mis en caisse depuis cpte courant (Srs+Frat) | P48: 0
B49: Reçu de Fraternité (caisse & banque) | D49: 100 | E49: 40 | F49: 20 | G49: 70 | H49: 60 | P49: 290
B50: Recettes | C50: Espèces | D50: 100 | E50: 40 | F50: 20 | G50: 70 | H50: 60 | P50: 290
C51: Banque | D51: =D52-D50 -> 932.92 | E51: =E52-E50 -> 1024.42 | F51: 864.22 | G51: 939.82 | H51: 950.1 | I51: 0 | J51: 0 | K51: 0 | L51: 0 | M51: 0 | N51: 0 | O51: 0 | P51: 4711.48
C52: Total | D52: =SUM(D35:D49) -> 1032.92 | E52: 1064.42 | F52: 884.22 | G52: 1009.82 | H52: 1010.1 | I52: 0 | J52: 0 | K52: 0 | L52: 0 | M52: 0 | N52: 0 | O52: 0 | P52: 5001.48
B53: Solde à fin de mois | C53: Espèces | D53: =D3-D32+D50 -> 46.92 | E53: 23.95 | F53: 7.56 | G53: 50.36 | H53: 33.09 | I53: 33.09 | J53: 33.09 | K53: 33.09 | L53: 33.09 | M53: 33.09 | N53: 33.09 | O53: 33.09
C54: Banque | D54: =D4-D33+D51 -> 437.46 | E54: 435.88 | F54: 409.02 | G54: 213.25 | H54: 361.01 | I54: 361.01 | J54: 361.01 | K54: 361.01 | L54: 361.01 | M54: 361.01 | N54: 361.01 | O54: 361.01
C55: Total | D55: =D53+D54 -> 484.38 | E55: =E53+E54 -> 459.83 | F55: 416.58 | G55: 263.61 | H55: 394.1 | I55: 394.1 | J55: 394.1 | K55: 394.1 | L55: 394.1 | M55: 394.1 | N55: 394.1 | O55: 394.1

Sheet S6
H1: ="Fraternité : " & Deb_fin_exercice!C2& " Exercice " &Deb_fin_exercice!H1 -> Fraternité : Ma Fraternité Exercice 2015
B2: =Deb_fin_exercice!B15 -> Sœur numero 6 | D2: JANVIER | E2: FEVRIER | F2: MARS | G2: AVRIL | H2: MAI | I2: JUIN | J2: JUILLET | K2: AOUT | L2: SEPTEMBRE | M2: OCTOBRE | N2: NOVEMBRE | O2: DECEMBRE | P2: Total annuel (après saisie de décembre)
A3: DEPENSES | B3: Avoir en début de mois | C3: Espèces | D3: =Deb_fin_exercice!D15 -> 13.74 | E3: =D53 -> 5.04 | F3: =E53 -> 24.48 | G3: 20.77 | H3: 6.9 | I3: 12.49 | J3: 12.49 | K3: 12.49 | L3: 12.49 | M3: 12.49 | N3: 12.49 | O3: 12.49
C4: Banque | D4: =Deb_fin_exercice!E15 -> 798.29 | E4: =D54 -> 1126.07 | F4: =E54 -> 515.35 | G4: 595.14 | H4: 441.57 | I4: 348.55 | J4: 348.55 | K4: 348.55 | L4: 348.55 | M4: 348.55 | N4: 348.55 | O4: 348.55
C5: Total | D5: =Deb_fin_exercice!F15 -> 812.03 | E5: =E3+E4 -> 1131.11 | F5: 539.83 | G5: 615.91 | H5: 448.47 | I5: 361.04 | J5: 361.04 | K5: 361.04 | L5: 361.04 | M5: 361.04 | N5: 361.04 | O5: 361.04
B6: Alimentation - Hébergement | G6: 0.9 | P6: =SUM(D6:O6) -> 0.9
B7: Matières consommables | D7: 6.4 | E7: 82.91 | F7: 13.72 | G7: 41.75 | H7: 19.61 | P7: =SUM(D7:O7) -> 164.39
B8: Combustibles | P8: 0
B9: Eau - Electricité - Gaz | P9: 0
B10: Pharmacie - Soins | D10: 70.53 | E10: 35.75 | F10: 53.49 | G10: 49.33 | P10: 209.1
B11: Acquisition mobilier et matériel | P11: 0
B12: Fournitures administratives | G12: 7.89 | H12: 3.5 | P12: 11.39
B13: Vestiaire personnel des Sœurs | G13: 35 | H13: 73 | P13: 108
B14: Loyer | P14: 0
B15: Entretien mobilier, matériel | P15: 0
B16: Entretien matériel de transport | P16: 0
B17: Form. permanente-Ressourc. Spirituel | G17: 20 | P17: 20
B18: Culture et loisirs | E18: 4.5 | P18: 4.5
B19: Prestations diverses | D19: 9.3 | P19: 9.3
B20: Cotis. Pourb., Cadeaux, Frais culte | E20: 17 | F20: 2.5 | G20: 4 | H20: 0.1 | P20: 23.6
B21: Déplacements | P21: 0
B22: Frais postaux & télécommunication | D22: 1.05 | E22: 13 | G22: 8.55 | H22: 11.2 | P22: 33.8
B23: Impôts & Taxes (Tv /Habitation / PV) | P23: 0
B24: Impôts Revenu Pers. Physiques | P24: 0
B25: Charges de personnel | P25: 0
B26: Cotisation Mutuelle | P26: 0
B27: Partage - Solidarité | P27: =SUM(D27:O27) -> 0
B28: Versement à la Fraternité | D28: 1000 | E28: 1800 | F28: 1200 | G28: 1300 | H28: 1300 | P28: 6600
B29: Versement au budget régional | P29: 0
B30: Donné aux Soeurs depuis caisse ou banque | P30: 0
B31: Retrait compte. courant pour caisse | P31: 0
B32: Dépenses | C32: Espèces | D32: 8.7 | E32: 30.56 | F32: 23.71 | G32: 33.87 | H32: 34.41 | P32: 131.25
C33: Banque | D33: =D34-D32 -> 1078.58 | E33: =E34-E32 -> 1922.6 | F33: 1246 | G33: 1433.55 | H33: 1373 | I33: 0 | J33: 0 | K33: 0 | L33: 0 | M33: 0 | N33: 0 | O33: 0 | P33: 7053.73
B34: Total dépenses | C34: Total | D34: =SUM(D6:D31) -> 1087.28 | E34: 1953.16 | F34: 1269.71 | G34: 1467.42 | H34: 1407.41 | I34: 0 | J34: 0 | K34: 0 | L34: 0 | M34: 0 | N34: 0 | O34: 0 | P34: 7184.98
A35: RECETTES | B35: Salaires nets | P35: 0
B36: Indemnités | P36: 0
B37: Rentes CAVIMAC | D37: 246.65 | E37: 246.65 | F37: 246.65 | G37: 246.65 | H37: 246.65 | P37: 1233.25
B38: Rente CARSAT - MSA - CNAV | D38: 426.91 | E38: 426.91 | F38: 426.91 | G38: 426.91 | H38: 426.91 | P38: 2134.55
B39: Autres rentes | D39: 668.42 | E39: 606.42 | F39: 606.42 | G39: 606.42 | H39: 606.42 | P39: 3094.1
B40: Allocation logement | P40: 0
B41: A.P.L. | P41: 0
B42: Aide sociale | P42: 0
B43: Remboursements soins | D43: 64.38 | E43: 31.9 | F43: 45.81 | P43: 142.09
B44: Recettes d'accueil | P44: 0
B45: Dons reçus | P45: 0
B46: Reçus des Sœurs | P46: 0
B47: Subvention reçue du budget régional | P47: 0
B48: Mis en caisse depuis cpte courant (Srs+Frat) | P48: 0
B49: Reçu de Fraternité (caisse & banque) | E49: 50 | F49: 20 | G49: 20 | H49: 40 | P49: 130
B50: Recettes | C50: Espèces | D50: 0 | E50: 50 | F50: 20 | G50: 20 | H50: 40 | P50: 130
C51: Banque | D51: =D52-D50 -> 1406.36 | E51: =E52-E50 -> 1311.88 | F51: 1325.79 | G51: 1279.98 | H51: 1279.98 | I51: 0 | J51: 0 | K51: 0 | L51: 0 | M51: 0 | N51: 0 | O51: 0 | P51: 6603.99
C52: Total | D52: =SUM(D35:D49) -> 1406.36 | E52: 1361.88 | F52: 1345.79 | G52: 1299.98 | H52: 1319.98 | I52: 0 | J52: 0 | K52: 0 | L52: 0 | M52: 0 | N52: 0 | O52: 0 | P52: 6733.99
B53: Solde à fin de mois | C53: Espèces | D53: =D3-D32+D50 -> 5.04 | E53: 24.48 | F53: 20.77 | G53: 6.9 | H53: 12.49 | I53: 12.49 | J53: 12.49 | K53: 12.49 | L53: 12.49 | M53: 12.49 | N53: 12.49 | O53: 12.49
C54: Banque | D54: =D4-D33+D51 -> 1126.07 | E54: 515.35 | F54: 595.14 | G54: 441.57 | H54: 348.55 | I54: 348.55 | J54: 348.55 | K54: 348.55 | L54: 348.55 | M54: 348.55 | N54: 348.55 | O54: 348.55
C55: Total | D55: =D53+D54 -> 1131.11 | E55: =E53+E54 -> 539.83 | F55: 615.91 | G55: 448.47 | H55: 361.04 | I55: 361.04 | J55: 361.04 | K55: 361.04 | L55: 361.04 | M55: 361.04 | N55: 361.04 | O55: 361.04

Sheet S7
H1: ="Fraternité : " & Deb_fin_exercice!C2& " Exercice " &Deb_fin_exercice!H1 -> Fraternité : Ma Fraternité Exercice 2015
B2: =Deb_fin_exercice!B16 -> Sœur numero 7 | D2: JANVIER | E2: FEVRIER | F2: MARS | G2: AVRIL | H2: MAI | I2: JUIN | J2: JUILLET | K2: AOUT | L2: SEPTEMBRE | M2: OCTOBRE | N2: NOVEMBRE | O2: DECEMBRE | P2: Total annuel (après saisie de décembre)
A3: DEPENSES | B3: Avoir en début de mois | C3: Espèces | D3: =Deb_fin_exercice!D16 -> 33.77 | E3: =D53 -> 38.44 | F3: =E53 -> 26.65 | G3: 35.92 | H3: 33.69 | I3: 19.3 | J3: 19.3 | K3: 19.3 | L3: 19.3 | M3: 19.3 | N3: 19.3 | O3: 19.3
C4: Banque | D4: =Deb_fin_exercice!E16 -> 1243.75 | E4: =D54 -> 690.88 | F4: =E54 -> 428.13 | G4: 781.18 | H4: 375.81 | I4: 580.17 | J4: 580.17 | K4: 580.17 | L4: 580.17 | M4: 580.17 | N4: 580.17 | O4: 580.17
C5: Total | D5: =Deb_fin_exercice!F16 -> 1277.52 | E5: =E3+E4 -> 729.32 | F5: 454.78 | G5: 817.1 | H5: 409.5 | I5: 599.47 | J5: 599.47 | K5: 599.47 | L5: 599.47 | M5: 599.47 | N5: 599.47 | O5: 599.47
B6: Alimentation - Hébergement | D6: 10 | E6: 1.53 | F6: 2.74 | G6: 1.14 | H6: 1.14 | P6: =SUM(D6:O6) -> 16.55
B7: Matières consommables | D7: 1.43 | E7: 1.96 | F7: 5.09 | G7: 1.19 | P7: =SUM(D7:O7) -> 9.67
B8: Combustibles | P8: 0
B9: Eau - Electricité - Gaz | P9: 0
B10: Pharmacie - Soins | D10: 283.92 | F10: 28 | G10: 46 | H10: 97.95 | P10: 455.87
B11: Acquisition mobilier et matériel | P11: 0
B12: Fournitures administratives | D12: 3.9 | H12: 1.25 | P12: 5.15
B13: Vestiaire personnel des Sœurs | H13: 18 | P13: 18
B14: Loyer | P14: 0
B15: Entretien mobilier, matériel | P15: 0
B16: Entretien matériel de transport | P16: 0
B17: Form. permanente-Ressourc. Spirituel | F17: 15 | P17: 15
B18: Culture et loisirs | P18: 0
B19: Prestations diverses | P19: 0
B20: Cotis. Pourb., Cadeaux, Frais culte | E20: 8.3 | F20: 1 | G20: 3 | P20: 12.3
B21: Déplacements | F21: 16.9 | G21: 16.9 | P21: 33.8
B22: Frais postaux & télécommunication | D22: 1.05 | E22: 13.8 | G22: 1.05 | H22: 8.16 | P22: 24.06
B23: Impôts & Taxes (Tv /Habitation / PV) | P23: 0
B24: Impôts Revenu Pers. Physiques | P24: 0
B25: Charges de personnel | P25: 0
B26: Cotisation Mutuelle | P26: 0
B27: Partage - Solidarité | P27: =SUM(D27:O27) -> 0
B28: Versement à la Fraternité | D28: 1300 | E28: 1000 | F28: 800 | G28: 1000 | H28: 600 | P28: 4700
B29: Versement au budget régional | P29: 0
B30: Donné aux Soeurs depuis caisse ou banque | P30: 0
B31: Retrait compte. courant pour caisse | P31: 0
B32: Dépenses | C32: Espèces | D32: 15.33 | E32: 11.79 | F32: 30.73 | G32: 22.23 | H32: 14.39 | P32: 94.47
C33: Banque | D33: =D34-D32 -> 1584.97 | E33: =E34-E32 -> 1013.8 | F33: 838 | G33: 1047.05 | H33: 712.11 | I33: 0 | J33: 0 | K33: 0 | L33: 0 | M33: 0 | N33: 0 | O33: 0 | P33: 5195.93
B34: Total dépenses | C34: Total | D34: =SUM(D6:D31) -> 1600.3 | E34: 1025.59 | F34: 868.73 | G34: 1069.28 | H34: 726.5 | I34: 0 | J34: 0 | K34: 0 | L34: 0 | M34: 0 | N34: 0 | O34: 0 | P34: 5290.4
A35: RECETTES | B35: Salaires nets | P35: 0
B36: Indemnités | P36: 0
B37: Rentes CAVIMAC | D37: 333.57 | E37: 333.57 | F37: 373.57 | G37: 333.57 | H37: 333.57 | P37: 1707.85
B38: Rente CARSAT - MSA - CNAV | D38: 277.51 | E38: 277.51 | F38: 277.51 | G38: 277.51 | H38: 277.51 | P38: 1387.55
B39: Autres rentes | D39: 139.97 | E39: 139.97 | F39: 139.97 | H39: 279.94 | P39: 699.85
B40: Allocation logement | P40: 0
B41: A.P.L. | P41: 0
B42: Aide sociale | P42: 0
B43: Remboursements soins | D43: 281.05 | F43: 400 | G43: 30.6 | H43: 25.45 | P43: 737.1
B44: Recettes d'accueil | P44: 0
B45: Dons reçus | P45: 0
B46: Reçus des Sœurs | P46: 0
B47: Subvention reçue du budget régional | P47: 0
B48: Mis en caisse depuis cpte courant (Srs+Frat) | P48: 0
B49: Reçu de Fraternité (caisse & banque) | D49: 20 | E49: 0 | F49: 40 | G49: 20 | P49: 80
B50: Recettes | C50: Espèces | D50: 20 | E50: 0 | F50: 40 | G50: 20 | H50: 0 | P50: 80
C51: Banque | D51: =D52-D50 -> 1032.1 | E51: =E52-E50 -> 751.05 | F51: 1191.05 | G51: 641.68 | H51: 916.47 | I51: 0 | J51: 0 | K51: 0 | L51: 0 | M51: 0 | N51: 0 | O51: 0 | P51: 4532.35
C52: Total | D52: =SUM(D35:D49) -> 1052.1 | E52: 751.05 | F52: 1231.05 | G52: 661.68 | H52: 916.47 | I52: 0 | J52: 0 | K52: 0 | L52: 0 | M52: 0 | N52: 0 | O52: 0 | P52: 4612.35
B53: Solde à fin de mois | C53: Espèces | D53: =D3-D32+D50 -> 38.44 | E53: 26.65 | F53: 35.92 | G53: 33.69 | H53: 19.3 | I53: 19.3 | J53: 19.3 | K53: 19.3 | L53: 19.3 | M53: 19.3 | N53: 19.3 | O53: 19.3
C54: Banque | D54: =D4-D33+D51 -> 690.88 | E54: 428.13 | F54: 781.18 | G54: 375.81 | H54: 580.17 | I54: 580.17 | J54: 580.17 | K54: 580.17 | L54: 580.17 | M54: 580.17 | N54: 580.17 | O54: 580.17
C55: Total | D55: =D53+D54 -> 729.32 | E55: =E53+E54 -> 454.78 | F55: 817.1 | G55: 409.5 | H55: 599.47 | I55: 599.47 | J55: 599.47 | K55: 599.47 | L55: 599.47 | M55: 599.47 | N55: 599.47 | O55: 599.47

Sheet S8
H1: ="Fraternité : " & Deb_fin_exercice!C2& " Exercice " &Deb_fin_exercice!H1 -> Fraternité : Ma Fraternité Exercice 2015
B2: =Deb_fin_exercice!B17 -> Sœur numero 8 | D2: JANVIER | E2: FEVRIER | F2: MARS | G2: AVRIL | H2: MAI | I2: JUIN | J2: JUILLET | K2: AOUT | L2: SEPTEMBRE | M2: OCTOBRE | N2: NOVEMBRE | O2: DECEMBRE | P2: Total annuel (après saisie de décembre)
A3: DEPENSES | B3: Avoir en début de mois | C3: Espèces | D3: =Deb_fin_exercice!D17 -> 23.47 | E3: =D53 -> 19.76 | F3: =E53 -> 26.31 | G3: 21.91 | H3: 13.4 | I3: 13.4 | J3: 13.4 | K3: 13.4 | L3: 13.4 | M3: 13.4 | N3: 13.4 | O3: 13.4
C4: Banque | D4: =Deb_fin_exercice!E17 -> 2255.69 | E4: =D54 -> 1383.65 | F4: =E54 -> 2384.63 | G4: 1567.16 | H4: 1844.17 | I4: 2214.35 | J4: 2214.35 | K4: 2214.35 | L4: 2214.35 | M4: 2214.35 | N4: 2214.35 | O4: 2214.35
C5: Total | D5: =Deb_fin_exercice!F17 -> 2279.16 | E5: =E3+E4 -> 1403.41 | F5: 2410.94 | G5: 1589.07 | H5: 1857.57 | I5: 2227.75 | J5: 2227.75 | K5: 2227.75 | L5: 2227.75 | M5: 2227.75 | N5: 2227.75 | O5: 2227.75
B6: Alimentation - Hébergement | D6: 7.64 | E6: 10 | F6: 8.49 | G6: 24.71 | H6: 11.7 | P6: =SUM(D6:O6) -> 62.54
B7: Matières consommables | D7: 46.57 | E7: 83.05 | F7: 43.91 | G7: 82.4 | H7: 49.9 | P7: =SUM(D7:O7) -> 305.83
B8: Combustibles | P8: 0
B9: Eau - Electricité - Gaz | P9: 0
B10: Pharmacie - Soins | D10: 76.42 | E10: 161 | F10: 40 | G10: 58 | H10: 85.59 | P10: 421.01
B11: Acquisition mobilier et matériel | P11: 0
B12: Fournitures administratives | P12: 0
B13: Vestiaire personnel des Sœurs | F13: 14 | H13: 49 | P13: 63
B14: Loyer | P14: 0
B15: Entretien mobilier, matériel | P15: 0
B16: Entretien matériel de transport | P16: 0
B17: Form. permanente-Ressourc. Spirituel | P17: 0
B18: Culture et loisirs | E18: 4.4 | H18: 4.4 | P18: 8.8
B19: Prestations diverses | P19: 0
B20: Cotis. Pourb., Cadeaux, Frais culte | G20: 0.4 | P20: 0.4
B21: Déplacements | P21: 0
B22: Frais postaux & télécommunication | D22: 11.5 | G22: 28.8 | P22: 40.3
B23: Impôts & Taxes (Tv /Habitation / PV) | P23: 0
B24: Impôts Revenu Pers. Physiques | P24: 0
B25: Charges de personnel | P25: 0
B26: Cotisation Mutuelle | P26: 0
B27: Partage - Solidarité | P27: =SUM(D27:O27) -> 0
B28: Versement à la Fraternité | D28: 2000 | F28: 2000 | G28: 1500 | P28: 5500
B29: Versement au budget régional | P29: 0
B30: Donné aux Soeurs depuis caisse ou banque | P30: 0
B31: Retrait compte. courant pour caisse | P31: 0
B32: Dépenses | C32: Espèces | D32: 23.71 | E32: 33.45 | F32: 44.4 | G32: 48.51 | H32: 30 | P32: 180.07
C33: Banque | D33: =D34-D32 -> 2118.42 | E33: =E34-E32 -> 225 | F33: 2062 | G33: 1645.8 | H33: 170.59 | I33: 0 | J33: 0 | K33: 0 | L33: 0 | M33: 0 | N33: 0 | O33: 0 | P33: 6221.81
B34: Total dépenses | C34: Total | D34: =SUM(D6:D31) -> 2142.13 | E34: 258.45 | F34: 2106.4 | G34: 1694.31 | H34: 200.59 | I34: 0 | J34: 0 | K34: 0 | L34: 0 | M34: 0 | N34: 0 | O34: 0 | P34: 6401.88
A35: RECETTES | B35: Salaires nets | P35: 0
B36: Indemnités | P36: 0
B37: Rentes CAVIMAC | D37: 229.51 | E37: 229.51 | F37: 229.51 | G37: 459.02 | P37: 1147.55
B38: Rente CARSAT - MSA - CNAV | D38: 447.1 | E38: 447.1 | F38: 447.1 | G38: 894.2 | P38: 2235.5
B39: Autres rentes | D39: 540.77 | E39: 540.77 | F39: 540.77 | G39: 540.77 | H39: 540.77 | P39: 2703.85
B40: Allocation logement | P40: 0
B41: A.P.L. | P41: 0
B42: Aide sociale | P42: 0
B43: Remboursements soins | D43: 29 | E43: 8.6 | F43: 27.15 | G43: 28.82 | P43: 93.57
B44: Recettes d'accueil | P44: 0
B45: Dons reçus | P45: 0
B46: Reçus des Sœurs | P46: 0
B47: Subvention reçue du budget régional | P47: 0
B48: Mis en caisse depuis cpte courant (Srs+Frat) | P48: 0
B49: Reçu de Fraternité (caisse & banque) | D49: 20 | E49: 40 | F49: 40 | G49: 40 | H49: 30 | P49: 170
B50: Recettes | C50: Espèces | D50: 20 | E50: 40 | F50: 40 | G50: 40 | H50: 30 | P50: 170
C51: Banque | D51: =D52-D50 -> 1246.38 | E51: =E52-E50 -> 1225.98 | F51: 1244.53 | G51: 1922.81 | H51: 540.77 | I51: 0 | J51: 0 | K51: 0 | L51: 0 | M51: 0 | N51: 0 | O51: 0 | P51: 6180.47
C52: Total | D52: =SUM(D35:D49) -> 1266.38 | E52: 1265.98 | F52: 1284.53 | G52: 1962.81 | H52: 570.77 | I52: 0 | J52: 0 | K52: 0 | L52: 0 | M52: 0 | N52: 0 | O52: 0 | P52: 6350.47
B53: Solde à fin de mois | C53: Espèces | D53: =D3-D32+D50 -> 19.76 | E53: 26.31 | F53: 21.91 | G53: 13.4 | H53: 13.4 | I53: 13.4 | J53: 13.4 | K53: 13.4 | L53: 13.4 | M53: 13.4 | N53: 13.4 | O53: 13.4
C54: Banque | D54: =D4-D33+D51 -> 1383.65 | E54: 2384.63 | F54: 1567.16 | G54: 1844.17 | H54: 2214.35 | I54: 2214.35 | J54: 2214.35 | K54: 2214.35 | L54: 2214.35 | M54: 2214.35 | N54: 2214.35 | O54: 2214.35
C55: Total | D55: =D53+D54 -> 1403.41 | E55: =E53+E54 -> 2410.94 | F55: 1589.07 | G55: 1857.57 | H55: 2227.75 | I55: 2227.75 | J55: 2227.75 | K55: 2227.75 | L55: 2227.75 | M55: 2227.75 | N55: 2227.75 | O55: 2227.75

Sheet S9
H1: ="Fraternité : " & Deb_fin_exercice!C2& " Exercice " &Deb_fin_exercice!H1 -> Fraternité : Ma Fraternité Exercice 2015
B2: =Deb_fin_exercice!B18 -> Sœur numero 9 | D2: JANVIER | E2: FEVRIER | F2: MARS | G2: AVRIL | H2: MAI | I2: JUIN | J2: JUILLET | K2: AOUT | L2: SEPTEMBRE | M2: OCTOBRE | N2: NOVEMBRE | O2: DECEMBRE | P2: Total annuel (après saisie de décembre)
A3: DEPENSES | B3: Avoir en début de mois | C3: Espèces | D3: =Deb_fin_exercice!D18 -> 17.34 | E3: =D53 -> 48.74 | F3: =E53 -> 12.55 | G3: 2.05 | H3: 8.05 | I3: 24.95 | J3: 24.95 | K3: 24.95 | L3: 24.95 | M3: 24.95 | N3: 24.95 | O3: 24.95
C4: Banque | D4: =Deb_fin_exercice!E18 -> 1332.92 | E4: =D54 -> 1272.25 | F4: =E54 -> 1193.58 | G4: 1199.96 | H4: 1140.79 | I4: 1881.82 | J4: 1881.82 | K4: 1881.82 | L4: 1881.82 | M4: 1881.82 | N4: 1881.82 | O4: 1881.82
C5: Total | D5: =Deb_fin_exercice!F18 -> 1350.26 | E5: =E3+E4 -> 1320.99 | F5: 1206.13 | G5: 1202.01 | H5: 1148.84 | I5: 1906.77 | J5: 1906.77 | K5: 1906.77 | L5: 1906.77 | M5: 1906.77 | N5: 1906.77 | O5: 1906.77
B6: Alimentation - Hébergement | D6: 8.1 | E6: 11.19 | F6: 11.15 | G6: 12 | H6: 5 | P6: =SUM(D6:O6) -> 47.44
B7: Matières consommables | D7: 36.8 | E7: 44.8 | F7: 20.35 | G7: 4 | H7: 59.45 | P7: =SUM(D7:O7) -> 165.4
B8: Combustibles | P8: 0
B9: Eau - Electricité - Gaz | P9: 0
B10: Pharmacie - Soins | D10: 32.2 | E10: 20.55 | F10: 60.7 | G10: 29.7 | H10: 13.4 | P10: 156.55
B11: Acquisition mobilier et matériel | P11: 0
B12: Fournitures administratives | D12: 15.25 | E12: 10 | G12: 4.55 | P12: 29.8
B13: Vestiaire personnel des Sœurs | D13: 15 | E13: 15 | G13: 15 | P13: 45
B14: Loyer | P14: 0
B15: Entretien mobilier, matériel | P15: 0
B16: Entretien matériel de transport | P16: 0
B17: Form. permanente-Ressourc. Spirituel | G17: 10 | P17: 10
B18: Culture et loisirs | G18: 14 | P18: 14
B19: Prestations diverses | P19: 0
B20: Cotis. Pourb., Cadeaux, Frais culte | D20: 8 | E20: 19.4 | H20: 5.1 | P20: 32.5
B21: Déplacements | P21: 0
B22: Frais postaux & télécommunication | H22: 15.2 | P22: 15.2
B23: Impôts & Taxes (Tv /Habitation / PV) | P23: 0
B24: Impôts Revenu Pers. Physiques | P24: 0
B25: Charges de personnel | P25: 0
B26: Cotisation Mutuelle | P26: 0
B27: Partage - Solidarité | P27: =SUM(D27:O27) -> 0
B28: Versement à la Fraternité | D28: 800 | E28: 800 | F28: 800 | G28: 800 | P28: 3200
B29: Versement au budget régional | P29: 0
B30: Donné aux Soeurs depuis caisse ou banque | P30: 0
B31: Retrait compte. courant pour caisse | P31: 0
B32: Dépenses | C32: Espèces | D32: 48.6 | E32: 36.19 | F32: 50.5 | G32: 24 | H32: 33.1 | P32: 192.39
C33: Banque | D33: =D34-D32 -> 866.75 | E33: =E34-E32 -> 884.75 | F33: 841.7 | G33: 865.25 | H33: 65.05 | I33: 0 | J33: 0 | K33: 0 | L33: 0 | M33: 0 | N33: 0 | O33: 0 | P33: 3523.5
B34: Total dépenses | C34: Total | D34: =SUM(D6:D31) -> 915.35 | E34: 920.94 | F34: 892.2 | G34: 889.25 | H34: 98.15 | I34: 0 | J34: 0 | K34: 0 | L34: 0 | M34: 0 | N34: 0 | O34: 0 | P34: 3715.89
A35: RECETTES | B35: Salaires nets | P35: 0
B36: Indemnités | P36: 0
B37: Rentes CAVIMAC | D37: 382.79 | E37: 382.79 | F37: 422.79 | G37: 382.79 | H37: 382.79 | P37: 1953.95
B38: Rente CARSAT - MSA - CNAV | D38: 378.7 | E38: 378.7 | F38: 378.7 | G38: 378.7 | H38: 378.7 | P38: 1893.5
B39: Autres rentes | D39: 44.59 | E39: 44.59 | F39: 44.59 | G39: 44.59 | H39: 44.59 | P39: 222.95
B40: Allocation logement | P40: 0
B41: A.P.L. | P41: 0
B42: Aide sociale | P42: 0
B43: Remboursements soins | F43: 2 | P43: 2
B44: Recettes d'accueil | P44: 0
B45: Dons reçus | P45: 0
B46: Reçus des Sœurs | P46: 0
B47: Subvention reçue du budget régional | P47: 0
B48: Mis en caisse depuis cpte courant (Srs+Frat) | P48: 0
B49: Reçu de Fraternité (caisse & banque) | D49: 80 | E49: 0 | F49: 40 | G49: 30 | H49: 50 | P49: 200
B50: Recettes | C50: Espèces | D50: 80 | E50: 0 | F50: 40 | G50: 30 | H50: 50 | P50: 200
C51: Banque | D51: =D52-D50 -> 806.08 | E51: =E52-E50 -> 806.08 | F51: 848.08 | G51: 806.08 | H51: 806.08 | I51: 0 | J51: 0 | K51: 0 | L51: 0 | M51: 0 | N51: 0 | O51: 0 | P51: 4072.4
C52: Total | D52: =SUM(D35:D49) -> 886.08 | E52: 806.08 | F52: 888.08 | G52: 836.08 | H52: 856.08 | I52: 0 | J52: 0 | K52: 0 | L52: 0 | M52: 0 | N52: 0 | O52: 0 | P52: 4272.4
B53: Solde à fin de mois | C53: Espèces | D53: =D3-D32+D50 -> 48.74 | E53: 12.55 | F53: 2.05 | G53: 8.05 | H53: 24.95 | I53: 24.95 | J53: 24.95 | K53: 24.95 | L53: 24.95 | M53: 24.95 | N53: 24.95 | O53: 24.95
C54: Banque | D54: =D4-D33+D51 -> 1272.25 | E54: 1193.58 | F54: 1199.96 | G54: 1140.79 | H54: 1881.82 | I54: 1881.82 | J54: 1881.82 | K54: 1881.82 | L54: 1881.82 | M54: 1881.82 | N54: 1881.82 | O54: 1881.82
C55: Total | D55: =D53+D54 -> 1320.99 | E55: =E53+E54 -> 1206.13 | F55: 1202.01 | G55: 1148.84 | H55: 1906.77 | I55: 1906.77 | J55: 1906.77 | K55: 1906.77 | L55: 1906.77 | M55: 1906.77 | N55: 1906.77 | O55: 1906.77

Sheet S10
H1: ="Fraternité : " & Deb_fin_exercice!C2& " Exercice " &Deb_fin_exercice!H1 -> Fraternité : Ma Fraternité Exercice 2015
B2: =Deb_fin_exercice!B19 -> Sœur numero 10 | D2: JANVIER | E2: FEVRIER | F2: MARS | G2: AVRIL | H2: MAI | I2: JUIN | J2: JUILLET | K2: AOUT | L2: SEPTEMBRE | M2: OCTOBRE | N2: NOVEMBRE | O2: DECEMBRE | P2: Total annuel (après saisie de décembre)
A3: DEPENSES | B3: Avoir en début de mois | C3: Espèces | D3: =Deb_fin_exercice!D19 -> 8.13 | E3: =D53 -> 6.72 | F3: =E53 -> 21.45 | G3: 13.26 | H3: 9.14 | I3: 3.3 | J3: 3.3 | K3: 3.3 | L3: 3.3 | M3: 3.3 | N3: 3.3 | O3: 3.3
C4: Banque | D4: =Deb_fin_exercice!E19 -> 1008.92 | E4: =D54 -> 778.13 | F4: =E54 -> 572.39 | G4: 814.4 | H4: 1114.89 | I4: 863.27 | J4: 863.27 | K4: 863.27 | L4: 863.27 | M4: 863.27 | N4: 863.27 | O4: 863.27
C5: Total | D5: =Deb_fin_exercice!F19 -> 1017.05 | E5: =E3+E4 -> 784.85 | F5: 593.84 | G5: 827.66 | H5: 1124.03 | I5: 866.57 | J5: 866.57 | K5: 866.57 | L5: 866.57 | M5: 866.57 | N5: 866.57 | O5: 866.57
B6: Alimentation - Hébergement | E6: 2.63 | G6: 3.93 | P6: =SUM(D6:O6) -> 6.56
B7: Matières consommables | D7: 4.91 | E7: 24 | F7: 4.19 | G7: 40 | H7: 15.68 | P7: =SUM(D7:O7) -> 88.78
B8: Combustibles | P8: 0
B9: Eau - Electricité - Gaz | P9: 0
B10: Pharmacie - Soins | D10: 41.3 | E10: 18.5 | F10: 75 | G10: 18.55 | H10: 92.08 | P10: 245.43
B11: Acquisition mobilier et matériel | P11: 0
B12: Fournitures administratives | G12: 4 | P12: 4
B13: Vestiaire personnel des Sœurs | D13: 1.2 | F13: 1.2 | P13: 2.4
B14: Loyer | P14: 0
B15: Entretien mobilier, matériel | P15: 0
B16: Entretien matériel de transport | P16: 0
B17: Form. permanente-Ressourc. Spirituel | F17: 10 | H17: 2 | P17: 12
B18: Culture et loisirs | P18: 0
B19: Prestations diverses | P19: 0
B20: Cotis. Pourb., Cadeaux, Frais culte | F20: 2.8 | G20: 0.5 | H20: 1 | P20: 4.3
B21: Déplacements | P21: 0
B22: Frais postaux & télécommunication | D22: 6.35 | E22: 2.64 | G22: 6.74 | H22: 0.66 | P22: 16.39
B23: Impôts & Taxes (Tv /Habitation / PV) | P23: 0
B24: Impôts Revenu Pers. Physiques | P24: 0
B25: Charges de personnel | P25: 0
B26: Cotisation Mutuelle | P26: 0
B27: Partage - Solidarité | P27: =SUM(D27:O27) -> 0
B28: Versement à la Fraternité | D28: 1000 | E28: 1000 | F28: 600 | G28: 500 | H28: 1000 | P28: 4100
B29: Versement au budget régional | P29: 0
B30: Donné aux Soeurs depuis caisse ou banque | P30: 0
B31: Retrait compte. courant pour caisse | P31: 0
B32: Dépenses | C32: Espèces | D32: 11.41 | E32: 5.27 | F32: 8.19 | G32: 14.12 | H32: 25.84 | P32: 64.83
C33: Banque | D33: =D34-D32 -> 1042.35 | E33: =E34-E32 -> 1042.5 | F33: 685 | G33: 559.6 | H33: 1085.58 | I33: 0 | J33: 0 | K33: 0 | L33: 0 | M33: 0 | N33: 0 | O33: 0 | P33: 4415.03
B34: Total dépenses | C34: Total | D34: =SUM(D6:D31) -> 1053.76 | E34: 1047.77 | F34: 693.19 | G34: 573.72 | H34: 1111.42 | I34: 0 | J34: 0 | K34: 0 | L34: 0 | M34: 0 | N34: 0 | O34: 0 | P34: 4479.86
A35: RECETTES | B35: Salaires nets | P35: 0
B36: Indemnités | P36: 0
B37: Rentes CAVIMAC | D37: 382.79 | E37: 382.79 | F37: 382.79 | G37: 382.79 | H37: 382.79 | P37: 1913.95
B38: Rente CARSAT - MSA - CNAV | D38: 403.11 | E38: 403.11 | F38: 443.11 | G38: 403.11 | H38: 403.11 | P38: 2055.55
B39: Autres rentes | D39: 14.06 | E39: 14.06 | F39: 14.06 | G39: 14.06 | H39: 14.06 | P39: 70.3
B40: Allocation logement | P40: 0
B41: A.P.L. | P41: 0
B42: Aide sociale | P42: 0
B43: Remboursements soins | D43: 11.6 | E43: 36.8 | F43: 87.05 | G43: 70.13 | H43: 34 | P43: 239.58
B44: Recettes d'accueil | P44: 0
B45: Dons reçus | P45: 0
B46: Reçus des Sœurs | P46: 0
B47: Subvention reçue du budget régional | P47: 0
B48: Mis en caisse depuis cpte courant (Srs+Frat) | P48: 0
B49: Reçu de Fraternité (caisse & banque) | D49: 10 | E49: 20 | F49: 0 | G49: 0 | H49: 20 | P49: 50
B50: Recettes | C50: Espèces | D50: 10 | E50: 20 | F50: 0 | G50: 10 | H50: 20 | P50: 60
C51: Banque | D51: =D52-D50 -> 811.56 | E51: =E52-E50 -> 836.76 | F51: 927.01 | G51: 860.09 | H51: 833.96 | I51: 0 | J51: 0 | K51: 0 | L51: 0 | M51: 0 | N51: 0 | O51: 0 | P51: 4269.38
C52: Total | D52: =SUM(D35:D49) -> 821.56 | E52: 856.76 | F52: 927.01 | G52: 870.09 | H52: 853.96 | I52: 0 | J52: 0 | K52: 0 | L52: 0 | M52: 0 | N52: 0 | O52: 0 | P52: 4329.38
B53: Solde à fin de mois | C53: Espèces | D53: =D3-D32+D50 -> 6.72 | E53: 21.45 | F53: 13.26 | G53: 9.14 | H53: 3.3 | I53: 3.3 | J53: 3.3 | K53: 3.3 | L53: 3.3 | M53: 3.3 | N53: 3.3 | O53: 3.3
C54: Banque | D54: =D4-D33+D51 -> 778.13 | E54: 572.39 | F54: 814.4 | G54: 1114.89 | H54: 863.27 | I54: 863.27 | J54: 863.27 | K54: 863.27 | L54: 863.27 | M54: 863.27 | N54: 863.27 | O54: 863.27
C55: Total | D55: =D53+D54 -> 784.85 | E55: =E53+E54 -> 593.84 | F55: 827.66 | G55: 1124.03 | H55: 866.57 | I55: 866.57 | J55: 866.57 | K55: 866.57 | L55: 866.57 | M55: 866.57 | N55: 866.57 | O55: 866.57

Sheet S11
H1: ="Fraternité : " & Deb_fin_exercice!C2& " Exercice " &Deb_fin_exercice!H1 -> Fraternité : Ma Fraternité Exercice 2015
B2: =Deb_fin_exercice!B20 -> Sœur numero 11 | D2: JANVIER | E2: FEVRIER | F2: MARS | G2: AVRIL | H2: MAI | I2: JUIN | J2: JUILLET | K2: AOUT | L2: SEPTEMBRE | M2: OCTOBRE | N2: NOVEMBRE | O2: DECEMBRE | P2: Total annuel (après saisie de décembre)
A3: DEPENSES | B3: Avoir en début de mois | C3: Espèces | D3: =Deb_fin_exercice!D20 -> 28.3 | E3: =D53 -> 20.9 | F3: =E53 -> 27.27 | G3: 5.7 | H3: 32.55 | I3: 3.95 | J3: 3.95 | K3: 3.95 | L3: 3.95 | M3: 3.95 | N3: 3.95 | O3: 3.95
C4: Banque | D4: =Deb_fin_exercice!E20 -> 1902.22 | E4: =D54 -> 2252.53 | F4: =E54 -> 2565.87 | G4: 2639.5 | H4: 2672.13 | I4: 3235.86 | J4: 3235.86 | K4: 3235.86 | L4: 3235.86 | M4: 3235.86 | N4: 3235.86 | O4: 3235.86
C5: Total | D5: =Deb_fin_exercice!F20 -> 1930.52 | E5: =E3+E4 -> 2273.43 | F5: 2593.14 | G5: 2645.2 | H5: 2704.68 | I5: 3239.81 | J5: 3239.81 | K5: 3239.81 | L5: 3239.81 | M5: 3239.81 | N5: 3239.81 | O5: 3239.81
B6: Alimentation - Hébergement | D6: 13 | E6: 42.43 | F6: 4.63 | G6: 22 | H6: 34.9 | P6: =SUM(D6:O6) -> 116.96
B7: Matières consommables | D7: 27.4 | E7: 3.15 | F7: 9.19 | G7: 8.2 | H7: 13.6 | P7: =SUM(D7:O7) -> 61.54
B8: Combustibles | P8: 0
B9: Eau - Electricité - Gaz | P9: 0
B10: Pharmacie - Soins | D10: 127.65 | F10: 5.8 | P10: 133.45
B11: Acquisition mobilier et matériel | P11: 0
B12: Fournitures administratives | E12: 1.5 | G12: 23.95 | P12: 25.45
B13: Vestiaire personnel des Sœurs | E13: 1 | H13: 3 | P13: 4
B14: Loyer | P14: 0
B15: Entretien mobilier, matériel | P15: 0
B16: Entretien matériel de transport | P16: 0
B17: Form. permanente-Ressourc. Spirituel | G17: 10 | P17: 10
B18: Culture et loisirs | F18: 13 | G18: 2 | P18: 15
B19: Prestations diverses | P19: 0
B20: Cotis. Pourb., Cadeaux, Frais culte | E20: 1 | F20: 1 | P20: 2
B21: Déplacements | E21: 75.16 | P21: 75.16
B22: Frais postaux & télécommunication | D22: 11 | E22: 3.05 | F22: 0.95 | P22: 15
B23: Impôts & Taxes (Tv /Habitation / PV) | P23: 0
B24: Impôts Revenu Pers. Physiques | E24: 311 | P24: 311
B25: Charges de personnel | D25: 84.67 | E25: 75.28 | P25: 159.95
B26: Cotisation Mutuelle | P26: 0
B27: Partage - Solidarité | F27: 20 | G27: 11 | P27: =SUM(D27:O27) -> 31
B28: Versement à la Fraternité | D28: 1000 | E28: 1400 | F28: 1500 | G28: 1500 | H28: 1000 | P28: 6400
B29: Versement au budget régional | P29: 0
B30: Donné aux Soeurs depuis caisse ou banque | P30: 0
B31: Retrait compte. courant pour caisse | P31: 0
B32: Dépenses | C32: Espèces | D32: 27.4 | E32: 23.63 | F32: 41.57 | G32: 23.15 | H32: 28.6 | P32: 144.35
C33: Banque | D33: =D34-D32 -> 1236.32 | E33: =E34-E32 -> 1889.94 | F33: 1513 | G33: 1554 | H33: 1022.9 | I33: 0 | J33: 0 | K33: 0 | L33: 0 | M33: 0 | N33: 0 | O33: 0 | P33: 7216.16
B34: Total dépenses | C34: Total | D34: =SUM(D6:D31) -> 1263.72 | E34: 1913.57 | F34: 1554.57 | G34: 1577.15 | H34: 1051.5 | I34: 0 | J34: 0 | K34: 0 | L34: 0 | M34: 0 | N34: 0 | O34: 0 | P34: 7360.51
A35: RECETTES | B35: Salaires nets | P35: 0
B36: Indemnités | P36: 0
B37: Rentes CAVIMAC | D37: 223.39 | E37: 223.39 | F37: 223.39 | G37: 223.39 | H37: 223.39 | P37: 1116.95
B38: Rente CARSAT - MSA - CNAV | D38: 790.88 | E38: 790.88 | F38: 790.88 | G38: 790.88 | H38: 790.88 | P38: 3954.4
B39: Autres rentes | D39: 572.36 | E39: 572.36 | F39: 572.36 | G39: 572.36 | H39: 572.36 | P39: 2861.8
B40: Allocation logement | P40: 0
B41: A.P.L. | P41: 0
B42: Aide sociale | P42: 0
B43: Remboursements soins | E43: 116.65 | P43: 116.65
B44: Recettes d'accueil | P44: 0
B45: Dons reçus | E45: 500 | P45: 500
B46: Reçus des Sœurs | P46: 0
B47: Subvention reçue du budget régional | P47: 0
B48: Mis en caisse depuis cpte courant (Srs+Frat) | P48: 0
B49: Reçu de Fraternité (caisse & banque) | D49: 20 | E49: 30 | F49: 20 | G49: 50 | P49: 120
B50: Recettes | C50: Espèces | D50: 20 | E50: 30 | F50: 20 | G50: 50 | H50: 0 | P50: 120
C51: Banque | D51: =D52-D50 -> 1586.63 | E51: =E52-E50 -> 2203.28 | F51: 1586.63 | G51: 1586.63 | H51: 1586.63 | I51: 0 | J51: 0 | K51: 0 | L51: 0 | M51: 0 | N51: 0 | O51: 0 | P51: 8549.8
C52: Total | D52: =SUM(D35:D49) -> 1606.63 | E52: 2233.28 | F52: 1606.63 | G52: 1636.63 | H52: 1586.63 | I52: 0 | J52: 0 | K52: 0 | L52: 0 | M52: 0 | N52: 0 | O52: 0 | P52: 8669.8
B53: Solde à fin de mois | C53: Espèces | D53: =D3-D32+D50 -> 20.9 | E53: 27.27 | F53: 5.7 | G53: 32.55 | H53: 3.95 | I53: 3.95 | J53: 3.95 | K53: 3.95 | L53: 3.95 | M53: 3.95 | N53: 3.95 | O53: 3.95
C54: Banque | D54: =D4-D33+D51 -> 2252.53 | E54: 2565.87 | F54: 2639.5 | G54: 2672.13 | H54: 3235.86 | I54: 3235.86 | J54: 3235.86 | K54: 3235.86 | L54: 3235.86 | M54: 3235.86 | N54: 3235.86 | O54: 3235.86
C55: Total | D55: =D53+D54 -> 2273.43 | E55: =E53+E54 -> 2593.14 | F55: 2645.2 | G55: 2704.68 | H55: 3239.81 | I55: 3239.81 | J55: 3239.81 | K55: 3239.81 | L55: 3239.81 | M55: 3239.81 | N55: 3239.81 | O55: 3239.81

Sheet S12
H1: ="Fraternité : " & Deb_fin_exercice!C2& " Exercice " &Deb_fin_exercice!H1 -> Fraternité : Ma Fraternité Exercice 2015
B2: =Deb_fin_exercice!B21 -> 0 | D2: JANVIER | E2: FEVRIER | F2: MARS | G2: AVRIL | H2: MAI | I2: JUIN | J2: JUILLET | K2: AOUT | L2: SEPTEMBRE | M2: OCTOBRE | N2: NOVEMBRE | O2: DECEMBRE | P2: Total annuel (après saisie de décembre)
A3: DEPENSES | B3: Avoir en début de mois | C3: Espèces | D3: =Deb_fin_exercice!D21 -> 0 | E3: =D53 -> 0 | F3: =E53 -> 0 | G3: 0 | H3: 0 | I3: 0 | J3: 0 | K3: 0 | L3: 0 | M3: 0 | N3: 0 | O3: 0
C4: Banque | D4: =Deb_fin_exercice!E21 -> 0 | E4: =D54 -> 0 | F4: =E54 -> 0 | G4: 0 | H4: 0 | I4: 0 | J4: 0 | K4: 0 | L4: 0 | M4: 0 | N4: 0 | O4: 0
C5: Total | D5: =Deb_fin_exercice!F21 -> 0 | E5: =E3+E4 -> 0 | F5: 0 | G5: 0 | H5: 0 | I5: 0 | J5: 0 | K5: 0 | L5: 0 | M5: 0 | N5: 0 | O5: 0
B6: Alimentation - Hébergement | P6: =SUM(D6:O6) -> 0
B7: Matières consommables | P7: =SUM(D7:O7) -> 0
B8: Combustibles | P8: 0
B9: Eau - Electricité - Gaz | P9: 0
B10: Pharmacie - Soins | P10: 0
B11: Acquisition mobilier et matériel | P11: 0
B12: Fournitures administratives | P12: 0
B13: Vestiaire personnel des Sœurs | P13: 0
B14: Loyer | P14: 0
B15: Entretien mobilier, matériel | P15: 0
B16: Entretien matériel de transport | P16: 0
B17: Form. permanente-Ressourc. Spirituel | P17: 0
B18: Culture et loisirs | P18: 0
B19: Prestations diverses | P19: 0
B20: Cotis. Pourb., Cadeaux, Frais culte | P20: 0
B21: Déplacements | P21: 0
B22: Frais postaux & télécommunication | P22: 0
B23: Impôts & Taxes (Tv /Habitation / PV) | P23: 0
B24: Impôts Revenu Pers. Physiques | P24: 0
B25: Charges de personnel | P25: 0
B26: Cotisation Mutuelle | P26: 0
B27: Partage - Solidarité | P27: =SUM(D27:O27) -> 0
B28: Versement à la Fraternité | P28: 0
B29: Versement au budget régional | P29: 0
B30: Donné aux Soeurs depuis caisse ou banque | P30: 0
B31: Retrait compte. courant pour caisse | P31: 0
B32: Dépenses | C32: Espèces | P32: 0
C33: Banque | D33: =D34-D32 -> 0 | E33: =E34-E32 -> 0 | F33: 0 | G33: 0 | H33: 0 | I33: 0 | J33: 0 | K33: 0 | L33: 0 | M33: 0 | N33: 0 | O33: 0 | P33: 0
B34: Total dépenses | C34: Total | D34: =SUM(D6:D31) -> 0 | E34: 0 | F34: 0 | G34: 0 | H34: 0 | I34: 0 | J34: 0 | K34: 0 | L34: 0 | M34: 0 | N34: 0 | O34: 0 | P34: 0
A35: RECETTES | B35: Salaires nets | P35: 0
B36: Indemnités | P36: 0
B37: Rentes CAVIMAC | P37: 0
B38: Rente CARSAT - MSA - CNAV | P38: 0
B39: Autres rentes | P39: 0
B40: Allocation logement | P40: 0
B41: A.P.L. | P41: 0
B42: Aide sociale | P42: 0
B43: Remboursements soins | P43: 0
B44: Recettes d'accueil | P44: 0
B45: Dons reçus | P45: 0
B46: Reçus des Sœurs | P46: 0
B47: Subvention reçue du budget régional | P47: 0
B48: Mis en caisse depuis cpte courant (Srs+Frat) | P48: 0
B49: Reçu de Fraternité (caisse & banque) | P49: 0
B50: Recettes | C50: Espèces | P50: 0
C51: Banque | D51: =D52-D50 -> 0 | E51: =E52-E50 -> 0 | F51: 0 | G51: 0 | H51: 0 | I51: 0 | J51: 0 | K51: 0 | L51: 0 | M51: 0 | N51: 0 | O51: 0 | P51: 0
C52: Total | D52: =SUM(D35:D49) -> 0 | E52: 0 | F52: 0 | G52: 0 | H52: 0 | I52: 0 | J52: 0 | K52: 0 | L52: 0 | M52: 0 | N52: 0 | O52: 0 | P52: 0
B53: Solde à fin de mois | C53: Espèces | D53: =D3-D32+D50 -> 0 | E53: 0 | F53: 0 | G53: 0 | H53: 0 | I53: 0 | J53: 0 | K53: 0 | L53: 0 | M53: 0 | N53: 0 | O53: 0
C54: Banque | D54: =D4-D33+D51 -> 0 | E54: 0 | F54: 0 | G54: 0 | H54: 0 | I54: 0 | J54: 0 | K54: 0 | L54: 0 | M54: 0 | N54: 0 | O54: 0
C55: Total | D55: =D53+D54 -> 0 | E55: =E53+E54 -> 0 | F55: 0 | G55: 0 | H55: 0 | I55: 0 | J55: 0 | K55: 0 | L55: 0 | M55: 0 | N55: 0 | O55: 0

Sheet S13
H1: ="Fraternité : " & Deb_fin_exercice!C2& " Exercice " &Deb_fin_exercice!H1 -> Fraternité : Ma Fraternité Exercice 2015
B2: =Deb_fin_exercice!B22 -> 0 | D2: JANVIER | E2: FEVRIER | F2: MARS | G2: AVRIL | H2: MAI | I2: JUIN | J2: JUILLET | K2: AOUT | L2: SEPTEMBRE | M2: OCTOBRE | N2: NOVEMBRE | O2: DECEMBRE | P2: Total annuel (après saisie de décembre)
A3: DEPENSES | B3: Avoir en début de mois | C3: Espèces | D3: =Deb_fin_exercice!D22 -> 0 | E3: =D53 -> 0 | F3: =E53 -> 0 | G3: 0 | H3: 0 | I3: 0 | J3: 0 | K3: 0 | L3: 0 | M3: 0 | N3: 0 | O3: 0
C4: Banque | D4: =Deb_fin_exercice!E22 -> 0 | E4: =D54 -> 0 | F4: =E54 -> 0 | G4: 0 | H4: 0 | I4: 0 | J4: 0 | K4: 0 | L4: 0 | M4: 0 | N4: 0 | O4: 0
C5: Total | D5: =Deb_fin_exercice!F22 -> 0 | E5: =E3+E4 -> 0 | F5: 0 | G5: 0 | H5: 0 | I5: 0 | J5: 0 | K5: 0 | L5: 0 | M5: 0 | N5: 0 | O5: 0
B6: Alimentation - Hébergement | P6: =SUM(D6:O6) -> 0
B7: Matières consommables | P7: =SUM(D7:O7) -> 0
B8: Combustibles | P8: 0
B9: Eau - Electricité - Gaz | P9: 0
B10: Pharmacie - Soins | P10: 0
B11: Acquisition mobilier et matériel | P11: 0
B12: Fournitures administratives | P12: 0
B13: Vestiaire personnel des Sœurs | P13: 0
B14: Loyer | P14: 0
B15: Entretien mobilier, matériel | P15: 0
B16: Entretien matériel de transport | P16: 0
B17: Form. permanente-Ressourc. Spirituel | P17: 0
B18: Culture et loisirs | P18: 0
B19: Prestations diverses | P19: 0
B20: Cotis. Pourb., Cadeaux, Frais culte | P20: 0
B21: Déplacements | P21: 0
B22: Frais postaux & télécommunication | P22: 0
B23: Impôts & Taxes (Tv /Habitation / PV) | P23: 0
B24: Impôts Revenu Pers. Physiques | P24: 0
B25: Charges de personnel | P25: 0
B26: Cotisation Mutuelle | P26: 0
B27: Partage - Solidarité | P27: =SUM(D27:O27) -> 0
B28: Versement à la Fraternité | P28: 0
B29: Versement au budget régional | P29: 0
B30: Donné aux Soeurs depuis caisse ou banque | P30: 0
B31: Retrait compte. courant pour caisse | P31: 0
B32: Dépenses | C32: Espèces | P32: 0
C33: Banque | D33: =D34-D32 -> 0 | E33: =E34-E32 -> 0 | F33: 0 | G33: 0 | H33: 0 | I33: 0 | J33: 0 | K33: 0 | L33: 0 | M33: 0 | N33: 0 | O33: 0 | P33: 0
B34: Total dépenses | C34: Total | D34: =SUM(D6:D31) -> 0 | E34: 0 | F34: 0 | G34: 0 | H34: 0 | I34: 0 | J34: 0 | K34: 0 | L34: 0 | M34: 0 | N34: 0 | O34: 0 | P34: 0
A35: RECETTES | B35: Salaires nets | P35: 0
B36: Indemnités | P36: 0
B37: Rentes CAVIMAC | P37: 0
B38: Rente CARSAT - MSA - CNAV | P38: 0
B39: Autres rentes | P39: 0
B40: Allocation logement | P40: 0
B41: A.P.L. | P41: 0
B42: Aide sociale | P42: 0
B43: Remboursements soins | P43: 0
B44: Recettes d'accueil | P44: 0
B45: Dons reçus | P45: 0
B46: Reçus des Sœurs | P46: 0
B47: Subvention reçue du budget régional | P47: 0
B48: Mis en caisse depuis cpte courant (Srs+Frat) | P48: 0
B49: Reçu de Fraternité (caisse & banque) | P49: 0
B50: Recettes | C50: Espèces | P50: 0
C51: Banque | D51: =D52-D50 -> 0 | E51: =E52-E50 -> 0 | F51: 0 | G51: 0 | H51: 0 | I51: 0 | J51: 0 | K51: 0 | L51: 0 | M51: 0 | N51: 0 | O51: 0 | P51: 0
C52: Total | D52: =SUM(D35:D49) -> 0 | E52: 0 | F52: 0 | G52: 0 | H52: 0 | I52: 0 | J52: 0 | K52: 0 | L52: 0 | M52: 0 | N52: 0 | O52: 0 | P52: 0
B53: Solde à fin de mois | C53: Espèces | D53: =D3-D32+D50 -> 0 | E53: 0 | F53: 0 | G53: 0 | H53: 0 | I53: 0 | J53: 0 | K53: 0 | L53: 0 | M53: 0 | N53: 0 | O53: 0
C54: Banque | D54: =D4-D33+D51 -> 0 | E54: 0 | F54: 0 | G54: 0 | H54: 0 | I54: 0 | J54: 0 | K54: 0 | L54: 0 | M54: 0 | N54: 0 | O54: 0
C55: Total | D55: =D53+D54 -> 0 | E55: =E53+E54 -> 0 | F55: 0 | G55: 0 | H55: 0 | I55: 0 | J55: 0 | K55: 0 | L55: 0 | M55: 0 | N55: 0 | O55: 0

Sheet S14
H1: ="Fraternité : " & Deb_fin_exercice!C2& " Exercice " &Deb_fin_exercice!H1 -> Fraternité : Ma Fraternité Exercice 2015
B2: =Deb_fin_exercice!B23 -> 0 | D2: JANVIER | E2: FEVRIER | F2: MARS | G2: AVRIL | H2: MAI | I2: JUIN | J2: JUILLET | K2: AOUT | L2: SEPTEMBRE | M2: OCTOBRE | N2: NOVEMBRE | O2: DECEMBRE | P2: Total annuel (après saisie de décembre)
A3: DEPENSES | B3: Avoir en début de mois | C3: Espèces | D3: =Deb_fin_exercice!D23 -> 0 | E3: =D53 -> 0 | F3: =E53 -> 0 | G3: 0 | H3: 0 | I3: 0 | J3: 0 | K3: 0 | L3: 0 | M3: 0 | N3: 0 | O3: 0
C4: Banque | D4: =Deb_fin_exercice!E23 -> 0 | E4: =D54 -> 0 | F4: =E54 -> 0 | G4: 0 | H4: 0 | I4: 0 | J4: 0 | K4: 0 | L4: 0 | M4: 0 | N4: 0 | O4: 0
C5: Total | D5: =Deb_fin_exercice!F23 -> 0 | E5: =E3+E4 -> 0 | F5: 0 | G5: 0 | H5: 0 | I5: 0 | J5: 0 | K5: 0 | L5: 0 | M5: 0 | N5: 0 | O5: 0
B6: Alimentation - Hébergement | P6: =SUM(D6:O6) -> 0
B7: Matières consommables | P7: =SUM(D7:O7) -> 0
B8: Combustibles | P8: 0
B9: Eau - Electricité - Gaz | P9: 0
B10: Pharmacie - Soins | P10: 0
B11: Acquisition mobilier et matériel | P11: 0
B12: Fournitures administratives | P12: 0
B13: Vestiaire personnel des Sœurs | P13: 0
B14: Loyer | P14: 0
B15: Entretien mobilier, matériel | P15: 0
B16: Entretien matériel de transport | P16: 0
B17: Form. permanente-Ressourc. Spirituel | P17: 0
B18: Culture et loisirs | P18: 0
B19: Prestations diverses | P19: 0
B20: Cotis. Pourb., Cadeaux, Frais culte | P20: 0
B21: Déplacements | P21: 0
B22: Frais postaux & télécommunication | P22: 0
B23: Impôts & Taxes (Tv /Habitation / PV) | P23: 0
B24: Impôts Revenu Pers. Physiques | P24: 0
B25: Charges de personnel | P25: 0
B26: Cotisation Mutuelle | P26: 0
B27: Partage - Solidarité | P27: =SUM(D27:O27) -> 0
B28: Versement à la Fraternité | P28: 0
B29: Versement au budget régional | P29: 0
B30: Donné aux Soeurs depuis caisse ou banque | P30: 0
B31: Retrait compte. courant pour caisse | P31: 0
B32: Dépenses | C32: Espèces | P32: 0
C33: Banque | D33: =D34-D32 -> 0 | E33: =E34-E32 -> 0 | F33: 0 | G33: 0 | H33: 0 | I33: 0 | J33: 0 | K33: 0 | L33: 0 | M33: 0 | N33: 0 | O33: 0 | P33: 0
B34: Total dépenses | C34: Total | D34: =SUM(D6:D31) -> 0 | E34: 0 | F34: 0 | G34: 0 | H34: 0 | I34: 0 | J34: 0 | K34: 0 | L34: 0 | M34: 0 | N34: 0 | O34: 0 | P34: 0
A35: RECETTES | B35: Salaires nets | P35: 0
B36: Indemnités | P36: 0
B37: Rentes CAVIMAC | P37: 0
B38: Rente CARSAT - MSA - CNAV | P38: 0
B39: Autres rentes | P39: 0
B40: Allocation logement | P40: 0
B41: A.P.L. | P41: 0
B42: Aide sociale | P42: 0
B43: Remboursements soins | P43: 0
B44: Recettes d'accueil | P44: 0
B45: Dons reçus | P45: 0
B46: Reçus des Sœurs | P46: 0
B47: Subvention reçue du budget régional | P47: 0
B48: Mis en caisse depuis cpte courant (Srs+Frat) | P48: 0
B49: Reçu de Fraternité (caisse & banque) | P49: 0
B50: Recettes | C50: Espèces | P50: 0
C51: Banque | D51: =D52-D50 -> 0 | E51: =E52-E50 -> 0 | F51: 0 | G51: 0 | H51: 0 | I51: 0 | J51: 0 | K51: 0 | L51: 0 | M51: 0 | N51: 0 | O51: 0 | P51: 0
C52: Total | D52: =SUM(D35:D49) -> 0 | E52: 0 | F52: 0 | G52: 0 | H52: 0 | I52: 0 | J52: 0 | K52: 0 | L52: 0 | M52: 0 | N52: 0 | O52: 0 | P52: 0
B53: Solde à fin de mois | C53: Espèces | D53: =D3-D32+D50 -> 0 | E53: 0 | F53: 0 | G53: 0 | H53: 0 | I53: 0 | J53: 0 | K53: 0 | L53: 0 | M53: 0 | N53: 0 | O53: 0
C54: Banque | D54: =D4-D33+D51 -> 0 | E54: 0 | F54: 0 | G54: 0 | H54: 0 | I54: 0 | J54: 0 | K54: 0 | L54: 0 | M54: 0 | N54: 0 | O54: 0
C55: Total | D55: =D53+D54 -> 0 | E55: =E53+E54 -> 0 | F55: 0 | G55: 0 | H55: 0 | I55: 0 | J55: 0 | K55: 0 | L55: 0 | M55: 0 | N55: 0 | O55: 0

Sheet S15
H1: ="Fraternité : " & Deb_fin_exercice!C2& " Exercice " &Deb_fin_exercice!H1 -> Fraternité : Ma Fraternité Exercice 2015
B2: =Deb_fin_exercice!B24 -> 0 | D2: JANVIER | E2: FEVRIER | F2: MARS | G2: AVRIL | H2: MAI | I2: JUIN | J2: JUILLET | K2: AOUT | L2: SEPTEMBRE | M2: OCTOBRE | N2: NOVEMBRE | O2: DECEMBRE | P2: Total annuel (après saisie de décembre)
A3: DEPENSES | B3: Avoir en début de mois | C3: Espèces | D3: =Deb_fin_exercice!D24 -> 0 | E3: =D53 -> 0 | F3: =E53 -> 0 | G3: 0 | H3: 0 | I3: 0 | J3: 0 | K3: 0 | L3: 0 | M3: 0 | N3: 0 | O3: 0
C4: Banque | D4: =Deb_fin_exercice!E24 -> 0 | E4: =D54 -> 0 | F4: =E54 -> 0 | G4: 0 | H4: 0 | I4: 0 | J4: 0 | K4: 0 | L4: 0 | M4: 0 | N4: 0 | O4: 0
C5: Total | D5: =Deb_fin_exercice!F24 -> 0 | E5: =E3+E4 -> 0 | F5: 0 | G5: 0 | H5: 0 | I5: 0 | J5: 0 | K5: 0 | L5: 0 | M5: 0 | N5: 0 | O5: 0
B6: Alimentation - Hébergement | P6: =SUM(D6:O6) -> 0
B7: Matières consommables | P7: =SUM(D7:O7) -> 0
B8: Combustibles | P8: 0
B9: Eau - Electricité - Gaz | P9: 0
B10: Pharmacie - Soins | P10: 0
B11: Acquisition mobilier et matériel | P11: 0
B12: Fournitures administratives | P12: 0
B13: Vestiaire personnel des Sœurs | P13: 0
B14: Loyer | P14: 0
B15: Entretien mobilier, matériel | P15: 0
B16: Entretien matériel de transport | P16: 0
B17: Form. permanente-Ressourc. Spirituel | P17: 0
B18: Culture et loisirs | P18: 0
B19: Prestations diverses | P19: 0
B20: Cotis. Pourb., Cadeaux, Frais culte | P20: 0
B21: Déplacements | P21: 0
B22: Frais postaux & télécommunication | P22: 0
B23: Impôts & Taxes (Tv /Habitation / PV) | P23: 0
B24: Impôts Revenu Pers. Physiques | P24: 0
B25: Charges de personnel | P25: 0
B26: Cotisation Mutuelle | P26: 0
B27: Partage - Solidarité | P27: =SUM(D27:O27) -> 0
B28: Versement à la Fraternité | P28: 0
B29: Versement au budget régional | P29: 0
B30: Donné aux Soeurs depuis caisse ou banque | P30: 0
B31: Retrait compte. courant pour caisse | P31: 0
B32: Dépenses | C32: Espèces | P32: 0
C33: Banque | D33: =D34-D32 -> 0 | E33: =E34-E32 -> 0 | F33: 0 | G33: 0 | H33: 0 | I33: 0 | J33: 0 | K33: 0 | L33: 0 | M33: 0 | N33: 0 | O33: 0 | P33: 0
B34: Total dépenses | C34: Total | D34: =SUM(D6:D31) -> 0 | E34: 0 | F34: 0 | G34: 0 | H34: 0 | I34: 0 | J34: 0 | K34: 0 | L34: 0 | M34: 0 | N34: 0 | O34: 0 | P34: 0
A35: RECETTES | B35: Salaires nets | P35: 0
B36: Indemnités | P36: 0
B37: Rentes CAVIMAC | P37: 0
B38: Rente CARSAT - MSA - CNAV | P38: 0
B39: Autres rentes | P39: 0
B40: Allocation logement | P40: 0
B41: A.P.L. | P41: 0
B42: Aide sociale | P42: 0
B43: Remboursements soins | P43: 0
B44: Recettes d'accueil | P44: 0
B45: Dons reçus | P45: 0
B46: Reçus des Sœurs | P46: 0
B47: Subvention reçue du budget régional | P47: 0
B48: Mis en caisse depuis cpte courant (Srs+Frat) | P48: 0
B49: Reçu de Fraternité (caisse & banque) | P49: 0
B50: Recettes | C50: Espèces | P50: 0
C51: Banque | D51: =D52-D50 -> 0 | E51: =E52-E50 -> 0 | F51: 0 | G51: 0 | H51: 0 | I51: 0 | J51: 0 | K51: 0 | L51: 0 | M51: 0 | N51: 0 | O51: 0 | P51: 0
C52: Total | D52: =SUM(D35:D49) -> 0 | E52: 0 | F52: 0 | G52: 0 | H52: 0 | I52: 0 | J52: 0 | K52: 0 | L52: 0 | M52: 0 | N52: 0 | O52: 0 | P52: 0
B53: Solde à fin de mois | C53: Espèces | D53: =D3-D32+D50 -> 0 | E53: 0 | F53: 0 | G53: 0 | H53: 0 | I53: 0 | J53: 0 | K53: 0 | L53: 0 | M53: 0 | N53: 0 | O53: 0
C54: Banque | D54: =D4-D33+D51 -> 0 | E54: 0 | F54: 0 | G54: 0 | H54: 0 | I54: 0 | J54: 0 | K54: 0 | L54: 0 | M54: 0 | N54: 0 | O54: 0
C55: Total | D55: =D53+D54 -> 0 | E55: =E53+E54 -> 0 | F55: 0 | G55: 0 | H55: 0 | I55: 0 | J55: 0 | K55: 0 | L55: 0 | M55: 0 | N55: 0 | O55: 0

Sheet S16
H1: ="Fraternité : " & Deb_fin_exercice!C2& " Exercice " &Deb_fin_exercice!H1 -> Fraternité : Ma Fraternité Exercice 2015
B2: =Deb_fin_exercice!B25 -> 0 | D2: JANVIER | E2: FEVRIER | F2: MARS | G2: AVRIL | H2: MAI | I2: JUIN | J2: JUILLET | K2: AOUT | L2: SEPTEMBRE | M2: OCTOBRE | N2: NOVEMBRE | O2: DECEMBRE | P2: Total annuel (après saisie de décembre)
A3: DEPENSES | B3: Avoir en début de mois | C3: Espèces | D3: =Deb_fin_exercice!D25 -> 0 | E3: =D53 -> 0 | F3: =E53 -> 0 | G3: 0 | H3: 0 | I3: 0 | J3: 0 | K3: 0 | L3: 0 | M3: 0 | N3: 0 | O3: 0
C4: Banque | D4: =Deb_fin_exercice!E25 -> 0 | E4: =D54 -> 0 | F4: =E54 -> 0 | G4: 0 | H4: 0 | I4: 0 | J4: 0 | K4: 0 | L4: 0 | M4: 0 | N4: 0 | O4: 0
C5: Total | D5: =Deb_fin_exercice!F25 -> 0 | E5: =E3+E4 -> 0 | F5: 0 | G5: 0 | H5: 0 | I5: 0 | J5: 0 | K5: 0 | L5: 0 | M5: 0 | N5: 0 | O5: 0
B6: Alimentation - Hébergement | P6: =SUM(D6:O6) -> 0
B7: Matières consommables | P7: =SUM(D7:O7) -> 0
B8: Combustibles | P8: 0
B9: Eau - Electricité - Gaz | P9: 0
B10: Pharmacie - Soins | P10: 0
B11: Acquisition mobilier et matériel | P11: 0
B12: Fournitures administratives | P12: 0
B13: Vestiaire personnel des Sœurs | P13: 0
B14: Loyer | P14: 0
B15: Entretien mobilier, matériel | P15: 0
B16: Entretien matériel de transport | P16: 0
B17: Form. permanente-Ressourc. Spirituel | P17: 0
B18: Culture et loisirs | P18: 0
B19: Prestations diverses | P19: 0
B20: Cotis. Pourb., Cadeaux, Frais culte | P20: 0
B21: Déplacements | P21: 0
B22: Frais postaux & télécommunication | P22: 0
B23: Impôts & Taxes (Tv /Habitation / PV) | P23: 0
B24: Impôts Revenu Pers. Physiques | P24: 0
B25: Charges de personnel | P25: 0
B26: Cotisation Mutuelle | P26: 0
B27: Partage - Solidarité | P27: =SUM(D27:O27) -> 0
B28: Versement à la Fraternité | P28: 0
B29: Versement au budget régional | P29: 0
B30: Donné aux Soeurs depuis caisse ou banque | P30: 0
B31: Retrait compte. courant pour caisse | P31: 0
B32: Dépenses | C32: Espèces | P32: 0
C33: Banque | D33: =D34-D32 -> 0 | E33: =E34-E32 -> 0 | F33: 0 | G33: 0 | H33: 0 | I33: 0 | J33: 0 | K33: 0 | L33: 0 | M33: 0 | N33: 0 | O33: 0 | P33: 0
B34: Total dépenses | C34: Total | D34: =SUM(D6:D31) -> 0 | E34: 0 | F34: 0 | G34: 0 | H34: 0 | I34: 0 | J34: 0 | K34: 0 | L34: 0 | M34: 0 | N34: 0 | O34: 0 | P34: 0
A35: RECETTES | B35: Salaires nets | P35: 0
B36: Indemnités | P36: 0
B37: Rentes CAVIMAC | P37: 0
B38: Rente CARSAT - MSA - CNAV | P38: 0
B39: Autres rentes | P39: 0
B40: Allocation logement | P40: 0
B41: A.P.L. | P41: 0
B42: Aide sociale | P42: 0
B43: Remboursements soins | P43: 0
B44: Recettes d'accueil | P44: 0
B45: Dons reçus | P45: 0
B46: Reçus des Sœurs | P46: 0
B47: Subvention reçue du budget régional | P47: 0
B48: Mis en caisse depuis cpte courant (Srs+Frat) | P48: 0
B49: Reçu de Fraternité (caisse & banque) | P49: 0
B50: Recettes | C50: Espèces | P50: 0
C51: Banque | D51: =D52-D50 -> 0 | E51: =E52-E50 -> 0 | F51: 0 | G51: 0 | H51: 0 | I51: 0 | J51: 0 | K51: 0 | L51: 0 | M51: 0 | N51: 0 | O51: 0 | P51: 0
C52: Total | D52: =SUM(D35:D49) -> 0 | E52: 0 | F52: 0 | G52: 0 | H52: 0 | I52: 0 | J52: 0 | K52: 0 | L52: 0 | M52: 0 | N52: 0 | O52: 0 | P52: 0
B53: Solde à fin de mois | C53: Espèces | D53: =D3-D32+D50 -> 0 | E53: 0 | F53: 0 | G53: 0 | H53: 0 | I53: 0 | J53: 0 | K53: 0 | L53: 0 | M53: 0 | N53: 0 | O53: 0
C54: Banque | D54: =D4-D33+D51 -> 0 | E54: 0 | F54: 0 | G54: 0 | H54: 0 | I54: 0 | J54: 0 | K54: 0 | L54: 0 | M54: 0 | N54: 0 | O54: 0
C55: Total | D55: =D53+D54 -> 0 | E55: =E53+E54 -> 0 | F55: 0 | G55: 0 | H55: 0 | I55: 0 | J55: 0 | K55: 0 | L55: 0 | M55: 0 | N55: 0 | O55: 0

Sheet S17
H1: ="Fraternité : " & Deb_fin_exercice!C2& " Exercice " &Deb_fin_exercice!H1 -> Fraternité : Ma Fraternité Exercice 2015
B2: =Deb_fin_exercice!B26 -> 0 | D2: JANVIER | E2: FEVRIER | F2: MARS | G2: AVRIL | H2: MAI | I2: JUIN | J2: JUILLET | K2: AOUT | L2: SEPTEMBRE | M2: OCTOBRE | N2: NOVEMBRE | O2: DECEMBRE | P2: Total annuel (après saisie de décembre)
A3: DEPENSES | B3: Avoir en début de mois | C3: Espèces | D3: =Deb_fin_exercice!D26 -> 0 | E3: =D53 -> 0 | F3: =E53 -> 0 | G3: 0 | H3: 0 | I3: 0 | J3: 0 | K3: 0 | L3: 0 | M3: 0 | N3: 0 | O3: 0
C4: Banque | D4: =Deb_fin_exercice!E26 -> 0 | E4: =D54 -> 0 | F4: =E54 -> 0 | G4: 0 | H4: 0 | I4: 0 | J4: 0 | K4: 0 | L4: 0 | M4: 0 | N4: 0 | O4: 0
C5: Total | D5: =Deb_fin_exercice!F26 -> 0 | E5: =E3+E4 -> 0 | F5: 0 | G5: 0 | H5: 0 | I5: 0 | J5: 0 | K5: 0 | L5: 0 | M5: 0 | N5: 0 | O5: 0
B6: Alimentation - Hébergement | P6: =SUM(D6:O6) -> 0
B7: Matières consommables | P7: =SUM(D7:O7) -> 0
B8: Combustibles | P8: 0
B9: Eau - Electricité - Gaz | P9: 0
B10: Pharmacie - Soins | P10: 0
B11: Acquisition mobilier et matériel | P11: 0
B12: Fournitures administratives | P12: 0
B13: Vestiaire personnel des Sœurs | P13: 0
B14: Loyer | P14: 0
B15: Entretien mobilier, matériel | P15: 0
B16: Entretien matériel de transport | P16: 0
B17: Form. permanente-Ressourc. Spirituel | P17: 0
B18: Culture et loisirs | P18: 0
B19: Prestations diverses | P19: 0
B20: Cotis. Pourb., Cadeaux, Frais culte | P20: 0
B21: Déplacements | P21: 0
B22: Frais postaux & télécommunication | P22: 0
B23: Impôts & Taxes (Tv /Habitation / PV) | P23: 0
B24: Impôts Revenu Pers. Physiques | P24: 0
B25: Charges de personnel | P25: 0
B26: Cotisation Mutuelle | P26: 0
B27: Partage - Solidarité | P27: =SUM(D27:O27) -> 0
B28: Versement à la Fraternité | P28: 0
B29: Versement au budget régional | P29: 0
B30: Donné aux Soeurs depuis caisse ou banque | P30: 0
B31: Retrait compte. courant pour caisse | P31: 0
B32: Dépenses | C32: Espèces | P32: 0
C33: Banque | D33: =D34-D32 -> 0 | E33: =E34-E32 -> 0 | F33: 0 | G33: 0 | H33: 0 | I33: 0 | J33: 0 | K33: 0 | L33: 0 | M33: 0 | N33: 0 | O33: 0 | P33: 0
B34: Total dépenses | C34: Total | D34: =SUM(D6:D31) -> 0 | E34: 0 | F34: 0 | G34: 0 | H34: 0 | I34: 0 | J34: 0 | K34: 0 | L34: 0 | M34: 0 | N34: 0 | O34: 0 | P34: 0
A35: RECETTES | B35: Salaires nets | P35: 0
B36: Indemnités | P36: 0
B37: Rentes CAVIMAC | P37: 0
B38: Rente CARSAT - MSA - CNAV | P38: 0
B39: Autres rentes | P39: 0
B40: Allocation logement | P40: 0
B41: A.P.L. | P41: 0
B42: Aide sociale | P42: 0
B43: Remboursements soins | P43: 0
B44: Recettes d'accueil | P44: 0
B45: Dons reçus | P45: 0
B46: Reçus des Sœurs | P46: 0
B47: Subvention reçue du budget régional | P47: 0
B48: Mis en caisse depuis cpte courant (Srs+Frat) | P48: 0
B49: Reçu de Fraternité (caisse & banque) | P49: 0
B50: Recettes | C50: Espèces | P50: 0
C51: Banque | D51: =D52-D50 -> 0 | E51: =E52-E50 -> 0 | F51: 0 | G51: 0 | H51: 0 | I51: 0 | J51: 0 | K51: 0 | L51: 0 | M51: 0 | N51: 0 | O51: 0 | P51: 0
C52: Total | D52: =SUM(D35:D49) -> 0 | E52: 0 | F52: 0 | G52: 0 | H52: 0 | I52: 0 | J52: 0 | K52: 0 | L52: 0 | M52: 0 | N52: 0 | O52: 0 | P52: 0
B53: Solde à fin de mois | C53: Espèces | D53: =D3-D32+D50 -> 0 | E53: 0 | F53: 0 | G53: 0 | H53: 0 | I53: 0 | J53: 0 | K53: 0 | L53: 0 | M53: 0 | N53: 0 | O53: 0
C54: Banque | D54: =D4-D33+D51 -> 0 | E54: 0 | F54: 0 | G54: 0 | H54: 0 | I54: 0 | J54: 0 | K54: 0 | L54: 0 | M54: 0 | N54: 0 | O54: 0
C55: Total | D55: =D53+D54 -> 0 | E55: =E53+E54 -> 0 | F55: 0 | G55: 0 | H55: 0 | I55: 0 | J55: 0 | K55: 0 | L55: 0 | M55: 0 | N55: 0 | O55: 0

Sheet S18
H1: ="Fraternité : " & Deb_fin_exercice!C2& " Exercice " &Deb_fin_exercice!H1 -> Fraternité : Ma Fraternité Exercice 2015
B2: =Deb_fin_exercice!B27 -> 0 | D2: JANVIER | E2: FEVRIER | F2: MARS | G2: AVRIL | H2: MAI | I2: JUIN | J2: JUILLET | K2: AOUT | L2: SEPTEMBRE | M2: OCTOBRE | N2: NOVEMBRE | O2: DECEMBRE | P2: Total annuel (après saisie de décembre)
A3: DEPENSES | B3: Avoir en début de mois | C3: Espèces | D3: =Deb_fin_exercice!D27 -> 0 | E3: =D53 -> 0 | F3: =E53 -> 0 | G3: 0 | H3: 0 | I3: 0 | J3: 0 | K3: 0 | L3: 0 | M3: 0 | N3: 0 | O3: 0
C4: Banque | D4: =Deb_fin_exercice!E27 -> 0 | E4: =D54 -> 0 | F4: =E54 -> 0 | G4: 0 | H4: 0 | I4: 0 | J4: 0 | K4: 0 | L4: 0 | M4: 0 | N4: 0 | O4: 0
C5: Total | D5: =Deb_fin_exercice!F27 -> 0 | E5: =E3+E4 -> 0 | F5: 0 | G5: 0 | H5: 0 | I5: 0 | J5: 0 | K5: 0 | L5: 0 | M5: 0 | N5: 0 | O5: 0
B6: Alimentation - Hébergement | P6: =SUM(D6:O6) -> 0
B7: Matières consommables | P7: =SUM(D7:O7) -> 0
B8: Combustibles | P8: 0
B9: Eau - Electricité - Gaz | P9: 0
B10: Pharmacie - Soins | P10: 0
B11: Acquisition mobilier et matériel | P11: 0
B12: Fournitures administratives | P12: 0
B13: Vestiaire personnel des Sœurs | P13: 0
B14: Loyer | P14: 0
B15: Entretien mobilier, matériel | P15: 0
B16: Entretien matériel de transport | P16: 0
B17: Form. permanente-Ressourc. Spirituel | P17: 0
B18: Culture et loisirs | P18: 0
B19: Prestations diverses | P19: 0
B20: Cotis. Pourb., Cadeaux, Frais culte | P20: 0
B21: Déplacements | P21: 0
B22: Frais postaux & télécommunication | P22: 0
B23: Impôts & Taxes (Tv /Habitation / PV) | P23: 0
B24: Impôts Revenu Pers. Physiques | P24: 0
B25: Charges de personnel | P25: 0
B26: Cotisation Mutuelle | P26: 0
B27: Partage - Solidarité | P27: =SUM(D27:O27) -> 0
B28: Versement à la Fraternité | P28: 0
B29: Versement au budget régional | P29: 0
B30: Donné aux Soeurs depuis caisse ou banque | P30: 0
B31: Retrait compte. courant pour caisse | P31: 0
B32: Dépenses | C32: Espèces | P32: 0
C33: Banque | D33: =D34-D32 -> 0 | E33: =E34-E32 -> 0 | F33: 0 | G33: 0 | H33: 0 | I33: 0 | J33: 0 | K33: 0 | L33: 0 | M33: 0 | N33: 0 | O33: 0 | P33: 0
B34: Total dépenses | C34: Total | D34: =SUM(D6:D31) -> 0 | E34: 0 | F34: 0 | G34: 0 | H34: 0 | I34: 0 | J34: 0 | K34: 0 | L34: 0 | M34: 0 | N34: 0 | O34: 0 | P34: 0
A35: RECETTES | B35: Salaires nets | P35: 0
B36: Indemnités | P36: 0
B37: Rentes CAVIMAC | P37: 0
B38: Rente CARSAT - MSA - CNAV | P38: 0
B39: Autres rentes | P39: 0
B40: Allocation logement | P40: 0
B41: A.P.L. | P41: 0
B42: Aide sociale | P42: 0
B43: Remboursements soins | P43: 0
B44: Recettes d'accueil | P44: 0
B45: Dons reçus | P45: 0
B46: Reçus des Sœurs | P46: 0
B47: Subvention reçue du budget régional | P47: 0
B48: Mis en caisse depuis cpte courant (Srs+Frat) | P48: 0
B49: Reçu de Fraternité (caisse & banque) | P49: 0
B50: Recettes | C50: Espèces | P50: 0
C51: Banque | D51: =D52-D50 -> 0 | E51: =E52-E50 -> 0 | F51: 0 | G51: 0 | H51: 0 | I51: 0 | J51: 0 | K51: 0 | L51: 0 | M51: 0 | N51: 0 | O51: 0 | P51: 0
C52: Total | D52: =SUM(D35:D49) -> 0 | E52: 0 | F52: 0 | G52: 0 | H52: 0 | I52: 0 | J52: 0 | K52: 0 | L52: 0 | M52: 0 | N52: 0 | O52: 0 | P52: 0
B53: Solde à fin de mois | C53: Espèces | D53: =D3-D32+D50 -> 0 | E53: 0 | F53: 0 | G53: 0 | H53: 0 | I53: 0 | J53: 0 | K53: 0 | L53: 0 | M53: 0 | N53: 0 | O53: 0
C54: Banque | D54: =D4-D33+D51 -> 0 | E54: 0 | F54: 0 | G54: 0 | H54: 0 | I54: 0 | J54: 0 | K54: 0 | L54: 0 | M54: 0 | N54: 0 | O54: 0
C55: Total | D55: =D53+D54 -> 0 | E55: =E53+E54 -> 0 | F55: 0 | G55: 0 | H55: 0 | I55: 0 | J55: 0 | K55: 0 | L55: 0 | M55: 0 | N55: 0 | O55: 0

Sheet S19
H1: ="Fraternité : " & Deb_fin_exercice!C2& " Exercice " &Deb_fin_exercice!H1 -> Fraternité : Ma Fraternité Exercice 2015
B2: =Deb_fin_exercice!B28 -> 0 | D2: JANVIER | E2: FEVRIER | F2: MARS | G2: AVRIL | H2: MAI | I2: JUIN | J2: JUILLET | K2: AOUT | L2: SEPTEMBRE | M2: OCTOBRE | N2: NOVEMBRE | O2: DECEMBRE | P2: Total annuel (après saisie de décembre)
A3: DEPENSES | B3: Avoir en début de mois | C3: Espèces | D3: =Deb_fin_exercice!D28 -> 0 | E3: =D53 -> 0 | F3: =E53 -> 0 | G3: 0 | H3: 0 | I3: 0 | J3: 0 | K3: 0 | L3: 0 | M3: 0 | N3: 0 | O3: 0
C4: Banque | D4: =Deb_fin_exercice!E28 -> 0 | E4: =D54 -> 0 | F4: =E54 -> 0 | G4: 0 | H4: 0 | I4: 0 | J4: 0 | K4: 0 | L4: 0 | M4: 0 | N4: 0 | O4: 0
C5: Total | D5: =Deb_fin_exercice!F28 -> 0 | E5: =E3+E4 -> 0 | F5: 0 | G5: 0 | H5: 0 | I5: 0 | J5: 0 | K5: 0 | L5: 0 | M5: 0 | N5: 0 | O5: 0
B6: Alimentation - Hébergement | P6: =SUM(D6:O6) -> 0
B7: Matières consommables | P7: =SUM(D7:O7) -> 0
B8: Combustibles | P8: 0
B9: Eau - Electricité - Gaz | P9: 0
B10: Pharmacie - Soins | P10: 0
B11: Acquisition mobilier et matériel | P11: 0
B12: Fournitures administratives | P12: 0
B13: Vestiaire personnel des Sœurs | P13: 0
B14: Loyer | P14: 0
B15: Entretien mobilier, matériel | P15: 0
B16: Entretien matériel de transport | P16: 0
B17: Form. permanente-Ressourc. Spirituel | P17: 0
B18: Culture et loisirs | P18: 0
B19: Prestations diverses | P19: 0
B20: Cotis. Pourb., Cadeaux, Frais culte | P20: 0
B21: Déplacements | P21: 0
B22: Frais postaux & télécommunication | P22: 0
B23: Impôts & Taxes (Tv /Habitation / PV) | P23: 0
B24: Impôts Revenu Pers. Physiques | P24: 0
B25: Charges de personnel | P25: 0
B26: Cotisation Mutuelle | P26: 0
B27: Partage - Solidarité | P27: =SUM(D27:O27) -> 0
B28: Versement à la Fraternité | P28: 0
B29: Versement au budget régional | P29: 0
B30: Donné aux Soeurs depuis caisse ou banque | P30: 0
B31: Retrait compte. courant pour caisse | P31: 0
B32: Dépenses | C32: Espèces | P32: 0
C33: Banque | D33: =D34-D32 -> 0 | E33: =E34-E32 -> 0 | F33: 0 | G33: 0 | H33: 0 | I33: 0 | J33: 0 | K33: 0 | L33: 0 | M33: 0 | N33: 0 | O33: 0 | P33: 0
B34: Total dépenses | C34: Total | D34: =SUM(D6:D31) -> 0 | E34: 0 | F34: 0 | G34: 0 | H34: 0 | I34: 0 | J34: 0 | K34: 0 | L34: 0 | M34: 0 | N34: 0 | O34: 0 | P34: 0
A35: RECETTES | B35: Salaires nets | P35: 0
B36: Indemnités | P36: 0
B37: Rentes CAVIMAC | P37: 0
B38: Rente CARSAT - MSA - CNAV | P38: 0
B39: Autres rentes | P39: 0
B40: Allocation logement | P40: 0
B41: A.P.L. | P41: 0
B42: Aide sociale | P42: 0
B43: Remboursements soins | P43: 0
B44: Recettes d'accueil | P44: 0
B45: Dons reçus | P45: 0
B46: Reçus des Sœurs | P46: 0
B47: Subvention reçue du budget régional | P47: 0
B48: Mis en caisse depuis cpte courant (Srs+Frat) | P48: 0
B49: Reçu de Fraternité (caisse & banque) | P49: 0
B50: Recettes | C50: Espèces | P50: 0
C51: Banque | D51: =D52-D50 -> 0 | E51: =E52-E50 -> 0 | F51: 0 | G51: 0 | H51: 0 | I51: 0 | J51: 0 | K51: 0 | L51: 0 | M51: 0 | N51: 0 | O51: 0 | P51: 0
C52: Total | D52: =SUM(D35:D49) -> 0 | E52: 0 | F52: 0 | G52: 0 | H52: 0 | I52: 0 | J52: 0 | K52: 0 | L52: 0 | M52: 0 | N52: 0 | O52: 0 | P52: 0
B53: Solde à fin de mois | C53: Espèces | D53: =D3-D32+D50 -> 0 | E53: 0 | F53: 0 | G53: 0 | H53: 0 | I53: 0 | J53: 0 | K53: 0 | L53: 0 | M53: 0 | N53: 0 | O53: 0
C54: Banque | D54: =D4-D33+D51 -> 0 | E54: 0 | F54: 0 | G54: 0 | H54: 0 | I54: 0 | J54: 0 | K54: 0 | L54: 0 | M54: 0 | N54: 0 | O54: 0
C55: Total | D55: =D53+D54 -> 0 | E55: =E53+E54 -> 0 | F55: 0 | G55: 0 | H55: 0 | I55: 0 | J55: 0 | K55: 0 | L55: 0 | M55: 0 | N55: 0 | O55: 0

Sheet S20
H1: ="Fraternité : " & Deb_fin_exercice!C2& " Exercice " &Deb_fin_exercice!H1 -> Fraternité : Ma Fraternité Exercice 2015
B2: =Deb_fin_exercice!B29 -> 0 | D2: JANVIER | E2: FEVRIER | F2: MARS | G2: AVRIL | H2: MAI | I2: JUIN | J2: JUILLET | K2: AOUT | L2: SEPTEMBRE | M2: OCTOBRE | N2: NOVEMBRE | O2: DECEMBRE | P2: Total annuel (après saisie de décembre)
A3: DEPENSES | B3: Avoir en début de mois | C3: Espèces | D3: =Deb_fin_exercice!D29 -> 0 | E3: =D53 -> 0 | F3: =E53 -> 0 | G3: 0 | H3: 0 | I3: 0 | J3: 0 | K3: 0 | L3: 0 | M3: 0 | N3: 0 | O3: 0
C4: Banque | D4: =Deb_fin_exercice!E29 -> 0 | E4: =D54 -> 0 | F4: =E54 -> 0 | G4: 0 | H4: 0 | I4: 0 | J4: 0 | K4: 0 | L4: 0 | M4: 0 | N4: 0 | O4: 0
C5: Total | D5: =Deb_fin_exercice!F29 -> 0 | E5: =E3+E4 -> 0 | F5: 0 | G5: 0 | H5: 0 | I5: 0 | J5: 0 | K5: 0 | L5: 0 | M5: 0 | N5: 0 | O5: 0
B6: Alimentation - Hébergement | P6: =SUM(D6:O6) -> 0
B7: Matières consommables | P7: =SUM(D7:O7) -> 0
B8: Combustibles | P8: 0
B9: Eau - Electricité - Gaz | P9: 0
B10: Pharmacie - Soins | P10: 0
B11: Acquisition mobilier et matériel | P11: 0
B12: Fournitures administratives | P12: 0
B13: Vestiaire personnel des Sœurs | P13: 0
B14: Loyer | P14: 0
B15: Entretien mobilier, matériel | P15: 0
B16: Entretien matériel de transport | P16: 0
B17: Form. permanente-Ressourc. Spirituel | P17: 0
B18: Culture et loisirs | P18: 0
B19: Prestations diverses | P19: 0
B20: Cotis. Pourb., Cadeaux, Frais culte | P20: 0
B21: Déplacements | P21: 0
B22: Frais postaux & télécommunication | P22: 0
B23: Impôts & Taxes (Tv /Habitation / PV) | P23: 0
B24: Impôts Revenu Pers. Physiques | P24: 0
B25: Charges de personnel | P25: 0
B26: Cotisation Mutuelle | P26: 0
B27: Partage - Solidarité | P27: =SUM(D27:O27) -> 0
B28: Versement à la Fraternité | P28: 0
B29: Versement au budget régional | P29: 0
B30: Donné aux Soeurs depuis caisse ou banque | P30: 0
B31: Retrait compte. courant pour caisse | P31: 0
B32: Dépenses | C32: Espèces | P32: 0
C33: Banque | D33: =D34-D32 -> 0 | E33: =E34-E32 -> 0 | F33: 0 | G33: 0 | H33: 0 | I33: 0 | J33: 0 | K33: 0 | L33: 0 | M33: 0 | N33: 0 | O33: 0 | P33: 0
B34: Total dépenses | C34: Total | D34: =SUM(D6:D31) -> 0 | E34: 0 | F34: 0 | G34: 0 | H34: 0 | I34: 0 | J34: 0 | K34: 0 | L34: 0 | M34: 0 | N34: 0 | O34: 0 | P34: 0
A35: RECETTES | B35: Salaires nets | P35: 0
B36: Indemnités | P36: 0
B37: Rentes CAVIMAC | P37: 0
B38: Rente CARSAT - MSA - CNAV | P38: 0
B39: Autres rentes | P39: 0
B40: Allocation logement | P40: 0
B41: A.P.L. | P41: 0
B42: Aide sociale | P42: 0
B43: Remboursements soins | P43: 0
B44: Recettes d'accueil | P44: 0
B45: Dons reçus | P45: 0
B46: Reçus des Sœurs | P46: 0
B47: Subvention reçue du budget régional | P47: 0
B48: Mis en caisse depuis cpte courant (Srs+Frat) | P48: 0
B49: Reçu de Fraternité (caisse & banque) | P49: 0
B50: Recettes | C50: Espèces | P50: 0
C51: Banque | D51: =D52-D50 -> 0 | E51: =E52-E50 -> 0 | F51: 0 | G51: 0 | H51: 0 | I51: 0 | J51: 0 | K51: 0 | L51: 0 | M51: 0 | N51: 0 | O51: 0 | P51: 0
C52: Total | D52: =SUM(D35:D49) -> 0 | E52: 0 | F52: 0 | G52: 0 | H52: 0 | I52: 0 | J52: 0 | K52: 0 | L52: 0 | M52: 0 | N52: 0 | O52: 0 | P52: 0
B53: Solde à fin de mois | C53: Espèces | D53: =D3-D32+D50 -> 0 | E53: 0 | F53: 0 | G53: 0 | H53: 0 | I53: 0 | J53: 0 | K53: 0 | L53: 0 | M53: 0 | N53: 0 | O53: 0
C54: Banque | D54: =D4-D33+D51 -> 0 | E54: 0 | F54: 0 | G54: 0 | H54: 0 | I54: 0 | J54: 0 | K54: 0 | L54: 0 | M54: 0 | N54: 0 | O54: 0
C55: Total | D55: =D53+D54 -> 0 | E55: =E53+E54 -> 0 | F55: 0 | G55: 0 | H55: 0 | I55: 0 | J55: 0 | K55: 0 | L55: 0 | M55: 0 | N55: 0 | O55: 0

Sheet S21
H1: ="Fraternité : " & Deb_fin_exercice!C2& " Exercice " &Deb_fin_exercice!H1 -> Fraternité : Ma Fraternité Exercice 2015
B2: =Deb_fin_exercice!B30 -> 0 | D2: JANVIER | E2: FEVRIER | F2: MARS | G2: AVRIL | H2: MAI | I2: JUIN | J2: JUILLET | K2: AOUT | L2: SEPTEMBRE | M2: OCTOBRE | N2: NOVEMBRE | O2: DECEMBRE | P2: Total annuel (après saisie de décembre)
A3: DEPENSES | B3: Avoir en début de mois | C3: Espèces | D3: =Deb_fin_exercice!D30 -> 0 | E3: =D53 -> 0 | F3: =E53 -> 0 | G3: 0 | H3: 0 | I3: 0 | J3: 0 | K3: 0 | L3: 0 | M3: 0 | N3: 0 | O3: 0
C4: Banque | D4: =Deb_fin_exercice!E30 -> 0 | E4: =D54 -> 0 | F4: =E54 -> 0 | G4: 0 | H4: 0 | I4: 0 | J4: 0 | K4: 0 | L4: 0 | M4: 0 | N4: 0 | O4: 0
C5: Total | D5: =Deb_fin_exercice!F30 -> 0 | E5: =E3+E4 -> 0 | F5: 0 | G5: 0 | H5: 0 | I5: 0 | J5: 0 | K5: 0 | L5: 0 | M5: 0 | N5: 0 | O5: 0
B6: Alimentation - Hébergement | P6: =SUM(D6:O6) -> 0
B7: Matières consommables | P7: =SUM(D7:O7) -> 0
B8: Combustibles | P8: 0
B9: Eau - Electricité - Gaz | P9: 0
B10: Pharmacie - Soins | P10: 0
B11: Acquisition mobilier et matériel | P11: 0
B12: Fournitures administratives | P12: 0
B13: Vestiaire personnel des Sœurs | P13: 0
B14: Loyer | P14: 0
B15: Entretien mobilier, matériel | P15: 0
B16: Entretien matériel de transport | P16: 0
B17: Form. permanente-Ressourc. Spirituel | P17: 0
B18: Culture et loisirs | P18: 0
B19: Prestations diverses | P19: 0
B20: Cotis. Pourb., Cadeaux, Frais culte | P20: 0
B21: Déplacements | P21: 0
B22: Frais postaux & télécommunication | P22: 0
B23: Impôts & Taxes (Tv /Habitation / PV) | P23: 0
B24: Impôts Revenu Pers. Physiques | P24: 0
B25: Charges de personnel | P25: 0
B26: Cotisation Mutuelle | P26: 0
B27: Partage - Solidarité | P27: =SUM(D27:O27) -> 0
B28: Versement à la Fraternité | P28: 0
B29: Versement au budget régional | P29: 0
B30: Donné aux Soeurs depuis caisse ou banque | P30: 0
B31: Retrait compte. courant pour caisse | P31: 0
B32: Dépenses | C32: Espèces | P32: 0
C33: Banque | D33: =D34-D32 -> 0 | E33: =E34-E32 -> 0 | F33: 0 | G33: 0 | H33: 0 | I33: 0 | J33: 0 | K33: 0 | L33: 0 | M33: 0 | N33: 0 | O33: 0 | P33: 0
B34: Total dépenses | C34: Total | D34: =SUM(D6:D31) -> 0 | E34: 0 | F34: 0 | G34: 0 | H34: 0 | I34: 0 | J34: 0 | K34: 0 | L34: 0 | M34: 0 | N34: 0 | O34: 0 | P34: 0
A35: RECETTES | B35: Salaires nets | P35: 0
B36: Indemnités | P36: 0
B37: Rentes CAVIMAC | P37: 0
B38: Rente CARSAT - MSA - CNAV | P38: 0
B39: Autres rentes | P39: 0
B40: Allocation logement | P40: 0
B41: A.P.L. | P41: 0
B42: Aide sociale | P42: 0
B43: Remboursements soins | P43: 0
B44: Recettes d'accueil | P44: 0
B45: Dons reçus | P45: 0
B46: Reçus des Sœurs | P46: 0
B47: Subvention reçue du budget régional | P47: 0
B48: Mis en caisse depuis cpte courant (Srs+Frat) | P48: 0
B49: Reçu de Fraternité (caisse & banque) | P49: 0
B50: Recettes | C50: Espèces | P50: 0
C51: Banque | D51: =D52-D50 -> 0 | E51: =E52-E50 -> 0 | F51: 0 | G51: 0 | H51: 0 | I51: 0 | J51: 0 | K51: 0 | L51: 0 | M51: 0 | N51: 0 | O51: 0 | P51: 0
C52: Total | D52: =SUM(D35:D49) -> 0 | E52: 0 | F52: 0 | G52: 0 | H52: 0 | I52: 0 | J52: 0 | K52: 0 | L52: 0 | M52: 0 | N52: 0 | O52: 0 | P52: 0
B53: Solde à fin de mois | C53: Espèces | D53: =D3-D32+D50 -> 0 | E53: 0 | F53: 0 | G53: 0 | H53: 0 | I53: 0 | J53: 0 | K53: 0 | L53: 0 | M53: 0 | N53: 0 | O53: 0
C54: Banque | D54: =D4-D33+D51 -> 0 | E54: 0 | F54: 0 | G54: 0 | H54: 0 | I54: 0 | J54: 0 | K54: 0 | L54: 0 | M54: 0 | N54: 0 | O54: 0
C55: Total | D55: =D53+D54 -> 0 | E55: =E53+E54 -> 0 | F55: 0 | G55: 0 | H55: 0 | I55: 0 | J55: 0 | K55: 0 | L55: 0 | M55: 0 | N55: 0 | O55: 0

Sheet S22
H1: ="Fraternité : " & Deb_fin_exercice!C2& " Exercice " &Deb_fin_exercice!H1 -> Fraternité : Ma Fraternité Exercice 2015
B2: =Deb_fin_exercice!B31 -> 0 | D2: JANVIER | E2: FEVRIER | F2: MARS | G2: AVRIL | H2: MAI | I2: JUIN | J2: JUILLET | K2: AOUT | L2: SEPTEMBRE | M2: OCTOBRE | N2: NOVEMBRE | O2: DECEMBRE | P2: Total annuel (après saisie de décembre)
A3: DEPENSES | B3: Avoir en début de mois | C3: Espèces | D3: =Deb_fin_exercice!D31 -> 0 | E3: =D53 -> 0 | F3: =E53 -> 0 | G3: 0 | H3: 0 | I3: 0 | J3: 0 | K3: 0 | L3: 0 | M3: 0 | N3: 0 | O3: 0
C4: Banque | D4: =Deb_fin_exercice!E31 -> 0 | E4: =D54 -> 0 | F4: =E54 -> 0 | G4: 0 | H4: 0 | I4: 0 | J4: 0 | K4: 0 | L4: 0 | M4: 0 | N4: 0 | O4: 0
C5: Total | D5: =Deb_fin_exercice!F31 -> 0 | E5: =E3+E4 -> 0 | F5: 0 | G5: 0 | H5: 0 | I5: 0 | J5: 0 | K5: 0 | L5: 0 | M5: 0 | N5: 0 | O5: 0
B6: Alimentation - Hébergement | P6: =SUM(D6:O6) -> 0
B7: Matières consommables | P7: =SUM(D7:O7) -> 0
B8: Combustibles | P8: 0
B9: Eau - Electricité - Gaz | P9: 0
B10: Pharmacie - Soins | P10: 0
B11: Acquisition mobilier et matériel | P11: 0
B12: Fournitures administratives | P12: 0
B13: Vestiaire personnel des Sœurs | P13: 0
B14: Loyer | P14: 0
B15: Entretien mobilier, matériel | P15: 0
B16: Entretien matériel de transport | P16: 0
B17: Form. permanente-Ressourc. Spirituel | P17: 0
B18: Culture et loisirs | P18: 0
B19: Prestations diverses | P19: 0
B20: Cotis. Pourb., Cadeaux, Frais culte | P20: 0
B21: Déplacements | P21: 0
B22: Frais postaux & télécommunication | P22: 0
B23: Impôts & Taxes (Tv /Habitation / PV) | P23: 0
B24: Impôts Revenu Pers. Physiques | P24: 0
B25: Charges de personnel | P25: 0
B26: Cotisation Mutuelle | P26: 0
B27: Partage - Solidarité | P27: =SUM(D27:O27) -> 0
B28: Versement à la Fraternité | P28: 0
B29: Versement au budget régional | P29: 0
B30: Donné aux Soeurs depuis caisse ou banque | P30: 0
B31: Retrait compte. courant pour caisse | P31: 0
B32: Dépenses | C32: Espèces | P32: 0
C33: Banque | D33: =D34-D32 -> 0 | E33: =E34-E32 -> 0 | F33: 0 | G33: 0 | H33: 0 | I33: 0 | J33: 0 | K33: 0 | L33: 0 | M33: 0 | N33: 0 | O33: 0 | P33: 0
B34: Total dépenses | C34: Total | D34: =SUM(D6:D31) -> 0 | E34: 0 | F34: 0 | G34: 0 | H34: 0 | I34: 0 | J34: 0 | K34: 0 | L34: 0 | M34: 0 | N34: 0 | O34: 0 | P34: 0
A35: RECETTES | B35: Salaires nets | P35: 0
B36: Indemnités | P36: 0
B37: Rentes CAVIMAC | P37: 0
B38: Rente CARSAT - MSA - CNAV | P38: 0
B39: Autres rentes | P39: 0
B40: Allocation logement | P40: 0
B41: A.P.L. | P41: 0
B42: Aide sociale | P42: 0
B43: Remboursements soins | P43: 0
B44: Recettes d'accueil | P44: 0
B45: Dons reçus | P45: 0
B46: Reçus des Sœurs | P46: 0
B47: Subvention reçue du budget régional | P47: 0
B48: Mis en caisse depuis cpte courant (Srs+Frat) | P48: 0
B49: Reçu de Fraternité (caisse & banque) | P49: 0
B50: Recettes | C50: Espèces | P50: 0
C51: Banque | D51: =D52-D50 -> 0 | E51: =E52-E50 -> 0 | F51: 0 | G51: 0 | H51: 0 | I51: 0 | J51: 0 | K51: 0 | L51: 0 | M51: 0 | N51: 0 | O51: 0 | P51: 0
C52: Total | D52: =SUM(D35:D49) -> 0 | E52: 0 | F52: 0 | G52: 0 | H52: 0 | I52: 0 | J52: 0 | K52: 0 | L52: 0 | M52: 0 | N52: 0 | O52: 0 | P52: 0
B53: Solde à fin de mois | C53: Espèces | D53: =D3-D32+D50 -> 0 | E53: 0 | F53: 0 | G53: 0 | H53: 0 | I53: 0 | J53: 0 | K53: 0 | L53: 0 | M53: 0 | N53: 0 | O53: 0
C54: Banque | D54: =D4-D33+D51 -> 0 | E54: 0 | F54: 0 | G54: 0 | H54: 0 | I54: 0 | J54: 0 | K54: 0 | L54: 0 | M54: 0 | N54: 0 | O54: 0
C55: Total | D55: =D53+D54 -> 0 | E55: =E53+E54 -> 0 | F55: 0 | G55: 0 | H55: 0 | I55: 0 | J55: 0 | K55: 0 | L55: 0 | M55: 0 | N55: 0 | O55: 0

Sheet S23
H1: ="Fraternité : " & Deb_fin_exercice!C2& " Exercice " &Deb_fin_exercice!H1 -> Fraternité : Ma Fraternité Exercice 2015
B2: =Deb_fin_exercice!B32 -> 0 | D2: JANVIER | E2: FEVRIER | F2: MARS | G2: AVRIL | H2: MAI | I2: JUIN | J2: JUILLET | K2: AOUT | L2: SEPTEMBRE | M2: OCTOBRE | N2: NOVEMBRE | O2: DECEMBRE | P2: Total annuel (après saisie de décembre)
A3: DEPENSES | B3: Avoir en début de mois | C3: Espèces | D3: =Deb_fin_exercice!D32 -> 0 | E3: =D53 -> 0 | F3: =E53 -> 0 | G3: 0 | H3: 0 | I3: 0 | J3: 0 | K3: 0 | L3: 0 | M3: 0 | N3: 0 | O3: 0
C4: Banque | D4: =Deb_fin_exercice!E32 -> 0 | E4: =D54 -> 0 | F4: =E54 -> 0 | G4: 0 | H4: 0 | I4: 0 | J4: 0 | K4: 0 | L4: 0 | M4: 0 | N4: 0 | O4: 0
C5: Total | D5: =Deb_fin_exercice!F32 -> 0 | E5: =E3+E4 -> 0 | F5: 0 | G5: 0 | H5: 0 | I5: 0 | J5: 0 | K5: 0 | L5: 0 | M5: 0 | N5: 0 | O5: 0
B6: Alimentation - Hébergement | P6: =SUM(D6:O6) -> 0
B7: Matières consommables | P7: =SUM(D7:O7) -> 0
B8: Combustibles | P8: 0
B9: Eau - Electricité - Gaz | P9: 0
B10: Pharmacie - Soins | P10: 0
B11: Acquisition mobilier et matériel | P11: 0
B12: Fournitures administratives | P12: 0
B13: Vestiaire personnel des Sœurs | P13: 0
B14: Loyer | P14: 0
B15: Entretien mobilier, matériel | P15: 0
B16: Entretien matériel de transport | P16: 0
B17: Form. permanente-Ressourc. Spirituel | P17: 0
B18: Culture et loisirs | P18: 0
B19: Prestations diverses | P19: 0
B20: Cotis. Pourb., Cadeaux, Frais culte | P20: 0
B21: Déplacements | P21: 0
B22: Frais postaux & télécommunication | P22: 0
B23: Impôts & Taxes (Tv /Habitation / PV) | P23: 0
B24: Impôts Revenu Pers. Physiques | P24: 0
B25: Charges de personnel | P25: 0
B26: Cotisation Mutuelle | P26: 0
B27: Partage - Solidarité | P27: =SUM(D27:O27) -> 0
B28: Versement à la Fraternité | P28: 0
B29: Versement au budget régional | P29: 0
B30: Donné aux Soeurs depuis caisse ou banque | P30: 0
B31: Retrait compte. courant pour caisse | P31: 0
B32: Dépenses | C32: Espèces | P32: 0
C33: Banque | D33: =D34-D32 -> 0 | E33: =E34-E32 -> 0 | F33: 0 | G33: 0 | H33: 0 | I33: 0 | J33: 0 | K33: 0 | L33: 0 | M33: 0 | N33: 0 | O33: 0 | P33: 0
B34: Total dépenses | C34: Total | D34: =SUM(D6:D31) -> 0 | E34: 0 | F34: 0 | G34: 0 | H34: 0 | I34: 0 | J34: 0 | K34: 0 | L34: 0 | M34: 0 | N34: 0 | O34: 0 | P34: 0
A35: RECETTES | B35: Salaires nets | P35: 0
B36: Indemnités | P36: 0
B37: Rentes CAVIMAC | P37: 0
B38: Rente CARSAT - MSA - CNAV | P38: 0
B39: Autres rentes | P39: 0
B40: Allocation logement | P40: 0
B41: A.P.L. | P41: 0
B42: Aide sociale | P42: 0
B43: Remboursements soins | P43: 0
B44: Recettes d'accueil | P44: 0
B45: Dons reçus | P45: 0
B46: Reçus des Sœurs | P46: 0
B47: Subvention reçue du budget régional | P47: 0
B48: Mis en caisse depuis cpte courant (Srs+Frat) | P48: 0
B49: Reçu de Fraternité (caisse & banque) | P49: 0
B50: Recettes | C50: Espèces | P50: 0
C51: Banque | D51: =D52-D50 -> 0 | E51: =E52-E50 -> 0 | F51: 0 | G51: 0 | H51: 0 | I51: 0 | J51: 0 | K51: 0 | L51: 0 | M51: 0 | N51: 0 | O51: 0 | P51: 0
C52: Total | D52: =SUM(D35:D49) -> 0 | E52: 0 | F52: 0 | G52: 0 | H52: 0 | I52: 0 | J52: 0 | K52: 0 | L52: 0 | M52: 0 | N52: 0 | O52: 0 | P52: 0
B53: Solde à fin de mois | C53: Espèces | D53: =D3-D32+D50 -> 0 | E53: 0 | F53: 0 | G53: 0 | H53: 0 | I53: 0 | J53: 0 | K53: 0 | L53: 0 | M53: 0 | N53: 0 | O53: 0
C54: Banque | D54: =D4-D33+D51 -> 0 | E54: 0 | F54: 0 | G54: 0 | H54: 0 | I54: 0 | J54: 0 | K54: 0 | L54: 0 | M54: 0 | N54: 0 | O54: 0
C55: Total | D55: =D53+D54 -> 0 | E55: =E53+E54 -> 0 | F55: 0 | G55: 0 | H55: 0 | I55: 0 | J55: 0 | K55: 0 | L55: 0 | M55: 0 | N55: 0 | O55: 0

Sheet S24
H1: ="Fraternité : " & Deb_fin_exercice!C2& " Exercice " &Deb_fin_exercice!H1 -> Fraternité : Ma Fraternité Exercice 2015
B2: =Deb_fin_exercice!B33 -> 0 | D2: JANVIER | E2: FEVRIER | F2: MARS | G2: AVRIL | H2: MAI | I2: JUIN | J2: JUILLET | K2: AOUT | L2: SEPTEMBRE | M2: OCTOBRE | N2: NOVEMBRE | O2: DECEMBRE | P2: Total annuel (après saisie de décembre)
A3: DEPENSES | B3: Avoir en début de mois | C3: Espèces | D3: =Deb_fin_exercice!D33 -> 0 | E3: =D53 -> 0 | F3: =E53 -> 0 | G3: 0 | H3: 0 | I3: 0 | J3: 0 | K3: 0 | L3: 0 | M3: 0 | N3: 0 | O3: 0
C4: Banque | D4: =Deb_fin_exercice!E33 -> 0 | E4: =D54 -> 0 | F4: =E54 -> 0 | G4: 0 | H4: 0 | I4: 0 | J4: 0 | K4: 0 | L4: 0 | M4: 0 | N4: 0 | O4: 0
C5: Total | D5: =Deb_fin_exercice!F33 -> 0 | E5: =E3+E4 -> 0 | F5: 0 | G5: 0 | H5: 0 | I5: 0 | J5: 0 | K5: 0 | L5: 0 | M5: 0 | N5: 0 | O5: 0
B6: Alimentation - Hébergement | P6: =SUM(D6:O6) -> 0
B7: Matières consommables | P7: =SUM(D7:O7) -> 0
B8: Combustibles | P8: 0
B9: Eau - Electricité - Gaz | P9: 0
B10: Pharmacie - Soins | P10: 0
B11: Acquisition mobilier et matériel | P11: 0
B12: Fournitures administratives | P12: 0
B13: Vestiaire personnel des Sœurs | P13: 0
B14: Loyer | P14: 0
B15: Entretien mobilier, matériel | P15: 0
B16: Entretien matériel de transport | P16: 0
B17: Form. permanente-Ressourc. Spirituel | P17: 0
B18: Culture et loisirs | P18: 0
B19: Prestations diverses | P19: 0
B20: Cotis. Pourb., Cadeaux, Frais culte | P20: 0
B21: Déplacements | P21: 0
B22: Frais postaux & télécommunication | P22: 0
B23: Impôts & Taxes (Tv /Habitation / PV) | P23: 0
B24: Impôts Revenu Pers. Physiques | P24: 0
B25: Charges de personnel | P25: 0
B26: Cotisation Mutuelle | P26: 0
B27: Partage - Solidarité | P27: =SUM(D27:O27) -> 0
B28: Versement à la Fraternité | P28: 0
B29: Versement au budget régional | P29: 0
B30: Donné aux Soeurs depuis caisse ou banque | P30: 0
B31: Retrait compte. courant pour caisse | P31: 0
B32: Dépenses | C32: Espèces | P32: 0
C33: Banque | D33: =D34-D32 -> 0 | E33: =E34-E32 -> 0 | F33: 0 | G33: 0 | H33: 0 | I33: 0 | J33: 0 | K33: 0 | L33: 0 | M33: 0 | N33: 0 | O33: 0 | P33: 0
B34: Total dépenses | C34: Total | D34: =SUM(D6:D31) -> 0 | E34: 0 | F34: 0 | G34: 0 | H34: 0 | I34: 0 | J34: 0 | K34: 0 | L34: 0 | M34: 0 | N34: 0 | O34: 0 | P34: 0
A35: RECETTES | B35: Salaires nets | P35: 0
B36: Indemnités | P36: 0
B37: Rentes CAVIMAC | P37: 0
B38: Rente CARSAT - MSA - CNAV | P38: 0
B39: Autres rentes | P39: 0
B40: Allocation logement | P40: 0
B41: A.P.L. | P41: 0
B42: Aide sociale | P42: 0
B43: Remboursements soins | P43: 0
B44: Recettes d'accueil | P44: 0
B45: Dons reçus | P45: 0
B46: Reçus des Sœurs | P46: 0
B47: Subvention reçue du budget régional | P47: 0
B48: Mis en caisse depuis cpte courant (Srs+Frat) | P48: 0
B49: Reçu de Fraternité (caisse & banque) | P49: 0
B50: Recettes | C50: Espèces | P50: 0
C51: Banque | D51: =D52-D50 -> 0 | E51: =E52-E50 -> 0 | F51: 0 | G51: 0 | H51: 0 | I51: 0 | J51: 0 | K51: 0 | L51: 0 | M51: 0 | N51: 0 | O51: 0 | P51: 0
C52: Total | D52: =SUM(D35:D49) -> 0 | E52: 0 | F52: 0 | G52: 0 | H52: 0 | I52: 0 | J52: 0 | K52: 0 | L52: 0 | M52: 0 | N52: 0 | O52: 0 | P52: 0
B53: Solde à fin de mois | C53: Espèces | D53: =D3-D32+D50 -> 0 | E53: 0 | F53: 0 | G53: 0 | H53: 0 | I53: 0 | J53: 0 | K53: 0 | L53: 0 | M53: 0 | N53: 0 | O53: 0
C54: Banque | D54: =D4-D33+D51 -> 0 | E54: 0 | F54: 0 | G54: 0 | H54: 0 | I54: 0 | J54: 0 | K54: 0 | L54: 0 | M54: 0 | N54: 0 | O54: 0
C55: Total | D55: =D53+D54 -> 0 | E55: =E53+E54 -> 0 | F55: 0 | G55: 0 | H55: 0 | I55: 0 | J55: 0 | K55: 0 | L55: 0 | M55: 0 | N55: 0 | O55: 0

Sheet S25
H1: ="Fraternité : " & Deb_fin_exercice!C2& " Exercice " &Deb_fin_exercice!H1 -> Fraternité : Ma Fraternité Exercice 2015
B2: =Deb_fin_exercice!B34 -> 0 | D2: JANVIER | E2: FEVRIER | F2: MARS | G2: AVRIL | H2: MAI | I2: JUIN | J2: JUILLET | K2: AOUT | L2: SEPTEMBRE | M2: OCTOBRE | N2: NOVEMBRE | O2: DECEMBRE | P2: Total annuel (après saisie de décembre)
A3: DEPENSES | B3: Avoir en début de mois | C3: Espèces | D3: =Deb_fin_exercice!D34 -> 0 | E3: =D53 -> 0 | F3: =E53 -> 0 | G3: 0 | H3: 0 | I3: 0 | J3: 0 | K3: 0 | L3: 0 | M3: 0 | N3: 0 | O3: 0
C4: Banque | D4: =Deb_fin_exercice!E34 -> 0 | E4: =D54 -> 0 | F4: =E54 -> 0 | G4: 0 | H4: 0 | I4: 0 | J4: 0 | K4: 0 | L4: 0 | M4: 0 | N4: 0 | O4: 0
C5: Total | D5: =Deb_fin_exercice!F34 -> 0 | E5: =E3+E4 -> 0 | F5: 0 | G5: 0 | H5: 0 | I5: 0 | J5: 0 | K5: 0 | L5: 0 | M5: 0 | N5: 0 | O5: 0
B6: Alimentation - Hébergement | P6: =SUM(D6:O6) -> 0
B7: Matières consommables | P7: =SUM(D7:O7) -> 0
B8: Combustibles | P8: 0
B9: Eau - Electricité - Gaz | P9: 0
B10: Pharmacie - Soins | P10: 0
B11: Acquisition mobilier et matériel | P11: 0
B12: Fournitures administratives | P12: 0
B13: Vestiaire personnel des Sœurs | P13: 0
B14: Loyer | P14: 0
B15: Entretien mobilier, matériel | P15: 0
B16: Entretien matériel de transport | P16: 0
B17: Form. permanente-Ressourc. Spirituel | P17: 0
B18: Culture et loisirs | P18: 0
B19: Prestations diverses | P19: 0
B20: Cotis. Pourb., Cadeaux, Frais culte | P20: 0
B21: Déplacements | P21: 0
B22: Frais postaux & télécommunication | P22: 0
B23: Impôts & Taxes (Tv /Habitation / PV) | P23: 0
B24: Impôts Revenu Pers. Physiques | P24: 0
B25: Charges de personnel | P25: 0
B26: Cotisation Mutuelle | P26: 0
B27: Partage - Solidarité | P27: =SUM(D27:O27) -> 0
B28: Versement à la Fraternité | P28: 0
B29: Versement au budget régional | P29: 0
B30: Donné aux Soeurs depuis caisse ou banque | P30: 0
B31: Retrait compte. courant pour caisse | P31: 0
B32: Dépenses | C32: Espèces | P32: 0
C33: Banque | D33: =D34-D32 -> 0 | E33: =E34-E32 -> 0 | F33: 0 | G33: 0 | H33: 0 | I33: 0 | J33: 0 | K33: 0 | L33: 0 | M33: 0 | N33: 0 | O33: 0 | P33: 0
B34: Total dépenses | C34: Total | D34: =SUM(D6:D31) -> 0 | E34: 0 | F34: 0 | G34: 0 | H34: 0 | I34: 0 | J34: 0 | K34: 0 | L34: 0 | M34: 0 | N34: 0 | O34: 0 | P34: 0
A35: RECETTES | B35: Salaires nets | P35: 0
B36: Indemnités | P36: 0
B37: Rentes CAVIMAC | P37: 0
B38: Rente CARSAT - MSA - CNAV | P38: 0
B39: Autres rentes | P39: 0
B40: Allocation logement | P40: 0
B41: A.P.L. | P41: 0
B42: Aide sociale | P42: 0
B43: Remboursements soins | P43: 0
B44: Recettes d'accueil | P44: 0
B45: Dons reçus | P45: 0
B46: Reçus des Sœurs | P46: 0
B47: Subvention reçue du budget régional | P47: 0
B48: Mis en caisse depuis cpte courant (Srs+Frat) | P48: 0
B49: Reçu de Fraternité (caisse & banque) | P49: 0
B50: Recettes | C50: Espèces | P50: 0
C51: Banque | D51: =D52-D50 -> 0 | E51: =E52-E50 -> 0 | F51: 0 | G51: 0 | H51: 0 | I51: 0 | J51: 0 | K51: 0 | L51: 0 | M51: 0 | N51: 0 | O51: 0 | P51: 0
C52: Total | D52: =SUM(D35:D49) -> 0 | E52: 0 | F52: 0 | G52: 0 | H52: 0 | I52: 0 | J52: 0 | K52: 0 | L52: 0 | M52: 0 | N52: 0 | O52: 0 | P52: 0
B53: Solde à fin de mois | C53: Espèces | D53: =D3-D32+D50 -> 0 | E53: 0 | F53: 0 | G53: 0 | H53: 0 | I53: 0 | J53: 0 | K53: 0 | L53: 0 | M53: 0 | N53: 0 | O53: 0
C54: Banque | D54: =D4-D33+D51 -> 0 | E54: 0 | F54: 0 | G54: 0 | H54: 0 | I54: 0 | J54: 0 | K54: 0 | L54: 0 | M54: 0 | N54: 0 | O54: 0
C55: Total | D55: =D53+D54 -> 0 | E55: =E53+E54 -> 0 | F55: 0 | G55: 0 | H55: 0 | I55: 0 | J55: 0 | K55: 0 | L55: 0 | M55: 0 | N55: 0 | O55: 0

Sheet Frat
H1: ="Fraternité : " & Deb_fin_exercice!C2& " Exercice " &Deb_fin_exercice!H1 -> Fraternité : Ma Fraternité Exercice 2015
B2: Fraternité | D2: JANVIER | E2: FEVRIER | F2: MARS | G2: AVRIL | H2: MAI | I2: JUIN | J2: JUILLET | K2: AOUT | L2: SEPTEMBRE | M2: OCTOBRE | N2: NOVEMBRE | O2: DECEMBRE | P2: Total annuel (après saisie de décembre)
A3: DEPENSES | B3: Avoir en début de mois | C3: Espèces | D3: =Deb_fin_exercice!D4 -> 20 | E3: =D53 -> 280 | F3: 40 | G3: 100 | H3: 170 | I3: 310 | J3: 310 | K3: 310 | L3: 310 | M3: 310 | N3: 310 | O3: 310
C4: Banque | D4: =Deb_fin_exercice!D5 -> 11822.55 | E4: 14128.69 | F4: 13633.89 | G4: 15386.56 | H4: 15463.19 | I4: 14730.12 | J4: 14730.12 | K4: 14730.12 | L4: 14730.12 | M4: 14730.12 | N4: 14730.12 | O4: 14730.12
C5: Total | D5: =Deb_fin_exercice!E4 -> 11842.55 | E5: =D55 -> 14408.69 | F5: 13673.89 | G5: 15486.56 | H5: 15633.19 | I5: 15040.12 | J5: 15040.12 | K5: 15040.12 | L5: 15040.12 | M5: 15040.12 | N5: 15040.12 | O5: 15040.12
B6: Alimentation - Hébergement | D6: 3486.37 | E6: 3721.21 | F6: 3120.77 | G6: 3283.41 | H6: 2793.65 | P6: =SUM(D6:O6) -> 16405.41
B7: Matières consommables | E7: 148.29 | F7: 64.15 | H7: 38.85 | P7: 251.29
B8: Combustibles | D8: 3654.57 | E8: -140.88 | F8: 4435.47 | G8: 3083.07 | H8: 2049.05 | P8: 13081.28
B9: Eau - Electricité - Gaz | D9: 1746.29 | E9: 1021.1 | F9: 502.56 | G9: 2305.84 | P9: 5575.79
B10: Pharmacie - Soins | P10: 0
B11: Acquisition mobilier et matériel | P11: 0
B12: Fournitures administratives | P12: 0
B13: Vestiaire personnel des Sœurs | F13: 263.5 | P13: 263.5
B14: Loyer | P14: 0
B15: Entretien mobilier, matériel | D15: 49.9 | F15: 100 | G15: 25 | H15: 55.2 | P15: 230.1
B16: Entretien matériel de transport | E16: 1434.31 | G16: 230.76 | H16: 59 | P16: 1724.07
B17: Form. permanente-Ressourc. Spirituel | G17: 20 | P17: 20
B18: Culture et loisirs | D18: 11.4 | E18: 20 | P18: 31.4
B19: Prestations diverses | P19: 0
B20: Cotis. Pourb., Cadeaux, Frais culte | D20: 17 | E20: 819.11 | F20: 17 | G20: 17 | H20: 34 | P20: 904.11
B21: Déplacements | G21: 121.2 | P21: 121.2
B22: Frais postaux & télécommunication | D22: 753.33 | E22: 100.66 | F22: 356.88 | G22: 87.09 | H22: 281.32 | P22: 1579.28
B23: Impôts & Taxes (Tv /Habitation / PV) | P23: 0
B24: Impôts Revenu Pers. Physiques | E24: 266 | P24: 266
B25: Charges de personnel | H25: 80 | P25: 80
B26: Cotisation Mutuelle | P26: 0
B27: Partage - Solidarité | P27: 0
B28: Versement à la Fraternité | P28: 0
B29: Versement au budget régional | E29: 5000 | P29: 5000
B30: Donné aux Soeurs depuis caisse ou banque | D30: 440 | E30: 240 | F30: 240 | G30: 230 | H30: 260 | P30: =SUM(D30:O30) -> 1410
B31: Retrait compte. courant pour caisse | D31: 700 | F31: 400 | G31: 300 | H31: 400 | P31: 1800
B32: Dépenses | C32: Espèces | D32: 440 | E32: 240 | F32: 340 | G32: 230 | H32: 260 | P32: 1510
C33: Banque | D33: =D34-D32 -> 10418.86 | E33: =E34-E32 -> 12389.8 | F33: 9160.33 | G33: 9473.37 | H33: 5791.07 | I33: 0 | J33: 0 | K33: 0 | L33: 0 | M33: 0 | N33: =N34-N32 -> 0 | O33: 0 | P33: 47233.43
B34: Total dépenses | C34: Total | D34: =SUM(D6:D31) -> 10858.86 | E34: 12629.8 | F34: 9500.33 | G34: 9703.37 | H34: 6051.07 | I34: 0 | J34: 0 | K34: 0 | L34: 0 | M34: 0 | N34: =SUM(N6:N31) -> 0 | O34: =SUM(O6:O31) -> 0 | P34: 48743.43
A35: RECETTES | B35: Salaires nets | P35: 0
B36: Indemnités | P36: 0
B37: Rentes CAVIMAC | P37: 0
B38: Rente CARSAT - MSA - CNAV | P38: 0
B39: Autres rentes | P39: 0
B40: Allocation logement | P40: 0
B41: A.P.L. | P41: 0
B42: Aide sociale | P42: 0
B43: Remboursements soins | P43: 0
B44: Recettes d'accueil | D44: 475 | E44: 195 | F44: 213 | G44: 150 | H44: 658 | P44: 1691
B45: Dons reçus | P45: 0
B46: Reçus des Sœurs | D46: 12250 | E46: 11700 | F46: 10700 | G46: 9400 | H46: 4400 | P46: 48450
B47: Subvention reçue du budget régional | P47: 0
B48: Mis en caisse depuis cpte courant (Srs+Frat) | D48: 700 | E48: 0 | F48: 400 | G48: 300 | H48: 400 | P48: 1800
B49: Reçu de Fraternité (caisse & banque) | P49: 0
B50: Recettes | C50: Espèces | D50: 700 | E50: 0 | F50: 400 | G50: 300 | H50: 400 | P50: 1800
C51: Banque | D51: =D52-D50 -> 12725 | E51: 11895 | F51: 10913 | G51: 9550 | H51: 5058 | I51: 0 | J51: 0 | K51: 0 | L51: 0 | M51: =M52-M50 -> 0 | N51: =N52-N50 -> 0 | O51: 0 | P51: 50141
C52: Total | D52: =SUM(D35:D49) -> 13425 | E52: 11895 | F52: 11313 | G52: 9850 | H52: 5458 | I52: 0 | J52: 0 | K52: 0 | L52: 0 | M52: =SUM(M35:M49) -> 0 | N52: =SUM(N35:N49) -> 0 | O52: 0 | P52: 51941
B53: Solde à fin de mois | C53: Espèces | D53: =D3-D32+D50 -> 280 | E53: 40 | F53: 100 | G53: 170 | H53: 310 | I53: 310 | J53: 310 | K53: 310 | L53: 310 | M53: 310 | N53: =N3-N32+N50 -> 310 | O53: 310
C54: Banque | D54: =D4-D33+D51 -> 14128.69 | E54: 13633.89 | F54: 15386.56 | G54: 15463.19 | H54: 14730.12 | I54: 14730.12 | J54: 14730.12 | K54: 14730.12 | L54: 14730.12 | M54: =M4-M33+M51 -> 14730.12 | N54: =N4-N33+N51 -> 14730.12 | O54: 14730.12
C55: Total | D55: =D53+D54 -> 14408.69 | E55: 13673.89 | F55: 15486.56 | G55: 15633.19 | H55: 15040.12 | I55: 15040.12 | J55: 15040.12 | K55: 15040.12 | L55: 15040.12 | M55: 15040.12 | N55: 15040.12 | O55: 15040.12

Sheet T_S
H1: ="Fraternité : " & Deb_fin_exercice!C2& " Exercice " &Deb_fin_exercice!H1 -> Fraternité : Ma Fraternité Exercice 2015
B2: Récapitulatif toutes Sœurs | D2: JANVIER | E2: FEVRIER | F2: MARS | G2: AVRIL | H2: MAI | I2: JUIN | J2: JUILLET | K2: AOUT | L2: SEPTEMBRE | M2: OCTOBRE | N2: NOVEMBRE | O2: DECEMBRE | P2: Total annuel (après saisie de décembre)
A3: DEPENSES | B3: Avoir en début de mois | C3: Espèces | D3: =SUM('S1:S25'!D3) -> 165.97 | E3: =SUM('S1:S25'!E3) -> 232.68 | F3: =SUM('S1:S25'!F3) -> 252.86 | G3: =SUM('S1:S25'!G3) -> 175.89 | H3: =SUM('S1:S25'!H3) -> 223.4 | I3: =SUM('S1:S25'!I3) -> 189.04 | J3: =SUM('S1:S25'!J3) -> 189.04 | K3: =SUM('S1:S25'!K3) -> 189.04 | L3: =SUM('S1:S25'!L3) -> 189.04 | M3: =SUM('S1:S25'!M3) -> 189.04 | N3: =SUM('S1:S25'!N3) -> 189.04 | O3: =SUM('S1:S25'!O3) -> 189.04
C4: Banque | D4: =SUM('S1:S25'!D4) -> 14771.48 | E4: =SUM('S1:S25'!E4) -> 12867.61 | F4: =SUM('S1:S25'!F4) -> 11945.07 | G4: =SUM('S1:S25'!G4) -> 12091.35 | H4: =SUM('S1:S25'!H4) -> 11981.38 | I4: =SUM('S1:S25'!I4) -> 13539.25 | J4: =SUM('S1:S25'!J4) -> 13539.25 | K4: =SUM('S1:S25'!K4) -> 13539.25 | L4: =SUM('S1:S25'!L4) -> 13539.25 | M4: =SUM('S1:S25'!M4) -> 13539.25 | N4: =SUM('S1:S25'!N4) -> 13539.25 | O4: =SUM('S1:S25'!O4) -> 13539.25
C5: Total | D5: =D3+D4 -> 14937.45 | E5: =E3+E4 -> 13100.29 | F5: 12197.93 | G5: 12267.24 | H5: 12204.78 | I5: 13728.29 | J5: 13728.29 | K5: 13728.29 | L5: 13728.29 | M5: 13728.29 | N5: 13728.29 | O5: 13728.29
B6: Alimentation - Hébergement | D6: =SUM('S1:S25'!D6) -> 335.65 | E6: =SUM('S1:S25'!E6) -> 389.33 | F6: =SUM('S1:S25'!F6) -> 331.47 | G6: =SUM('S1:S25'!G6) -> 513.4 | H6: =SUM('S1:S25'!H6) -> 301.76 | I6: =SUM('S1:S25'!I6) -> 0 | J6: =SUM('S1:S25'!J6) -> 0 | K6: =SUM('S1:S25'!K6) -> 0 | L6: =SUM('S1:S25'!L6) -> 0 | M6: =SUM('S1:S25'!M6) -> 0 | N6: =SUM('S1:S25'!N6) -> 0 | O6: =SUM('S1:S25'!O6) -> 0 | P6: =SUM(D6:O6) -> 1871.61
B7: Matières consommables | D7: =SUM('S1:S25'!D7) -> 211.88 | E7: =SUM('S1:S25'!E7) -> 410.67 | F7: =SUM('S1:S25'!F7) -> 112.8 | G7: =SUM('S1:S25'!G7) -> 347.84 | H7: =SUM('S1:S25'!H7) -> 235.26 | I7: =SUM('S1:S25'!I7) -> 0 | J7: =SUM('S1:S25'!J7) -> 0 | K7: =SUM('S1:S25'!K7) -> 0 | L7: =SUM('S1:S25'!L7) -> 0 | M7: =SUM('S1:S25'!M7) -> 0 | N7: =SUM('S1:S25'!N7) -> 0 | O7: =SUM('S1:S25'!O7) -> 0 | P7: =SUM(D7:O7) -> 1318.45
B8: Combustibles | D8: =SUM('S1:S25'!D8) -> 0 | E8: =SUM('S1:S25'!E8) -> 0 | F8: =SUM('S1:S25'!F8) -> 0 | G8: =SUM('S1:S25'!G8) -> 0 | H8: =SUM('S1:S25'!H8) -> 0 | I8: =SUM('S1:S25'!I8) -> 0 | J8: =SUM('S1:S25'!J8) -> 0 | K8: =SUM('S1:S25'!K8) -> 0 | L8: =SUM('S1:S25'!L8) -> 0 | M8: =SUM('S1:S25'!M8) -> 0 | N8: =SUM('S1:S25'!N8) -> 0 | O8: =SUM('S1:S25'!O8) -> 0 | P8: 0
B9: Eau - Electricité - Gaz | D9: =SUM('S1:S25'!D9) -> 0 | E9: =SUM('S1:S25'!E9) -> 0 | F9: =SUM('S1:S25'!F9) -> 0 | G9: =SUM('S1:S25'!G9) -> 0 | H9: =SUM('S1:S25'!H9) -> 0 | I9: =SUM('S1:S25'!I9) -> 0 | J9: =SUM('S1:S25'!J9) -> 0 | K9: =SUM('S1:S25'!K9) -> 0 | L9: =SUM('S1:S25'!L9) -> 0 | M9: =SUM('S1:S25'!M9) -> 0 | N9: =SUM('S1:S25'!N9) -> 0 | O9: =SUM('S1:S25'!O9) -> 0 | P9: 0
B10: Pharmacie - Soins | D10: =SUM('S1:S25'!D10) -> 842.89 | E10: =SUM('S1:S25'!E10) -> 280.39 | F10: =SUM('S1:S25'!F10) -> 538.99 | G10: =SUM('S1:S25'!G10) -> 380.6 | H10: =SUM('S1:S25'!H10) -> 404 | I10: =SUM('S1:S25'!I10) -> 0 | J10: =SUM('S1:S25'!J10) -> 0 | K10: =SUM('S1:S25'!K10) -> 0 | L10: =SUM('S1:S25'!L10) -> 0 | M10: =SUM('S1:S25'!M10) -> 0 | N10: =SUM('S1:S25'!N10) -> 0 | O10: =SUM('S1:S25'!O10) -> 0 | P10: 2446.87
B11: Acquisition mobilier et matériel | D11: =SUM('S1:S25'!D11) -> 0 | E11: =SUM('S1:S25'!E11) -> 0 | F11: =SUM('S1:S25'!F11) -> 0 | G11: =SUM('S1:S25'!G11) -> 0 | H11: =SUM('S1:S25'!H11) -> 0 | I11: =SUM('S1:S25'!I11) -> 0 | J11: =SUM('S1:S25'!J11) -> 0 | K11: =SUM('S1:S25'!K11) -> 0 | L11: =SUM('S1:S25'!L11) -> 0 | M11: =SUM('S1:S25'!M11) -> 0 | N11: =SUM('S1:S25'!N11) -> 0 | O11: =SUM('S1:S25'!O11) -> 0 | P11: 0
B12: Fournitures administratives | D12: =SUM('S1:S25'!D12) -> 151.11 | E12: =SUM('S1:S25'!E12) -> 23.48 | F12: =SUM('S1:S25'!F12) -> 81.96 | G12: =SUM('S1:S25'!G12) -> 59.28 | H12: =SUM('S1:S25'!H12) -> 4.75 | I12: =SUM('S1:S25'!I12) -> 0 | J12: =SUM('S1:S25'!J12) -> 0 | K12: =SUM('S1:S25'!K12) -> 0 | L12: =SUM('S1:S25'!L12) -> 0 | M12: =SUM('S1:S25'!M12) -> 0 | N12: =SUM('S1:S25'!N12) -> 0 | O12: =SUM('S1:S25'!O12) -> 0 | P12: 320.58
B13: Vestiaire personnel des Sœurs | D13: =SUM('S1:S25'!D13) -> 26.2 | E13: =SUM('S1:S25'!E13) -> 27.8 | F13: =SUM('S1:S25'!F13) -> 124.48 | G13: =SUM('S1:S25'!G13) -> 53.2 | H13: =SUM('S1:S25'!H13) -> 243.5 | I13: =SUM('S1:S25'!I13) -> 0 | J13: =SUM('S1:S25'!J13) -> 0 | K13: =SUM('S1:S25'!K13) -> 0 | L13: =SUM('S1:S25'!L13) -> 0 | M13: =SUM('S1:S25'!M13) -> 0 | N13: =SUM('S1:S25'!N13) -> 0 | O13: =SUM('S1:S25'!O13) -> 0 | P13: 475.18
B14: Loyer | D14: =SUM('S1:S25'!D14) -> 0 | E14: =SUM('S1:S25'!E14) -> 0 | F14: =SUM('S1:S25'!F14) -> 0 | G14: =SUM('S1:S25'!G14) -> 0 | H14: =SUM('S1:S25'!H14) -> 0 | I14: =SUM('S1:S25'!I14) -> 0 | J14: =SUM('S1:S25'!J14) -> 0 | K14: =SUM('S1:S25'!K14) -> 0 | L14: =SUM('S1:S25'!L14) -> 0 | M14: =SUM('S1:S25'!M14) -> 0 | N14: =SUM('S1:S25'!N14) -> 0 | O14: =SUM('S1:S25'!O14) -> 0 | P14: 0
B15: Entretien mobilier, matériel | D15: =SUM('S1:S25'!D15) -> 0 | E15: =SUM('S1:S25'!E15) -> 0 | F15: =SUM('S1:S25'!F15) -> 0 | G15: =SUM('S1:S25'!G15) -> 0 | H15: =SUM('S1:S25'!H15) -> 0 | I15: =SUM('S1:S25'!I15) -> 0 | J15: =SUM('S1:S25'!J15) -> 0 | K15: =SUM('S1:S25'!K15) -> 0 | L15: =SUM('S1:S25'!L15) -> 0 | M15: =SUM('S1:S25'!M15) -> 0 | N15: =SUM('S1:S25'!N15) -> 0 | O15: =SUM('S1:S25'!O15) -> 0 | P15: 0
B16: Entretien matériel de transport | D16: =SUM('S1:S25'!D16) -> 0 | E16: =SUM('S1:S25'!E16) -> 0 | F16: =SUM('S1:S25'!F16) -> 0 | G16: =SUM('S1:S25'!G16) -> 6 | H16: =SUM('S1:S25'!H16) -> 608.94 | I16: =SUM('S1:S25'!I16) -> 0 | J16: =SUM('S1:S25'!J16) -> 0 | K16: =SUM('S1:S25'!K16) -> 0 | L16: =SUM('S1:S25'!L16) -> 0 | M16: =SUM('S1:S25'!M16) -> 0 | N16: =SUM('S1:S25'!N16) -> 0 | O16: =SUM('S1:S25'!O16) -> 0 | P16: 614.94
B17: Form. permanente-Ressourc. Spirituel | D17: =SUM('S1:S25'!D17) -> 38 | E17: =SUM('S1:S25'!E17) -> 0 | F17: =SUM('S1:S25'!F17) -> 25 | G17: =SUM('S1:S25'!G17) -> 70 | H17: =SUM('S1:S25'!H17) -> 88 | I17: =SUM('S1:S25'!I17) -> 0 | J17: =SUM('S1:S25'!J17) -> 0 | K17: =SUM('S1:S25'!K17) -> 0 | L17: =SUM('S1:S25'!L17) -> 0 | M17: =SUM('S1:S25'!M17) -> 0 | N17: =SUM('S1:S25'!N17) -> 0 | O17: =SUM('S1:S25'!O17) -> 0 | P17: 221
B18: Culture et loisirs | D18: =SUM('S1:S25'!D18) -> 8 | E18: =SUM('S1:S25'!E18) -> 8.9 | F18: =SUM('S1:S25'!F18) -> 13 | G18: =SUM('S1:S25'!G18) -> 16 | H18: =SUM('S1:S25'!H18) -> 4.4 | I18: =SUM('S1:S25'!I18) -> 0 | J18: =SUM('S1:S25'!J18) -> 0 | K18: =SUM('S1:S25'!K18) -> 0 | L18: =SUM('S1:S25'!L18) -> 0 | M18: =SUM('S1:S25'!M18) -> 0 | N18: =SUM('S1:S25'!N18) -> 0 | O18: =SUM('S1:S25'!O18) -> 0 | P18: 50.3
B19: Prestations diverses | D19: =SUM('S1:S25'!D19) -> 9.3 | E19: =SUM('S1:S25'!E19) -> 19 | F19: =SUM('S1:S25'!F19) -> 0 | G19: =SUM('S1:S25'!G19) -> 13.5 | H19: =SUM('S1:S25'!H19) -> 0 | I19: =SUM('S1:S25'!I19) -> 0 | J19: =SUM('S1:S25'!J19) -> 0 | K19: =SUM('S1:S25'!K19) -> 0 | L19: =SUM('S1:S25'!L19) -> 0 | M19: =SUM('S1:S25'!M19) -> 0 | N19: =SUM('S1:S25'!N19) -> 0 | O19: =SUM('S1:S25'!O19) -> 0 | P19: 41.8
B20: Cotis. Pourb., Cadeaux, Frais culte | D20: =SUM('S1:S25'!D20) -> 108 | E20: =SUM('S1:S25'!E20) -> 46.7 | F20: =SUM('S1:S25'!F20) -> 49.3 | G20: =SUM('S1:S25'!G20) -> 11.9 | H20: =SUM('S1:S25'!H20) -> 20.7 | I20: =SUM('S1:S25'!I20) -> 0 | J20: =SUM('S1:S25'!J20) -> 0 | K20: =SUM('S1:S25'!K20) -> 0 | L20: =SUM('S1:S25'!L20) -> 0 | M20: =SUM('S1:S25'!M20) -> 0 | N20: =SUM('S1:S25'!N20) -> 0 | O20: =SUM('S1:S25'!O20) -> 0 | P20: 236.6
B21: Déplacements | D21: =SUM('S1:S25'!D21) -> 0 | E21: =SUM('S1:S25'!E21) -> 140.84 | F21: =SUM('S1:S25'!F21) -> 226.43 | G21: =SUM('S1:S25'!G21) -> 109.13 | H21: =SUM('S1:S25'!H21) -> 193.43 | I21: =SUM('S1:S25'!I21) -> 0 | J21: =SUM('S1:S25'!J21) -> 0 | K21: =SUM('S1:S25'!K21) -> 0 | L21: =SUM('S1:S25'!L21) -> 0 | M21: =SUM('S1:S25'!M21) -> 0 | N21: =SUM('S1:S25'!N21) -> 0 | O21: =SUM('S1:S25'!O21) -> 0 | P21: 669.83
B22: Frais postaux & télécommunication | D22: =SUM('S1:S25'!D22) -> 122.7 | E22: =SUM('S1:S25'!E22) -> 44.65 | F22: =SUM('S1:S25'!F22) -> 11.95 | G22: =SUM('S1:S25'!G22) -> 89.2 | H22: =SUM('S1:S25'!H22) -> 52.37 | I22: =SUM('S1:S25'!I22) -> 0 | J22: =SUM('S1:S25'!J22) -> 0 | K22: =SUM('S1:S25'!K22) -> 0 | L22: =SUM('S1:S25'!L22) -> 0 | M22: =SUM('S1:S25'!M22) -> 0 | N22: =SUM('S1:S25'!N22) -> 0 | O22: =SUM('S1:S25'!O22) -> 0 | P22: 320.87
B23: Impôts & Taxes (Tv /Habitation / PV) | D23: =SUM('S1:S25'!D23) -> 0 | E23: =SUM('S1:S25'!E23) -> 176 | F23: =SUM('S1:S25'!F23) -> 0 | G23: =SUM('S1:S25'!G23) -> 0 | H23: =SUM('S1:S25'!H23) -> 0 | I23: =SUM('S1:S25'!I23) -> 0 | J23: =SUM('S1:S25'!J23) -> 0 | K23: =SUM('S1:S25'!K23) -> 0 | L23: =SUM('S1:S25'!L23) -> 0 | M23: =SUM('S1:S25'!M23) -> 0 | N23: =SUM('S1:S25'!N23) -> 0 | O23: =SUM('S1:S25'!O23) -> 0 | P23: 176
B24: Impôts Revenu Pers. Physiques | D24: =SUM('S1:S25'!D24) -> 0 | E24: =SUM('S1:S25'!E24) -> 311 | F24: =SUM('S1:S25'!F24) -> 0 | G24: =SUM('S1:S25'!G24) -> 0 | H24: =SUM('S1:S25'!H24) -> 0 | I24: =SUM('S1:S25'!I24) -> 0 | J24: =SUM('S1:S25'!J24) -> 0 | K24: =SUM('S1:S25'!K24) -> 0 | L24: =SUM('S1:S25'!L24) -> 0 | M24: =SUM('S1:S25'!M24) -> 0 | N24: =SUM('S1:S25'!N24) -> 0 | O24: =SUM('S1:S25'!O24) -> 0 | P24: 311
B25: Charges de personnel | D25: =SUM('S1:S25'!D25) -> 84.67 | E25: =SUM('S1:S25'!E25) -> 75.28 | F25: =SUM('S1:S25'!F25) -> 0 | G25: =SUM('S1:S25'!G25) -> 0 | H25: =SUM('S1:S25'!H25) -> 0 | I25: =SUM('S1:S25'!I25) -> 0 | J25: =SUM('S1:S25'!J25) -> 0 | K25: =SUM('S1:S25'!K25) -> 0 | L25: =SUM('S1:S25'!L25) -> 0 | M25: =SUM('S1:S25'!M25) -> 0 | N25: =SUM('S1:S25'!N25) -> 0 | O25: =SUM('S1:S25'!O25) -> 0 | P25: 159.95
B26: Cotisation Mutuelle | D26: =SUM('S1:S25'!D26) -> 0 | E26: =SUM('S1:S25'!E26) -> 0 | F26: =SUM('S1:S25'!F26) -> 0 | G26: =SUM('S1:S25'!G26) -> 0 | H26: =SUM('S1:S25'!H26) -> 0 | I26: =SUM('S1:S25'!I26) -> 0 | J26: =SUM('S1:S25'!J26) -> 0 | K26: =SUM('S1:S25'!K26) -> 0 | L26: =SUM('S1:S25'!L26) -> 0 | M26: =SUM('S1:S25'!M26) -> 0 | N26: =SUM('S1:S25'!N26) -> 0 | O26: =SUM('S1:S25'!O26) -> 0 | P26: 0
B27: Partage - Solidarité | D27: =SUM('S1:S25'!D27) -> 30 | E27: =SUM('S1:S25'!E27) -> 0 | F27: =SUM('S1:S25'!F27) -> 30 | G27: =SUM('S1:S25'!G27) -> 11 | H27: =SUM('S1:S25'!H27) -> 0 | I27: =SUM('S1:S25'!I27) -> 0 | J27: =SUM('S1:S25'!J27) -> 0 | K27: =SUM('S1:S25'!K27) -> 0 | L27: =SUM('S1:S25'!L27) -> 0 | M27: =SUM('S1:S25'!M27) -> 0 | N27: =SUM('S1:S25'!N27) -> 0 | O27: =SUM('S1:S25'!O27) -> 0 | P27: =SUM(D27:O27) -> 71
B28: Versement à la Fraternité | D28: =SUM('S1:S25'!D28) -> 12250 | E28: =SUM('S1:S25'!E28) -> 11700 | F28: =SUM('S1:S25'!F28) -> 10700 | G28: =SUM('S1:S25'!G28) -> 9400 | H28: =SUM('S1:S25'!H28) -> 6200 | I28: =SUM('S1:S25'!I28) -> 0 | J28: =SUM('S1:S25'!J28) -> 0 | K28: =SUM('S1:S25'!K28) -> 0 | L28: =SUM('S1:S25'!L28) -> 0 | M28: =SUM('S1:S25'!M28) -> 0 | N28: =SUM('S1:S25'!N28) -> 0 | O28: =SUM('S1:S25'!O28) -> 0 | P28: 50250
B29: Versement au budget régional | D29: =SUM('S1:S25'!D29) -> 0 | E29: =SUM('S1:S25'!E29) -> 0 | F29: =SUM('S1:S25'!F29) -> 0 | G29: =SUM('S1:S25'!G29) -> 0 | H29: =SUM('S1:S25'!H29) -> 0 | I29: =SUM('S1:S25'!I29) -> 0 | J29: =SUM('S1:S25'!J29) -> 0 | K29: =SUM('S1:S25'!K29) -> 0 | L29: =SUM('S1:S25'!L29) -> 0 | M29: =SUM('S1:S25'!M29) -> 0 | N29: =SUM('S1:S25'!N29) -> 0 | O29: =SUM('S1:S25'!O29) -> 0 | P29: 0
B30: Donné aux Soeurs depuis caisse ou banque | D30: =SUM('S1:S25'!D30) -> 0 | E30: =SUM('S1:S25'!E30) -> 0 | F30: =SUM('S1:S25'!F30) -> 0 | G30: =SUM('S1:S25'!G30) -> 0 | H30: =SUM('S1:S25'!H30) -> 0 | I30: =SUM('S1:S25'!I30) -> 0 | J30: =SUM('S1:S25'!J30) -> 0 | K30: =SUM('S1:S25'!K30) -> 0 | L30: =SUM('S1:S25'!L30) -> 0 | M30: =SUM('S1:S25'!M30) -> 0 | N30: =SUM('S1:S25'!N30) -> 0 | O30: =SUM('S1:S25'!O30) -> 0 | P30: 0
B31: Retrait compte. courant pour caisse | D31: =SUM('S1:S25'!D31) -> 0 | E31: =SUM('S1:S25'!E31) -> 0 | F31: =SUM('S1:S25'!F31) -> 0 | G31: =SUM('S1:S25'!G31) -> 0 | H31: =SUM('S1:S25'!H31) -> 0 | I31: =SUM('S1:S25'!I31) -> 0 | J31: =SUM('S1:S25'!J31) -> 0 | K31: =SUM('S1:S25'!K31) -> 0 | L31: =SUM('S1:S25'!L31) -> 0 | M31: =SUM('S1:S25'!M31) -> 0 | N31: =SUM('S1:S25'!N31) -> 0 | O31: =SUM('S1:S25'!O31) -> 0 | P31: 0
B32: Dépenses | C32: Espèces | D32: =SUM('S1:S25'!D32) -> 373.29 | E32: =SUM('S1:S25'!E32) -> 219.82 | F32: =SUM('S1:S25'!F32) -> 286.97 | G32: =SUM('S1:S25'!G32) -> 222.49 | H32: =SUM('S1:S25'!H32) -> 294.36 | I32: =SUM('S1:S25'!I32) -> 0 | J32: =SUM('S1:S25'!J32) -> 0 | K32: =SUM('S1:S25'!K32) -> 0 | L32: =SUM('S1:S25'!L32) -> 0 | M32: =SUM('S1:S25'!M32) -> 0 | N32: =SUM('S1:S25'!N32) -> 0 | O32: =SUM('S1:S25'!O32) -> 0 | P32: 1396.93
C33: Banque | D33: =SUM('S1:S25'!D33) -> 13845.11 | E33: =SUM('S1:S25'!E33) -> 13434.22 | F33: =SUM('S1:S25'!F33) -> 11958.41 | G33: =SUM('S1:S25'!G33) -> 10858.56 | H33: =SUM('S1:S25'!H33) -> 8062.75 | I33: =SUM('S1:S25'!I33) -> 0 | J33: =SUM('S1:S25'!J33) -> 0 | K33: =SUM('S1:S25'!K33) -> 0 | L33: =SUM('S1:S25'!L33) -> 0 | M33: =SUM('S1:S25'!M33) -> 0 | N33: =SUM('S1:S25'!N33) -> 0 | O33: =SUM('S1:S25'!O33) -> 0 | P33: 58159.05
B34: Total dépenses | C34: Total | D34: =D32+D33 -> 14218.4 | E34: 13654.04 | F34: 12245.38 | G34: 11081.05 | H34: 8357.11 | I34: 0 | J34: 0 | K34: 0 | L34: 0 | M34: 0 | N34: 0 | O34: 0 | P34: 59555.98
A35: RECETTES | B35: Salaires nets | D35: =SUM('S1:S25'!D35) -> 0 | E35: =SUM('S1:S25'!E35) -> 0 | F35: =SUM('S1:S25'!F35) -> 0 | G35: =SUM('S1:S25'!G35) -> 0 | H35: =SUM('S1:S25'!H35) -> 0 | I35: =SUM('S1:S25'!I35) -> 0 | J35: =SUM('S1:S25'!J35) -> 0 | K35: =SUM('S1:S25'!K35) -> 0 | L35: =SUM('S1:S25'!L35) -> 0 | M35: =SUM('S1:S25'!M35) -> 0 | N35: =SUM('S1:S25'!N35) -> 0 | O35: =SUM('S1:S25'!O35) -> 0 | P35: =SUM(D35:O35) -> 0
B36: Indemnités | D36: =SUM('S1:S25'!D36) -> 0 | E36: =SUM('S1:S25'!E36) -> 0 | F36: =SUM('S1:S25'!F36) -> 0 | G36: =SUM('S1:S25'!G36) -> 0 | H36: =SUM('S1:S25'!H36) -> 0 | I36: =SUM('S1:S25'!I36) -> 0 | J36: =SUM('S1:S25'!J36) -> 0 | K36: =SUM('S1:S25'!K36) -> 0 | L36: =SUM('S1:S25'!L36) -> 0 | M36: =SUM('S1:S25'!M36) -> 0 | N36: =SUM('S1:S25'!N36) -> 0 | O36: =SUM('S1:S25'!O36) -> 0 | P36: 0
B37: Rentes CAVIMAC | D37: =SUM('S1:S25'!D37) -> 3277.16 | E37: =SUM('S1:S25'!E37) -> 3277.16 | F37: =SUM('S1:S25'!F37) -> 3437.16 | G37: =SUM('S1:S25'!G37) -> 3258.56 | H37: =SUM('S1:S25'!H37) -> 2799.54 | I37: =SUM('S1:S25'!I37) -> 0 | J37: =SUM('S1:S25'!J37) -> 0 | K37: =SUM('S1:S25'!K37) -> 0 | L37: =SUM('S1:S25'!L37) -> 0 | M37: =SUM('S1:S25'!M37) -> 0 | N37: =SUM('S1:S25'!N37) -> 0 | O37: =SUM('S1:S25'!O37) -> 0 | P37: 16049.58
B38: Rente CARSAT - MSA - CNAV | D38: =SUM('S1:S25'!D38) -> 4212.84 | E38: =SUM('S1:S25'!E38) -> 4212.84 | F38: =SUM('S1:S25'!F38) -> 4292.84 | G38: =SUM('S1:S25'!G38) -> 4115.99 | H38: =SUM('S1:S25'!H38) -> 3221.79 | I38: =SUM('S1:S25'!I38) -> 0 | J38: =SUM('S1:S25'!J38) -> 0 | K38: =SUM('S1:S25'!K38) -> 0 | L38: =SUM('S1:S25'!L38) -> 0 | M38: =SUM('S1:S25'!M38) -> 0 | N38: =SUM('S1:S25'!N38) -> 0 | O38: =SUM('S1:S25'!O38) -> 0 | P38: 20056.3
B39: Autres rentes | D39: =SUM('S1:S25'!D39) -> 3782.7 | E39: =SUM('S1:S25'!E39) -> 4312.44 | F39: =SUM('S1:S25'!F39) -> 3661.18 | G39: =SUM('S1:S25'!G39) -> 3216.49 | H39: =SUM('S1:S25'!H39) -> 3496.41 | I39: =SUM('S1:S25'!I39) -> 0 | J39: =SUM('S1:S25'!J39) -> 0 | K39: =SUM('S1:S25'!K39) -> 0 | L39: =SUM('S1:S25'!L39) -> 0 | M39: =SUM('S1:S25'!M39) -> 0 | N39: =SUM('S1:S25'!N39) -> 0 | O39: =SUM('S1:S25'!O39) -> 0 | P39: 18469.22
B40: Allocation logement | D40: =SUM('S1:S25'!D40) -> 0 | E40: =SUM('S1:S25'!E40) -> 0 | F40: =SUM('S1:S25'!F40) -> 0 | G40: =SUM('S1:S25'!G40) -> 0 | H40: =SUM('S1:S25'!H40) -> 0 | I40: =SUM('S1:S25'!I40) -> 0 | J40: =SUM('S1:S25'!J40) -> 0 | K40: =SUM('S1:S25'!K40) -> 0 | L40: =SUM('S1:S25'!L40) -> 0 | M40: =SUM('S1:S25'!M40) -> 0 | N40: =SUM('S1:S25'!N40) -> 0 | O40: =SUM('S1:S25'!O40) -> 0 | P40: 0
B41: A.P.L. | D41: =SUM('S1:S25'!D41) -> 0 | E41: =SUM('S1:S25'!E41) -> 0 | F41: =SUM('S1:S25'!F41) -> 0 | G41: =SUM('S1:S25'!G41) -> 0 | H41: =SUM('S1:S25'!H41) -> 0 | I41: =SUM('S1:S25'!I41) -> 0 | J41: =SUM('S1:S25'!J41) -> 0 | K41: =SUM('S1:S25'!K41) -> 0 | L41: =SUM('S1:S25'!L41) -> 0 | M41: =SUM('S1:S25'!M41) -> 0 | N41: =SUM('S1:S25'!N41) -> 0 | O41: =SUM('S1:S25'!O41) -> 0 | P41: 0
B42: Aide sociale | D42: =SUM('S1:S25'!D42) -> 0 | E42: =SUM('S1:S25'!E42) -> 0 | F42: =SUM('S1:S25'!F42) -> 0 | G42: =SUM('S1:S25'!G42) -> 0 | H42: =SUM('S1:S25'!H42) -> 0 | I42: =SUM('S1:S25'!I42) -> 0 | J42: =SUM('S1:S25'!J42) -> 0 | K42: =SUM('S1:S25'!K42) -> 0 | L42: =SUM('S1:S25'!L42) -> 0 | M42: =SUM('S1:S25'!M42) -> 0 | N42: =SUM('S1:S25'!N42) -> 0 | O42: =SUM('S1:S25'!O42) -> 0 | P42: 0
B43: Remboursements soins | D43: =SUM('S1:S25'!D43) -> 668.54 | E43: =SUM('S1:S25'!E43) -> 209.24 | F43: =SUM('S1:S25'!F43) -> 713.51 | G43: =SUM('S1:S25'!G43) -> 167.55 | H43: =SUM('S1:S25'!H43) -> 102.88 | I43: =SUM('S1:S25'!I43) -> 0 | J43: =SUM('S1:S25'!J43) -> 0 | K43: =SUM('S1:S25'!K43) -> 0 | L43: =SUM('S1:S25'!L43) -> 0 | M43: =SUM('S1:S25'!M43) -> 0 | N43: =SUM('S1:S25'!N43) -> 0 | O43: =SUM('S1:S25'!O43) -> 0 | P43: 1861.72
B44: Recettes d'accueil | D44: =SUM('S1:S25'!D44) -> 0 | E44: =SUM('S1:S25'!E44) -> 0 | F44: =SUM('S1:S25'!F44) -> 0 | G44: =SUM('S1:S25'!G44) -> 0 | H44: =SUM('S1:S25'!H44) -> 0 | I44: =SUM('S1:S25'!I44) -> 0 | J44: =SUM('S1:S25'!J44) -> 0 | K44: =SUM('S1:S25'!K44) -> 0 | L44: =SUM('S1:S25'!L44) -> 0 | M44: =SUM('S1:S25'!M44) -> 0 | N44: =SUM('S1:S25'!N44) -> 0 | O44: =SUM('S1:S25'!O44) -> 0 | P44: 0
B45: Dons reçus | D45: =SUM('S1:S25'!D45) -> 0 | E45: =SUM('S1:S25'!E45) -> 500 | F45: =SUM('S1:S25'!F45) -> 0 | G45: =SUM('S1:S25'!G45) -> 0 | H45: =SUM('S1:S25'!H45) -> 0 | I45: =SUM('S1:S25'!I45) -> 0 | J45: =SUM('S1:S25'!J45) -> 0 | K45: =SUM('S1:S25'!K45) -> 0 | L45: =SUM('S1:S25'!L45) -> 0 | M45: =SUM('S1:S25'!M45) -> 0 | N45: =SUM('S1:S25'!N45) -> 0 | O45: =SUM('S1:S25'!O45) -> 0 | P45: 500
B46: Reçus des Sœurs | D46: =SUM('S1:S25'!D46) -> 0 | E46: =SUM('S1:S25'!E46) -> 0 | F46: =SUM('S1:S25'!F46) -> 0 | G46: =SUM('S1:S25'!G46) -> 0 | H46: =SUM('S1:S25'!H46) -> 0 | I46: =SUM('S1:S25'!I46) -> 0 | J46: =SUM('S1:S25'!J46) -> 0 | K46: =SUM('S1:S25'!K46) -> 0 | L46: =SUM('S1:S25'!L46) -> 0 | M46: =SUM('S1:S25'!M46) -> 0 | N46: =SUM('S1:S25'!N46) -> 0 | O46: =SUM('S1:S25'!O46) -> 0 | P46: 0
B47: Subvention reçue du budget régional | D47: =SUM('S1:S25'!D47) -> 0 | E47: =SUM('S1:S25'!E47) -> 0 | F47: =SUM('S1:S25'!F47) -> 0 | G47: =SUM('S1:S25'!G47) -> 0 | H47: =SUM('S1:S25'!H47) -> 0 | I47: =SUM('S1:S25'!I47) -> 0 | J47: =SUM('S1:S25'!J47) -> 0 | K47: =SUM('S1:S25'!K47) -> 0 | L47: =SUM('S1:S25'!L47) -> 0 | M47: =SUM('S1:S25'!M47) -> 0 | N47: =SUM('S1:S25'!N47) -> 0 | O47: =SUM('S1:S25'!O47) -> 0 | P47: 0
B48: Mis en caisse depuis cpte courant (Srs+Frat) | D48: =SUM('S1:S25'!D48) -> 0 | E48: =SUM('S1:S25'!E48) -> 0 | F48: =SUM('S1:S25'!F48) -> 0 | G48: =SUM('S1:S25'!G48) -> 0 | H48: =SUM('S1:S25'!H48) -> 0 | I48: =SUM('S1:S25'!I48) -> 0 | J48: =SUM('S1:S25'!J48) -> 0 | K48: =SUM('S1:S25'!K48) -> 0 | L48: =SUM('S1:S25'!L48) -> 0 | M48: =SUM('S1:S25'!M48) -> 0 | N48: =SUM('S1:S25'!N48) -> 0 | O48: =SUM('S1:S25'!O48) -> 0 | P48: 0
B49: Reçu de Fraternité (caisse & banque) | D49: =SUM('S1:S25'!D49) -> 440 | E49: =SUM('S1:S25'!E49) -> 240 | F49: =SUM('S1:S25'!F49) -> 210 | G49: =SUM('S1:S25'!G49) -> 260 | H49: =SUM('S1:S25'!H49) -> 260 | I49: =SUM('S1:S25'!I49) -> 0 | J49: =SUM('S1:S25'!J49) -> 0 | K49: =SUM('S1:S25'!K49) -> 0 | L49: =SUM('S1:S25'!L49) -> 0 | M49: =SUM('S1:S25'!M49) -> 0 | N49: =SUM('S1:S25'!N49) -> 0 | O49: =SUM('S1:S25'!O49) -> 0 | P49: 1410
B50: Recettes | C50: Espèces | D50: =SUM('S1:S25'!D50) -> 440 | E50: =SUM('S1:S25'!E50) -> 240 | F50: =SUM('S1:S25'!F50) -> 210 | G50: =SUM('S1:S25'!G50) -> 270 | H50: =SUM('S1:S25'!H50) -> 260 | I50: =SUM('S1:S25'!I50) -> 0 | J50: =SUM('S1:S25'!J50) -> 0 | K50: =SUM('S1:S25'!K50) -> 0 | L50: =SUM('S1:S25'!L50) -> 0 | M50: =SUM('S1:S25'!M50) -> 0 | N50: =SUM('S1:S25'!N50) -> 0 | O50: =SUM('S1:S25'!O50) -> 0 | P50: 1420
C51: Banque | D51: =SUM('S1:S25'!D51) -> 11941.24 | E51: =SUM('S1:S25'!E51) -> 12511.68 | F51: =SUM('S1:S25'!F51) -> 12104.69 | G51: =SUM('S1:S25'!G51) -> 10748.59 | H51: =SUM('S1:S25'!H51) -> 9620.62 | I51: =SUM('S1:S25'!I51) -> 0 | J51: =SUM('S1:S25'!J51) -> 0 | K51: =SUM('S1:S25'!K51) -> 0 | L51: =SUM('S1:S25'!L51) -> 0 | M51: =SUM('S1:S25'!M51) -> 0 | N51: =SUM('S1:S25'!N51) -> 0 | O51: =SUM('S1:S25'!O51) -> 0 | P51: 56926.82
C52: Total | D52: =D50+D51 -> 12381.24 | E52: 12751.68 | F52: 12314.69 | G52: 11018.59 | H52: 9880.62 | I52: 0 | J52: 0 | K52: 0 | L52: 0 | M52: 0 | N52: 0 | O52: 0 | P52: 58346.82
B53: Solde à fin de mois | C53: Espèces | D53: =SUM('S1:S25'!D53) -> 232.68 | E53: =SUM('S1:S25'!E53) -> 252.86 | F53: =SUM('S1:S25'!F53) -> 175.89 | G53: =SUM('S1:S25'!G53) -> 223.4 | H53: =SUM('S1:S25'!H53) -> 189.04 | I53: =SUM('S1:S25'!I53) -> 189.04 | J53: =SUM('S1:S25'!J53) -> 189.04 | K53: =SUM('S1:S25'!K53) -> 189.04 | L53: =SUM('S1:S25'!L53) -> 189.04 | M53: =SUM('S1:S25'!M53) -> 189.04 | N53: =SUM('S1:S25'!N53) -> 189.04 | O53: =SUM('S1:S25'!O53) -> 189.04
C54: Banque | D54: =SUM('S1:S25'!D54) -> 12867.61 | E54: =SUM('S1:S25'!E54) -> 11945.07 | F54: =SUM('S1:S25'!F54) -> 12091.35 | G54: =SUM('S1:S25'!G54) -> 11981.38 | H54: =SUM('S1:S25'!H54) -> 13539.25 | I54: =SUM('S1:S25'!I54) -> 13539.25 | J54: =SUM('S1:S25'!J54) -> 13539.25 | K54: =SUM('S1:S25'!K54) -> 13539.25 | L54: =SUM('S1:S25'!L54) -> 13539.25 | M54: =SUM('S1:S25'!M54) -> 13539.25 | N54: =SUM('S1:S25'!N54) -> 13539.25 | O54: =SUM('S1:S25'!O54) -> 13539.25
C55: Total | D55: =D53+D54 -> 13100.29 | E55: 12197.93 | F55: 12267.24 | G55: 12204.78 | H55: 13728.29 | I55: 13728.29 | J55: 13728.29 | K55: 13728.29 | L55: 13728.29 | M55: 13728.29 | N55: 13728.29 | O55: 13728.29

Sheet T_Glob
D1: =IF(Controle!U2=0," ","Cliquez ici pour contrôler les écarts") -> Cliquez ici pour contrôler les écarts | H1: ="Fraternité : " & Deb_fin_exercice!C2& " Exercice " &Deb_fin_exercice!H1 -> Fraternité : Ma Fraternité Exercice 2015
B2: Récapitulatif global | D2: JANVIER | E2: FEVRIER | F2: MARS | G2: AVRIL | H2: MAI | I2: JUIN | J2: JUILLET | K2: AOUT | L2: SEPTEMBRE | M2: OCTOBRE | N2: NOVEMBRE | O2: DECEMBRE | P2: Total annuel (après saisie de décembre)
B3: Avoir en début de mois | C3: Espèces | D3: =T_S!D3+Frat!D3 -> 185.97 | E3: =T_S!E3+Frat!E3 -> 512.68 | F3: =T_S!F3+Frat!F3 -> 292.86 | G3: =T_S!G3+Frat!G3 -> 275.89 | H3: =T_S!H3+Frat!H3 -> 393.4 | I3: =T_S!I3+Frat!I3 -> 499.04 | J3: =T_S!J3+Frat!J3 -> 499.04 | K3: =T_S!K3+Frat!K3 -> 499.04 | L3: =T_S!L3+Frat!L3 -> 499.04 | M3: =T_S!M3+Frat!M3 -> 499.04 | N3: =T_S!N3+Frat!N3 -> 499.04 | O3: =T_S!O3+Frat!O3 -> 499.04
C4: Banque | D4: =T_S!D4+Frat!D4 -> 26594.03 | E4: =T_S!E4+Frat!E4 -> 26996.3 | F4: =T_S!F4+Frat!F4 -> 25578.96 | G4: =T_S!G4+Frat!G4 -> 27477.91 | H4: =T_S!H4+Frat!H4 -> 27444.57 | I4: =T_S!I4+Frat!I4 -> 28269.37 | J4: =T_S!J4+Frat!J4 -> 28269.37 | K4: =T_S!K4+Frat!K4 -> 28269.37 | L4: =T_S!L4+Frat!L4 -> 28269.37 | M4: =T_S!M4+Frat!M4 -> 28269.37 | N4: =T_S!N4+Frat!N4 -> 28269.37 | O4: =T_S!O4+Frat!O4 -> 28269.37
C5: Total | D5: =D3+D4 -> 26780 | E5: =E3+E4 -> 27508.98 | F5: 25871.82 | G5: 27753.8 | H5: 27837.97 | I5: 28768.41 | J5: 28768.41 | K5: 28768.41 | L5: 28768.41 | M5: 28768.41 | N5: 28768.41 | O5: 28768.41
A6: DEPENSES | B6: Alimentation - Hébergement | D6: =T_S!D6+Frat!D6 -> 3822.02 | E6: =T_S!E6+Frat!E6 -> 4110.54 | F6: =T_S!F6+Frat!F6 -> 3452.24 | G6: =T_S!G6+Frat!G6 -> 3796.81 | H6: =T_S!H6+Frat!H6 -> 3095.41 | I6: =T_S!I6+Frat!I6 -> 0 | J6: =T_S!J6+Frat!J6 -> 0 | K6: =T_S!K6+Frat!K6 -> 0 | L6: =T_S!L6+Frat!L6 -> 0 | M6: =T_S!M6+Frat!M6 -> 0 | N6: =T_S!N6+Frat!N6 -> 0 | O6: =T_S!O6+Frat!O6 -> 0 | P6: =SUM(D6:O6) -> 18277.02
B7: Matières consommables | D7: =T_S!D7+Frat!D7 -> 211.88 | E7: =T_S!E7+Frat!E7 -> 558.96 | F7: =T_S!F7+Frat!F7 -> 176.95 | G7: =T_S!G7+Frat!G7 -> 347.84 | H7: =T_S!H7+Frat!H7 -> 274.11 | I7: =T_S!I7+Frat!I7 -> 0 | J7: =T_S!J7+Frat!J7 -> 0 | K7: =T_S!K7+Frat!K7 -> 0 | L7: =T_S!L7+Frat!L7 -> 0 | M7: =T_S!M7+Frat!M7 -> 0 | N7: =T_S!N7+Frat!N7 -> 0 | O7: =T_S!O7+Frat!O7 -> 0 | P7: =SUM(D7:O7) -> 1569.74
B8: Combustibles | D8: =T_S!D8+Frat!D8 -> 3654.57 | E8: =T_S!E8+Frat!E8 -> -140.88 | F8: =T_S!F8+Frat!F8 -> 4435.47 | G8: =T_S!G8+Frat!G8 -> 3083.07 | H8: =T_S!H8+Frat!H8 -> 2049.05 | I8: =T_S!I8+Frat!I8 -> 0 | J8: =T_S!J8+Frat!J8 -> 0 | K8: =T_S!K8+Frat!K8 -> 0 | L8: =T_S!L8+Frat!L8 -> 0 | M8: =T_S!M8+Frat!M8 -> 0 | N8: =T_S!N8+Frat!N8 -> 0 | O8: =T_S!O8+Frat!O8 -> 0 | P8: 13081.28
B9: Eau - Electricité - Gaz | D9: =T_S!D9+Frat!D9 -> 1746.29 | E9: =T_S!E9+Frat!E9 -> 1021.1 | F9: =T_S!F9+Frat!F9 -> 502.56 | G9: =T_S!G9+Frat!G9 -> 2305.84 | H9: =T_S!H9+Frat!H9 -> 0 | I9: =T_S!I9+Frat!I9 -> 0 | J9: =T_S!J9+Frat!J9 -> 0 | K9: =T_S!K9+Frat!K9 -> 0 | L9: =T_S!L9+Frat!L9 -> 0 | M9: =T_S!M9+Frat!M9 -> 0 | N9: =T_S!N9+Frat!N9 -> 0 | O9: =T_S!O9+Frat!O9 -> 0 | P9: 5575.79
B10: Pharmacie - Soins | D10: =T_S!D10+Frat!D10 -> 842.89 | E10: =T_S!E10+Frat!E10 -> 280.39 | F10: =T_S!F10+Frat!F10 -> 538.99 | G10: =T_S!G10+Frat!G10 -> 380.6 | H10: =T_S!H10+Frat!H10 -> 404 | I10: =T_S!I10+Frat!I10 -> 0 | J10: =T_S!J10+Frat!J10 -> 0 | K10: =T_S!K10+Frat!K10 -> 0 | L10: =T_S!L10+Frat!L10 -> 0 | M10: =T_S!M10+Frat!M10 -> 0 | N10: =T_S!N10+Frat!N10 -> 0 | O10: =T_S!O10+Frat!O10 -> 0 | P10: 2446.87
B11: Acquisition mobilier et matériel | D11: =T_S!D11+Frat!D11 -> 0 | E11: =T_S!E11+Frat!E11 -> 0 | F11: =T_S!F11+Frat!F11 -> 0 | G11: =T_S!G11+Frat!G11 -> 0 | H11: =T_S!H11+Frat!H11 -> 0 | I11: =T_S!I11+Frat!I11 -> 0 | J11: =T_S!J11+Frat!J11 -> 0 | K11: =T_S!K11+Frat!K11 -> 0 | L11: =T_S!L11+Frat!L11 -> 0 | M11: =T_S!M11+Frat!M11 -> 0 | N11: =T_S!N11+Frat!N11 -> 0 | O11: =T_S!O11+Frat!O11 -> 0 | P11: 0
B12: Fournitures administratives | D12: =T_S!D12+Frat!D12 -> 151.11 | E12: =T_S!E12+Frat!E12 -> 23.48 | F12: =T_S!F12+Frat!F12 -> 81.96 | G12: =T_S!G12+Frat!G12 -> 59.28 | H12: =T_S!H12+Frat!H12 -> 4.75 | I12: =T_S!I12+Frat!I12 -> 0 | J12: =T_S!J12+Frat!J12 -> 0 | K12: =T_S!K12+Frat!K12 -> 0 | L12: =T_S!L12+Frat!L12 -> 0 | M12: =T_S!M12+Frat!M12 -> 0 | N12: =T_S!N12+Frat!N12 -> 0 | O12: =T_S!O12+Frat!O12 -> 0 | P12: 320.58
B13: Vestiaire personnel des Sœurs | D13: =T_S!D13+Frat!D13 -> 26.2 | E13: =T_S!E13+Frat!E13 -> 27.8 | F13: =T_S!F13+Frat!F13 -> 387.98 | G13: =T_S!G13+Frat!G13 -> 53.2 | H13: =T_S!H13+Frat!H13 -> 243.5 | I13: =T_S!I13+Frat!I13 -> 0 | J13: =T_S!J13+Frat!J13 -> 0 | K13: =T_S!K13+Frat!K13 -> 0 | L13: =T_S!L13+Frat!L13 -> 0 | M13: =T_S!M13+Frat!M13 -> 0 | N13: =T_S!N13+Frat!N13 -> 0 | O13: =T_S!O13+Frat!O13 -> 0 | P13: 738.68
B14: Loyer | D14: =T_S!D14+Frat!D14 -> 0 | E14: =T_S!E14+Frat!E14 -> 0 | F14: =T_S!F14+Frat!F14 -> 0 | G14: =T_S!G14+Frat!G14 -> 0 | H14: =T_S!H14+Frat!H14 -> 0 | I14: =T_S!I14+Frat!I14 -> 0 | J14: =T_S!J14+Frat!J14 -> 0 | K14: =T_S!K14+Frat!K14 -> 0 | L14: =T_S!L14+Frat!L14 -> 0 | M14: =T_S!M14+Frat!M14 -> 0 | N14: =T_S!N14+Frat!N14 -> 0 | O14: =T_S!O14+Frat!O14 -> 0 | P14: 0
B15: Entretien mobilier, matériel | D15: =T_S!D15+Frat!D15 -> 49.9 | E15: =T_S!E15+Frat!E15 -> 0 | F15: =T_S!F15+Frat!F15 -> 100 | G15: =T_S!G15+Frat!G15 -> 25 | H15: =T_S!H15+Frat!H15 -> 55.2 | I15: =T_S!I15+Frat!I15 -> 0 | J15: =T_S!J15+Frat!J15 -> 0 | K15: =T_S!K15+Frat!K15 -> 0 | L15: =T_S!L15+Frat!L15 -> 0 | M15: =T_S!M15+Frat!M15 -> 0 | N15: =T_S!N15+Frat!N15 -> 0 | O15: =T_S!O15+Frat!O15 -> 0 | P15: 230.1
B16: Entretien matériel de transport | D16: =T_S!D16+Frat!D16 -> 0 | E16: =T_S!E16+Frat!E16 -> 1434.31 | F16: =T_S!F16+Frat!F16 -> 0 | G16: =T_S!G16+Frat!G16 -> 236.76 | H16: =T_S!H16+Frat!H16 -> 667.94 | I16: =T_S!I16+Frat!I16 -> 0 | J16: =T_S!J16+Frat!J16 -> 0 | K16: =T_S!K16+Frat!K16 -> 0 | L16: =T_S!L16+Frat!L16 -> 0 | M16: =T_S!M16+Frat!M16 -> 0 | N16: =T_S!N16+Frat!N16 -> 0 | O16: =T_S!O16+Frat!O16 -> 0 | P16: 2339.01
B17: Form. permanente-Ressourc. Spirituel | D17: =T_S!D17+Frat!D17 -> 38 | E17: =T_S!E17+Frat!E17 -> 0 | F17: =T_S!F17+Frat!F17 -> 25 | G17: =T_S!G17+Frat!G17 -> 90 | H17: =T_S!H17+Frat!H17 -> 88 | I17: =T_S!I17+Frat!I17 -> 0 | J17: =T_S!J17+Frat!J17 -> 0 | K17: =T_S!K17+Frat!K17 -> 0 | L17: =T_S!L17+Frat!L17 -> 0 | M17: =T_S!M17+Frat!M17 -> 0 | N17: =T_S!N17+Frat!N17 -> 0 | O17: =T_S!O17+Frat!O17 -> 0 | P17: 241
B18: Culture et loisirs | D18: =T_S!D18+Frat!D18 -> 19.4 | E18: =T_S!E18+Frat!E18 -> 28.9 | F18: =T_S!F18+Frat!F18 -> 13 | G18: =T_S!G18+Frat!G18 -> 16 | H18: =T_S!H18+Frat!H18 -> 4.4 | I18: =T_S!I18+Frat!I18 -> 0 | J18: =T_S!J18+Frat!J18 -> 0 | K18: =T_S!K18+Frat!K18 -> 0 | L18: =T_S!L18+Frat!L18 -> 0 | M18: =T_S!M18+Frat!M18 -> 0 | N18: =T_S!N18+Frat!N18 -> 0 | O18: =T_S!O18+Frat!O18 -> 0 | P18: 81.7
B19: Prestations diverses | D19: =T_S!D19+Frat!D19 -> 9.3 | E19: =T_S!E19+Frat!E19 -> 19 | F19: =T_S!F19+Frat!F19 -> 0 | G19: =T_S!G19+Frat!G19 -> 13.5 | H19: =T_S!H19+Frat!H19 -> 0 | I19: =T_S!I19+Frat!I19 -> 0 | J19: =T_S!J19+Frat!J19 -> 0 | K19: =T_S!K19+Frat!K19 -> 0 | L19: =T_S!L19+Frat!L19 -> 0 | M19: =T_S!M19+Frat!M19 -> 0 | N19: =T_S!N19+Frat!N19 -> 0 | O19: =T_S!O19+Frat!O19 -> 0 | P19: 41.8
B20: Cotis. Pourb., Cadeaux, Frais culte | D20: =T_S!D20+Frat!D20 -> 125 | E20: =T_S!E20+Frat!E20 -> 865.81 | F20: =T_S!F20+Frat!F20 -> 66.3 | G20: =T_S!G20+Frat!G20 -> 28.9 | H20: =T_S!H20+Frat!H20 -> 54.7 | I20: =T_S!I20+Frat!I20 -> 0 | J20: =T_S!J20+Frat!J20 -> 0 | K20: =T_S!K20+Frat!K20 -> 0 | L20: =T_S!L20+Frat!L20 -> 0 | M20: =T_S!M20+Frat!M20 -> 0 | N20: =T_S!N20+Frat!N20 -> 0 | O20: =T_S!O20+Frat!O20 -> 0 | P20: 1140.71
B21: Déplacements | D21: =T_S!D21+Frat!D21 -> 0 | E21: =T_S!E21+Frat!E21 -> 140.84 | F21: =T_S!F21+Frat!F21 -> 226.43 | G21: =T_S!G21+Frat!G21 -> 230.33 | H21: =T_S!H21+Frat!H21 -> 193.43 | I21: =T_S!I21+Frat!I21 -> 0 | J21: =T_S!J21+Frat!J21 -> 0 | K21: =T_S!K21+Frat!K21 -> 0 | L21: =T_S!L21+Frat!L21 -> 0 | M21: =T_S!M21+Frat!M21 -> 0 | N21: =T_S!N21+Frat!N21 -> 0 | O21: =T_S!O21+Frat!O21 -> 0 | P21: 791.03
B22: Frais postaux & télécommunication | D22: =T_S!D22+Frat!D22 -> 876.03 | E22: =T_S!E22+Frat!E22 -> 145.31 | F22: =T_S!F22+Frat!F22 -> 368.83 | G22: =T_S!G22+Frat!G22 -> 176.29 | H22: =T_S!H22+Frat!H22 -> 333.69 | I22: =T_S!I22+Frat!I22 -> 0 | J22: =T_S!J22+Frat!J22 -> 0 | K22: =T_S!K22+Frat!K22 -> 0 | L22: =T_S!L22+Frat!L22 -> 0 | M22: =T_S!M22+Frat!M22 -> 0 | N22: =T_S!N22+Frat!N22 -> 0 | O22: =T_S!O22+Frat!O22 -> 0 | P22: 1900.15
B23: Impôts & Taxes (Tv /Habitation / PV) | D23: =T_S!D23+Frat!D23 -> 0 | E23: =T_S!E23+Frat!E23 -> 176 | F23: =T_S!F23+Frat!F23 -> 0 | G23: =T_S!G23+Frat!G23 -> 0 | H23: =T_S!H23+Frat!H23 -> 0 | I23: =T_S!I23+Frat!I23 -> 0 | J23: =T_S!J23+Frat!J23 -> 0 | K23: =T_S!K23+Frat!K23 -> 0 | L23: =T_S!L23+Frat!L23 -> 0 | M23: =T_S!M23+Frat!M23 -> 0 | N23: =T_S!N23+Frat!N23 -> 0 | O23: =T_S!O23+Frat!O23 -> 0 | P23: 176
B24: Impôts Revenu Pers. Physiques | D24: =T_S!D24+Frat!D24 -> 0 | E24: =T_S!E24+Frat!E24 -> 577 | F24: =T_S!F24+Frat!F24 -> 0 | G24: =T_S!G24+Frat!G24 -> 0 | H24: =T_S!H24+Frat!H24 -> 0 | I24: =T_S!I24+Frat!I24 -> 0 | J24: =T_S!J24+Frat!J24 -> 0 | K24: =T_S!K24+Frat!K24 -> 0 | L24: =T_S!L24+Frat!L24 -> 0 | M24: =T_S!M24+Frat!M24 -> 0 | N24: =T_S!N24+Frat!N24 -> 0 | O24: =T_S!O24+Frat!O24 -> 0 | P24: 577
B25: Charges de personnel | D25: =T_S!D25+Frat!D25 -> 84.67 | E25: =T_S!E25+Frat!E25 -> 75.28 | F25: =T_S!F25+Frat!F25 -> 0 | G25: =T_S!G25+Frat!G25 -> 0 | H25: =T_S!H25+Frat!H25 -> 80 | I25: =T_S!I25+Frat!I25 -> 0 | J25: =T_S!J25+Frat!J25 -> 0 | K25: =T_S!K25+Frat!K25 -> 0 | L25: =T_S!L25+Frat!L25 -> 0 | M25: =T_S!M25+Frat!M25 -> 0 | N25: =T_S!N25+Frat!N25 -> 0 | O25: =T_S!O25+Frat!O25 -> 0 | P25: 239.95
B26: Cotisation Mutuelle | D26: =T_S!D26+Frat!D26 -> 0 | E26: =T_S!E26+Frat!E26 -> 0 | F26: =T_S!F26+Frat!F26 -> 0 | G26: =T_S!G26+Frat!G26 -> 0 | H26: =T_S!H26+Frat!H26 -> 0 | I26: =T_S!I26+Frat!I26 -> 0 | J26: =T_S!J26+Frat!J26 -> 0 | K26: =T_S!K26+Frat!K26 -> 0 | L26: =T_S!L26+Frat!L26 -> 0 | M26: =T_S!M26+Frat!M26 -> 0 | N26: =T_S!N26+Frat!N26 -> 0 | O26: =T_S!O26+Frat!O26 -> 0 | P26: 0
B27: Partage - Solidarité | D27: =T_S!D27+Frat!D27 -> 30 | E27: =T_S!E27+Frat!E27 -> 0 | F27: =T_S!F27+Frat!F27 -> 30 | G27: =T_S!G27+Frat!G27 -> 11 | H27: =T_S!H27+Frat!H27 -> 0 | I27: =T_S!I27+Frat!I27 -> 0 | J27: =T_S!J27+Frat!J27 -> 0 | K27: =T_S!K27+Frat!K27 -> 0 | L27: =T_S!L27+Frat!L27 -> 0 | M27: =T_S!M27+Frat!M27 -> 0 | N27: =T_S!N27+Frat!N27 -> 0 | O27: =T_S!O27+Frat!O27 -> 0 | P27: =SUM(D27:O27) -> 71
B28: Versement au budget régional | D28: =Frat!D29+Frat!D29 -> 0 | E28: =Frat!E29+Frat!E29 -> 10000 | F28: =Frat!F29+Frat!F29 -> 0 | G28: =Frat!G29+Frat!G29 -> 0 | H28: =Frat!H29+Frat!H29 -> 0 | I28: =Frat!I29+Frat!I29 -> 0 | J28: =Frat!J29+Frat!J29 -> 0 | K28: =Frat!K29+Frat!K29 -> 0 | L28: =Frat!L29+Frat!L29 -> 0 | M28: =Frat!M29+Frat!M29 -> 0 | N28: =Frat!N29+Frat!N29 -> 0 | O28: =Frat!O29+Frat!O29 -> 0 | P28: 10000
B29: Dépenses | C29: Espèces | D29: =T_S!D32+Frat!D32 -> 813.29 | E29: =T_S!E32+Frat!E32 -> 459.82 | F29: =T_S!F32+Frat!F32 -> 626.97 | G29: =T_S!G32+Frat!G32 -> 452.49 | H29: =T_S!H32+Frat!H32 -> 554.36 | I29: =T_S!I32+Frat!I32 -> 0 | J29: =T_S!J32+Frat!J32 -> 0 | K29: =T_S!K32+Frat!K32 -> 0 | L29: =T_S!L32+Frat!L32 -> 0 | M29: =T_S!M32+Frat!M32 -> 0 | N29: =T_S!N32+Frat!N32 -> 0 | O29: =T_S!O32+Frat!O32 -> 0 | P29: 2906.93
C30: Banque | D30: =E31-E29 -> 18884.02 | E30: =F31-F29 -> 9778.74 | F30: 10401.93 | G30: 6993.82 | H30: 0 | I30: 0 | J30: 0 | K30: 0 | L30: 0 | M30: 0 | N30: 0 | O30: 56932.48 | P30: 102990.99
B31: Total dépenses | C31: Total | D31: =SUM(D6:D28) -> 11687.26 | E31: 19343.84 | F31: 10405.71 | G31: 10854.42 | H31: 7548.18 | I31: 0 | J31: 0 | K31: 0 | L31: 0 | M31: 0 | N31: 0 | O31: 0 | P31: 59839.41
A32: RECETTES | B32: Salaires nets | D32: =T_S!D35+Frat!D35 -> 0 | E32: =T_S!E35+Frat!E35 -> 0 | F32: =T_S!F35+Frat!F35 -> 0 | G32: =T_S!G35+Frat!G35 -> 0 | H32: =T_S!H35+Frat!H35 -> 0 | I32: =T_S!I35+Frat!I35 -> 0 | J32: =T_S!J35+Frat!J35 -> 0 | K32: =T_S!K35+Frat!K35 -> 0 | L32: =T_S!L35+Frat!L35 -> 0 | M32: =T_S!M35+Frat!M35 -> 0 | N32: =T_S!N35+Frat!N35 -> 0 | O32: =T_S!O35+Frat!O35 -> 0 | P32: =SUM(D32:O32) -> 0
B33: Indemnités | D33: =T_S!D36+Frat!D36 -> 0 | E33: =T_S!E36+Frat!E36 -> 0 | F33: =T_S!F36+Frat!F36 -> 0 | G33: =T_S!G36+Frat!G36 -> 0 | H33: =T_S!H36+Frat!H36 -> 0 | I33: =T_S!I36+Frat!I36 -> 0 | J33: =T_S!J36+Frat!J36 -> 0 | K33: =T_S!K36+Frat!K36 -> 0 | L33: =T_S!L36+Frat!L36 -> 0 | M33: =T_S!M36+Frat!M36 -> 0 | N33: =T_S!N36+Frat!N36 -> 0 | O33: =T_S!O36+Frat!O36 -> 0 | P33: 0
B34: Rentes CAVIMAC | D34: =T_S!D37 -> 3277.16 | E34: =T_S!E37 -> 3277.16 | F34: =T_S!F37 -> 3437.16 | G34: =T_S!G37 -> 3258.56 | H34: =T_S!H37 -> 2799.54 | I34: =T_S!I37 -> 0 | J34: =T_S!J37 -> 0 | K34: =T_S!K37 -> 0 | L34: =T_S!L37 -> 0 | M34: =T_S!M37 -> 0 | N34: =T_S!N37 -> 0 | O34: =T_S!O37 -> 0 | P34: 16049.58
B35: Rente CARSAT - MSA - CNAV | D35: =T_S!D38 -> 4212.84 | E35: =T_S!E38 -> 4212.84 | F35: =T_S!F38 -> 4292.84 | G35: =T_S!G38 -> 4115.99 | H35: =T_S!H38 -> 3221.79 | I35: =T_S!I38 -> 0 | J35: =T_S!J38 -> 0 | K35: =T_S!K38 -> 0 | L35: =T_S!L38 -> 0 | M35: =T_S!M38 -> 0 | N35: =T_S!N38 -> 0 | O35: =T_S!O38 -> 0 | P35: 20056.3
B36: Autres rentes | D36: =T_S!D39 -> 3782.7 | E36: =T_S!E39 -> 4312.44 | F36: =T_S!F39 -> 3661.18 | G36: =T_S!G39 -> 3216.49 | H36: =T_S!H39 -> 3496.41 | I36: =T_S!I39 -> 0 | J36: =T_S!J39 -> 0 | K36: =T_S!K39 -> 0 | L36: =T_S!L39 -> 0 | M36: =T_S!M39 -> 0 | N36: =T_S!N39 -> 0 | O36: =T_S!O39 -> 0 | P36: 18469.22
B37: Allocation logement | D37: =T_S!D40+Frat!D40 -> 0 | E37: =T_S!E40+Frat!E40 -> 0 | F37: =T_S!F40+Frat!F40 -> 0 | G37: =T_S!G40+Frat!G40 -> 0 | H37: =T_S!H40+Frat!H40 -> 0 | I37: =T_S!I40+Frat!I40 -> 0 | J37: =T_S!J40+Frat!J40 -> 0 | K37: =T_S!K40+Frat!K40 -> 0 | L37: =T_S!L40+Frat!L40 -> 0 | M37: =T_S!M40+Frat!M40 -> 0 | N37: =T_S!N40+Frat!N40 -> 0 | O37: =T_S!O40+Frat!O40 -> 0 | P37: 0
B38: A.P.L. | D38: =T_S!D41+Frat!D41 -> 0 | E38: =T_S!E41+Frat!E41 -> 0 | F38: =T_S!F41+Frat!F41 -> 0 | G38: =T_S!G41+Frat!G41 -> 0 | H38: =T_S!H41+Frat!H41 -> 0 | I38: =T_S!I41+Frat!I41 -> 0 | J38: =T_S!J41+Frat!J41 -> 0 | K38: =T_S!K41+Frat!K41 -> 0 | L38: =T_S!L41+Frat!L41 -> 0 | M38: =T_S!M41+Frat!M41 -> 0 | N38: =T_S!N41+Frat!N41 -> 0 | O38: =T_S!O41+Frat!O41 -> 0 | P38: 0
B39: Aide sociale | D39: =T_S!D42+Frat!D42 -> 0 | E39: =T_S!E42+Frat!E42 -> 0 | F39: =T_S!F42+Frat!F42 -> 0 | G39: =T_S!G42+Frat!G42 -> 0 | H39: =T_S!H42+Frat!H42 -> 0 | I39: =T_S!I42+Frat!I42 -> 0 | J39: =T_S!J42+Frat!J42 -> 0 | K39: =T_S!K42+Frat!K42 -> 0 | L39: =T_S!L42+Frat!L42 -> 0 | M39: =T_S!M42+Frat!M42 -> 0 | N39: =T_S!N42+Frat!N42 -> 0 | O39: =T_S!O42+Frat!O42 -> 0 | P39: 0
B40: Remboursements soins | D40: =T_S!D43+Frat!D43 -> 668.54 | E40: =T_S!E43+Frat!E43 -> 209.24 | F40: =T_S!F43+Frat!F43 -> 713.51 | G40: =T_S!G43+Frat!G43 -> 167.55 | H40: =T_S!H43+Frat!H43 -> 102.88 | I40: =T_S!I43+Frat!I43 -> 0 | J40: =T_S!J43+Frat!J43 -> 0 | K40: =T_S!K43+Frat!K43 -> 0 | L40: =T_S!L43+Frat!L43 -> 0 | M40: =T_S!M43+Frat!M43 -> 0 | N40: =T_S!N43+Frat!N43 -> 0 | O40: =T_S!O43+Frat!O43 -> 0 | P40: 1861.72
B41: Recettes d'accueil | D41: =T_S!D44+Frat!D44 -> 475 | E41: =T_S!E44+Frat!E44 -> 195 | F41: =T_S!F44+Frat!F44 -> 213 | G41: =T_S!G44+Frat!G44 -> 150 | H41: =T_S!H44+Frat!H44 -> 658 | I41: =T_S!I44+Frat!I44 -> 0 | J41: =T_S!J44+Frat!J44 -> 0 | K41: =T_S!K44+Frat!K44 -> 0 | L41: =T_S!L44+Frat!L44 -> 0 | M41: =T_S!M44+Frat!M44 -> 0 | N41: =T_S!N44+Frat!N44 -> 0 | O41: =T_S!O44+Frat!O44 -> 0 | P41: 1691
B42: Dons reçus | D42: =T_S!D45+Frat!D45 -> 0 | E42: =T_S!E45+Frat!E45 -> 500 | F42: =T_S!F45+Frat!F45 -> 0 | G42: =T_S!G45+Frat!G45 -> 0 | H42: =T_S!H45+Frat!H45 -> 0 | I42: =T_S!I45+Frat!I45 -> 0 | J42: =T_S!J45+Frat!J45 -> 0 | K42: =T_S!K45+Frat!K45 -> 0 | L42: =T_S!L45+Frat!L45 -> 0 | M42: =T_S!M45+Frat!M45 -> 0 | N42: =T_S!N45+Frat!N45 -> 0 | O42: =T_S!O45+Frat!O45 -> 0 | P42: 500
B43: Subvention reçue du budget régional | D43: =Frat!D47+T_S!D47 -> 0 | E43: =Frat!E47 -> 0 | F43: =Frat!F47 -> 0 | G43: =T_S!G47+Frat!G47 -> 0 | H43: =T_S!H47+Frat!H47 -> 0 | I43: =T_S!I47+Frat!I47 -> 0 | J43: =T_S!J47+Frat!J47 -> 0 | K43: =T_S!K47+Frat!K47 -> 0 | L43: =T_S!L47+Frat!L47 -> 0 | M43: =T_S!M47+Frat!M47 -> 0 | N43: =T_S!N47+Frat!N47 -> 0 | O43: =T_S!O47+Frat!O47 -> 0 | P43: 0
B44: Recettes | C44: Espèces | D44: =T_S!D50+Frat!D50 -> 1140 | E44: =T_S!E50+Frat!E50 -> 240 | F44: =T_S!F50+Frat!F50 -> 610 | G44: =T_S!G50+Frat!G50 -> 570 | H44: =T_S!H50+Frat!H50 -> 660 | I44: =T_S!I50+Frat!I50 -> 0 | J44: =T_S!J50+Frat!J50 -> 0 | K44: =T_S!K50+Frat!K50 -> 0 | L44: =T_S!L50+Frat!L50 -> 0 | M44: =T_S!M50+Frat!M50 -> 0 | N44: =T_S!N50+Frat!N50 -> 0 | O44: =T_S!O50+Frat!O50 -> 0 | P44: 3220
C45: Banque | D45: =D46-D44 -> 11276.24 | E45: =E46-E44 -> 12466.68 | F45: 11707.69 | G45: 10338.59 | H45: 9618.62 | I45: 0 | J45: 0 | K45: 0 | L45: 0 | M45: 0 | N45: 0 | O45: 0 | P45: 55407.82
C46: Total | D46: =SUM(D32:D43) -> 12416.24 | E46: =SUM(E32:E43) -> 12706.68 | F46: 12317.69 | G46: 10908.59 | H46: 10278.62 | I46: 0 | J46: 0 | K46: 0 | L46: 0 | M46: 0 | N46: 0 | O46: 0 | P46: 58627.82
B47: Solde à fin de mois | C47: Espèces | D47: =T_S!D53+Frat!D53 -> 512.68 | E47: =T_S!E53+Frat!E53 -> 292.86 | F47: =T_S!F53+Frat!F53 -> 275.89 | G47: =T_S!G53+Frat!G53 -> 393.4 | H47: =T_S!H53+Frat!H53 -> 499.04 | I47: =T_S!I53+Frat!I53 -> 499.04 | J47: =T_S!J53+Frat!J53 -> 499.04 | K47: =T_S!K53+Frat!K53 -> 499.04 | L47: =T_S!L53+Frat!L53 -> 499.04 | M47: =T_S!M53+Frat!M53 -> 499.04 | N47: =T_S!N53+Frat!N53 -> 499.04 | O47: =T_S!O53+Frat!O53 -> 499.04
C48: Banque | D48: =T_S!D54+Frat!D54 -> 26996.3 | E48: =T_S!E54+Frat!E54 -> 25578.96 | F48: =T_S!F54+Frat!F54 -> 27477.91 | G48: =T_S!G54+Frat!G54 -> 27444.57 | H48: =T_S!H54+Frat!H54 -> 28269.37 | I48: =T_S!I54+Frat!I54 -> 28269.37 | J48: =T_S!J54+Frat!J54 -> 28269.37 | K48: =T_S!K54+Frat!K54 -> 28269.37 | L48: =T_S!L54+Frat!L54 -> 28269.37 | M48: =T_S!M54+Frat!M54 -> 28269.37 | N48: =T_S!N54+Frat!N54 -> 28269.37 | O48: =T_S!O54+Frat!O54 -> 28269.37
C49: Total | D49: =D47+D48 -> 27508.98 | E49: =E47+E48 -> 25871.82 | F49: 27753.8 | G49: 27837.97 | H49: 28768.41 | I49: 28768.41 | J49: 28768.41 | K49: 28768.41 | L49: 28768.41 | M49: 28768.41 | N49: 28768.41 | O49: 28768.41
A51: Transferts entre Fraternité et Soeurs | R51: Ecarts ˅
B52: Versement à la Fraternité | D52: =T_S!D28 -> 12250 | E52: =T_S!E28 -> 11700 | F52: =T_S!F28 -> 10700 | G52: =T_S!G28 -> 9400 | H52: =T_S!H28 -> 6200 | I52: =T_S!I28 -> 0 | J52: =T_S!J28 -> 0 | K52: =T_S!K28 -> 0 | L52: =T_S!L28 -> 0 | M52: =T_S!M28 -> 0 | N52: =T_S!N28 -> 0 | O52: =T_S!O28 -> 0 | P52: =SUM(D52:O52) -> 50250
B53: Reçus des Sœurs | D53: =Frat!D46+T_S!D46 -> 12250 | E53: =Frat!E46+T_S!E46 -> 11700 | F53: =Frat!F46+T_S!F46 -> 10700 | G53: =Frat!G46+T_S!G46 -> 9400 | H53: =Frat!H46+T_S!H46 -> 4400 | I53: =Frat!I46+T_S!I46 -> 0 | J53: =Frat!J46+T_S!J46 -> 0 | K53: =Frat!K46+T_S!K46 -> 0 | L53: =Frat!L46+T_S!L46 -> 0 | M53: =Frat!M46+T_S!M46 -> 0 | N53: =Frat!N46+T_S!N46 -> 0 | O53: =Frat!O46+T_S!O46 -> 0 | P53: 48450 | R53: =P52-P53 -> 1800
B54: Reçu de Fraternité (caisse & banque) | D54: =T_S!D49 -> 440 | E54: =T_S!E49 -> 240 | F54: =T_S!F49 -> 210 | G54: =T_S!G49 -> 260 | H54: =T_S!H49 -> 260 | I54: =T_S!I49 -> 0 | J54: =T_S!J49 -> 0 | K54: =T_S!K49 -> 0 | L54: =T_S!L49 -> 0 | M54: =T_S!M49 -> 0 | N54: =T_S!N49 -> 0 | O54: =T_S!O49 -> 0 | P54: =SUM(D54:O54) -> 1410
B55: Donné aux Soeurs depuis caisse ou banque | D55: =Frat!D30 -> 440 | E55: =Frat!E30 -> 240 | F55: =Frat!F30 -> 240 | G55: =Frat!G30 -> 230 | H55: =Frat!H30 -> 260 | I55: =Frat!I30 -> 0 | J55: =Frat!J30 -> 0 | K55: =Frat!K30 -> 0 | L55: =Frat!L30 -> 0 | M55: =Frat!M30 -> 0 | N55: =Frat!N30 -> 0 | O55: =Frat!O30 -> 0 | P55: 1410 | R55: =P54-P55 -> 0
B56: Retrait compte. courant pour caisse | D56: =T_S!D31+Frat!D31 -> 700 | E56: =T_S!E31+Frat!E31 -> 0 | F56: =T_S!F31+Frat!F31 -> 400 | G56: =T_S!G31+Frat!G31 -> 300 | H56: =T_S!H31+Frat!H31 -> 400 | I56: =T_S!I31+Frat!I31 -> 0 | J56: =T_S!J31+Frat!J31 -> 0 | K56: =T_S!K31+Frat!K31 -> 0 | L56: =T_S!L31+Frat!L31 -> 0 | M56: =T_S!M31+Frat!M31 -> 0 | N56: =T_S!N31+Frat!N31 -> 0 | O56: =T_S!O31+Frat!O31 -> 0 | P56: 1800
B57: Mis en caisse depuis cpte courant (Srs+Frat) | D57: =T_S!D48+Frat!D48 -> 700 | E57: =T_S!E48+Frat!E48 -> 0 | F57: =T_S!F48+Frat!F48 -> 400 | G57: =T_S!G48+Frat!G48 -> 300 | H57: =T_S!H48+Frat!H48 -> 400 | I57: =T_S!I48+Frat!I48 -> 0 | J57: =T_S!J48+Frat!J48 -> 0 | K57: =T_S!K48+Frat!K48 -> 0 | L57: =T_S!L48+Frat!L48 -> 0 | M57: =T_S!M48+Frat!M48 -> 0 | N57: =T_S!N48+Frat!N48 -> 0 | O57: =T_S!O48+Frat!O48 -> 0 | P57: 1800 | R57: =P56-P57 -> 0

Sheet T_Trim
B1: =IF(Controle!U2=0," ","Cliquez ici pour contrôler les écarts") -> Cliquez ici pour contrôler les écarts | D1: =DATEDIF(Deb_fin_exercice!Q1,TODAY(),"ym")&" mois écoulé(s)" -> 7 mois écoulé(s) | G1: ="Frater. : " & Deb_fin_exercice!C2 & " Exercice " &Deb_fin_exercice!H1 -> Frater. : Ma Fraternité Exercice 2015
D2: depuis le début de l'année
B3: Récapitulatif par trimestre | D3: A fin Mars | E3: Budget pour 3 mois (1/4) | F3: A fin Juin | G3: Budget pour 6 mois (2/4) | H3: A fin septembre | I3: Budget pour 9 mois (3/4) | J3: A fin décembre | K3: Budget pour l'année entière
B6: Soldes à fin de trimestre | D6: =T_Glob!F49 -> 27753.8 | F6: =T_Glob!I49 -> 28768.41 | H6: =T_Glob!L49 -> 28768.41 | J6: =T_Glob!O49 -> 28768.41
A7: DEPENSES | B7: Alimentation - Hébergement | D7: =SUM(T_Glob!D6:F6) -> 11384.8 | E7: =K7/4 -> 12000 | F7: =D7+SUM(T_Glob!G6:I6) -> 18277.02 | G7: =K7/2 -> 24000 | H7: =F7+SUM(T_Glob!J6:L6) -> 18277.02 | I7: =K7*0.75 -> 36000 | J7: =T_Glob!P6 -> 18277.02 | K7: =Budget!D6 -> 48000
B8: Matières consommables | D8: =SUM(T_Glob!D7:F7) -> 947.79 | E8: =K8/4 -> 1500 | F8: =D8+SUM(T_Glob!G7:I7) -> 1569.74 | G8: =K8/2 -> 3000 | H8: =F8+SUM(T_Glob!J7:L7) -> 1569.74 | I8: =K8*0.75 -> 4500 | J8: =T_Glob!P7 -> 1569.74 | K8: =Budget!D7 -> 6000
B9: Combustibles | D9: =SUM(T_Glob!D8:F8) -> 7949.16 | E9: 6000 | F9: =D9+SUM(T_Glob!G8:I8) -> 13081.28 | G9: 12000 | H9: =F9+SUM(T_Glob!J8:L8) -> 13081.28 | I9: 18000 | J9: =T_Glob!P8 -> 13081.28 | K9: =Budget!D8 -> 24000
B10: Eau - Electricité - Gaz | D10: =SUM(T_Glob!D9:F9) -> 3269.95 | E10: 3500 | F10: =D10+SUM(T_Glob!G9:I9) -> 5575.79 | G10: 7000 | H10: =F10+SUM(T_Glob!J9:L9) -> 5575.79 | I10: 10500 | J10: =T_Glob!P9 -> 5575.79 | K10: =Budget!D9 -> 14000
B11: Pharmacie - Soins | D11: =SUM(T_Glob!D10:F10) -> 1662.27 | E11: 3875 | F11: =D11+SUM(T_Glob!G10:I10) -> 2446.87 | G11: 7750 | H11: =F11+SUM(T_Glob!J10:L10) -> 2446.87 | I11: 11625 | J11: =T_Glob!P10 -> 2446.87 | K11: =Budget!D10 -> 15500
B12: Acquisition mobilier et matériel | D12: =SUM(T_Glob!D11:F11) -> 0 | E12: 50 | F12: =D12+SUM(T_Glob!G11:I11) -> 0 | G12: 100 | H12: =F12+SUM(T_Glob!J11:L11) -> 0 | I12: 150 | J12: =T_Glob!P11 -> 0 | K12: =Budget!D11 -> 200
B13: Fournitures administratives | D13: =SUM(T_Glob!D12:F12) -> 256.55 | E13: 350 | F13: =D13+SUM(T_Glob!G12:I12) -> 320.58 | G13: 700 | H13: =F13+SUM(T_Glob!J12:L12) -> 320.58 | I13: 1050 | J13: =T_Glob!P12 -> 320.58 | K13: =Budget!D12 -> 1400
B14: Vestiaire personnel des Sœurs | D14: =SUM(T_Glob!D13:F13) -> 441.98 | E14: 700 | F14: =D14+SUM(T_Glob!G13:I13) -> 738.68 | G14: 1400 | H14: =F14+SUM(T_Glob!J13:L13) -> 738.68 | I14: 2100 | J14: =T_Glob!P13 -> 738.68 | K14: =Budget!D13 -> 2800
B15: Loyer | D15: =SUM(T_Glob!D14:F14) -> 0 | E15: 0 | F15: =D15+SUM(T_Glob!G14:I14) -> 0 | G15: 0 | H15: =F15+SUM(T_Glob!J14:L14) -> 0 | I15: 0 | J15: =T_Glob!P14 -> 0 | K15: =Budget!D14 -> 0
B16: Entretien mobilier, matériel | D16: =SUM(T_Glob!D15:F15) -> 149.9 | E16: 325 | F16: =D16+SUM(T_Glob!G15:I15) -> 230.1 | G16: 650 | H16: =F16+SUM(T_Glob!J15:L15) -> 230.1 | I16: 975 | J16: =T_Glob!P15 -> 230.1 | K16: =Budget!D15 -> 1300
B17: Entretien matériel de transport | D17: =SUM(T_Glob!D16:F16) -> 1434.31 | E17: 575 | F17: =D17+SUM(T_Glob!G16:I16) -> 2339.01 | G17: 1150 | H17: =F17+SUM(T_Glob!J16:L16) -> 2339.01 | I17: 1725 | J17: =T_Glob!P16 -> 2339.01 | K17: =Budget!D16 -> 2300
B18: Form. permanente-Ressourc. Spirituel | D18: =SUM(T_Glob!D17:F17) -> 63 | E18: 1250 | F18: =D18+SUM(T_Glob!G17:I17) -> 241 | G18: 2500 | H18: =F18+SUM(T_Glob!J17:L17) -> 241 | I18: 3750 | J18: =T_Glob!P17 -> 241 | K18: =Budget!D17 -> 5000
B19: Culture et loisirs | D19: =SUM(T_Glob!D18:F18) -> 61.3 | E19: 675 | F19: =D19+SUM(T_Glob!G18:I18) -> 81.7 | G19: 1350 | H19: =F19+SUM(T_Glob!J18:L18) -> 81.7 | I19: 2025 | J19: =T_Glob!P18 -> 81.7 | K19: =Budget!D18 -> 2700
B20: Prestations diverses | D20: =SUM(T_Glob!D19:F19) -> 28.3 | E20: 125 | F20: =D20+SUM(T_Glob!G19:I19) -> 41.8 | G20: 250 | H20: =F20+SUM(T_Glob!J19:L19) -> 41.8 | I20: 375 | J20: =T_Glob!P19 -> 41.8 | K20: =Budget!D19 -> 500
B21: Cotis. Pourb., Cadeaux, Frais culte | D21: =SUM(T_Glob!D20:F20) -> 1057.11 | E21: 300 | F21: =D21+SUM(T_Glob!G20:I20) -> 1140.71 | G21: 600 | H21: =F21+SUM(T_Glob!J20:L20) -> 1140.71 | I21: 900 | J21: =T_Glob!P20 -> 1140.71 | K21: =Budget!D20 -> 1200
B22: Déplacements | D22: =SUM(T_Glob!D21:F21) -> 367.27 | E22: 1250 | F22: =D22+SUM(T_Glob!G21:I21) -> 791.03 | G22: 2500 | H22: =F22+SUM(T_Glob!J21:L21) -> 791.03 | I22: 3750 | J22: =T_Glob!P21 -> 791.03 | K22: =Budget!D21 -> 5000
B23: Frais postaux & télécommunication | D23: =SUM(T_Glob!D22:F22) -> 1390.17 | E23: 1000 | F23: =D23+SUM(T_Glob!G22:I22) -> 1900.15 | G23: 2000 | H23: =F23+SUM(T_Glob!J22:L22) -> 1900.15 | I23: 3000 | J23: =T_Glob!P22 -> 1900.15 | K23: =Budget!D22 -> 4000
B24: Impôts & Taxes (Tv /Habitation / PV) | D24: =SUM(T_Glob!D23:F23) -> 176 | E24: 100 | F24: =D24+SUM(T_Glob!G23:I23) -> 176 | G24: 200 | H24: =F24+SUM(T_Glob!J23:L23) -> 176 | I24: 300 | J24: =T_Glob!P23 -> 176 | K24: =Budget!D23 -> 400
B25: Impôts Revenu Pers. Physiques | D25: =SUM(T_Glob!D24:F24) -> 577 | E25: 365 | F25: =D25+SUM(T_Glob!G24:I24) -> 577 | G25: 730 | H25: =F25+SUM(T_Glob!J24:L24) -> 577 | I25: 1095 | J25: =T_Glob!P24 -> 577 | K25: =Budget!D43 -> 1460
B26: Charges de personnel | D26: =SUM(T_Glob!D25:F25) -> 159.95 | E26: 0 | F26: =D26+SUM(T_Glob!G25:I25) -> 239.95 | G26: 0 | H26: =F26+SUM(T_Glob!J25:L25) -> 239.95 | I26: 0 | J26: =T_Glob!P25 -> 239.95 | K26: =Budget!D24 -> 0
B27: Cotisation Mutuelle | D27: =SUM(T_Glob!D26:F26) -> 0 | E27: 0 | F27: =D27+SUM(T_Glob!G26:I26) -> 0 | G27: 0 | H27: =F27+SUM(T_Glob!J26:L26) -> 0 | I27: 0 | J27: =T_Glob!P26 -> 0 | K27: =Budget!D25 -> 0
B28: Partage - Solidarité | D28: =SUM(T_Glob!D27:F27) -> 60 | E28: =K28/4 -> 0 | F28: =D28+SUM(T_Glob!G27:I27) -> 71 | G28: =K28/2 -> 0 | H28: =F28+SUM(T_Glob!J27:L27) -> 71 | I28: =K28*0.75 -> 0 | J28: =T_Glob!P27 -> 71 | K28: =Budget!D26 -> 0
B29: Versement au budget régional | D29: =SUM(T_Glob!D28:F28) -> 10000 | E29: 1750 | F29: =D29+SUM(T_Glob!G28:I28) -> 10000 | G29: 3500 | H29: =F29+SUM(T_Glob!J28:L28) -> 10000 | I29: 5250 | J29: =T_Glob!P28 -> 10000 | K29: =Budget!D50 -> 7000
B30: Total des dépenses | D30: =SUM(D7:D29) -> 41436.81 | E30: 35690 | F30: 59839.41 | G30: 71380 | H30: 59839.41 | I30: 107070 | J30: 59839.41 | K30: 142760
A31: RECETTES | B31: Salaires nets | D31: =SUM(T_Glob!D32:F32) -> 0 | E31: =K31/4 -> 0 | F31: =D31+SUM(T_Glob!G32:I32) -> 0 | G31: =K31/2 -> 0 | H31: =F31+SUM(T_Glob!J32:L32) -> 0 | I31: =K31*0.75 -> 0 | J31: =T_Glob!P32 -> 0 | K31: =Budget!D35 -> 0
B32: Indemnités | D32: =SUM(T_Glob!D33:F33) -> 0 | E32: 0 | F32: =D32+SUM(T_Glob!G33:I33) -> 0 | G32: =K32/2 -> 0 | H32: =F32+SUM(T_Glob!J33:L33) -> 0 | I32: 0 | J32: =T_Glob!P33 -> 0 | K32: =Budget!D36 -> 0
B33: Rentes CAVIMAC | D33: =SUM(T_Glob!D34:F34) -> 9991.48 | E33: 9837.5 | F33: =D33+SUM(T_Glob!G34:I34) -> 16049.58 | G33: 19675 | H33: =F33+SUM(T_Glob!J34:L34) -> 16049.58 | I33: 29512.5 | J33: =T_Glob!P34 -> 16049.58 | K33: =Budget!D37 -> 39350
B34: Rente CARSAT - MSA - CNAV | D34: =SUM(T_Glob!D35:F35) -> 12718.52 | E34: 12565 | F34: =D34+SUM(T_Glob!G35:I35) -> 20056.3 | G34: 25130 | H34: =F34+SUM(T_Glob!J35:L35) -> 20056.3 | I34: 37695 | J34: =T_Glob!P35 -> 20056.3 | K34: =Budget!D38 -> 50260
B35: Autres rentes | D35: =SUM(T_Glob!D36:F36) -> 11756.32 | E35: 11915 | F35: =D35+SUM(T_Glob!G36:I36) -> 18469.22 | G35: 23830 | H35: =F35+SUM(T_Glob!J36:L36) -> 18469.22 | I35: 35745 | J35: =T_Glob!P36 -> 18469.22 | K35: =Budget!D39 -> 47660
B36: Allocation logement | D36: =SUM(T_Glob!D37:F37) -> 0 | E36: 0 | F36: =D36+SUM(T_Glob!G37:I37) -> 0 | G36: 0 | H36: =F36+SUM(T_Glob!J37:L37) -> 0 | I36: 0 | J36: =T_Glob!P37 -> 0 | K36: =Budget!D40 -> 0
B37: A.P.L. | D37: =SUM(T_Glob!D38:F38) -> 0 | E37: 0 | F37: =D37+SUM(T_Glob!G38:I38) -> 0 | G37: 0 | H37: =F37+SUM(T_Glob!J38:L38) -> 0 | I37: 0 | J37: =T_Glob!P38 -> 0 | K37: =Budget!D41 -> 0
B38: Aide sociale | D38: =SUM(T_Glob!D39:F39) -> 0 | E38: =K38/4 -> 0 | F38: =D38+SUM(T_Glob!G39:I39) -> 0 | G38: =K38/2 -> 0 | H38: =F38+SUM(T_Glob!J39:L39) -> 0 | I38: =K38*0.75 -> 0 | J38: =T_Glob!P39 -> 0 | K38: =Budget!D42 -> 0
B39: Remboursements soins | D39: =SUM(T_Glob!D40:F40) -> 1591.29 | E39: 1500 | F39: =D39+SUM(T_Glob!G40:I40) -> 1861.72 | G39: 3000 | H39: =F39+SUM(T_Glob!J40:L40) -> 1861.72 | I39: 4500 | J39: =T_Glob!P40 -> 1861.72 | K39: =Budget!D29 -> 6000
B40: Recettes d'accueil | D40: =SUM(T_Glob!D41:F41) -> 883 | E40: 0 | F40: =D40+SUM(T_Glob!G41:I41) -> 1691 | G40: 0 | H40: =F40+SUM(T_Glob!J41:L41) -> 1691 | I40: 0 | J40: =T_Glob!P41 -> 1691 | K40: =Budget!D30 -> 0
B41: Dons reçus | D41: =SUM(T_Glob!D42:F42) -> 500 | E41: 0 | F41: =D41+SUM(T_Glob!G42:I42) -> 500 | G41: 0 | H41: =F41+SUM(T_Glob!I42:K42) -> 500 | I41: 0 | J41: =T_Glob!P42 -> 500 | K41: =Budget!D31 -> 0
B42: Subvention reçue du budget régional | D42: =SUM(T_Glob!D43:F43) -> 0 | E42: 0 | F42: =D42+SUM(T_Glob!G43:I43) -> 0 | G42: =K42/2 -> 0 | H42: =F42+SUM(T_Glob!J43:L43) -> 0 | I42: =H42 -> 0 | J42: =T_Glob!P43 -> 0 | K42: =Budget!D52 -> 0
B43: Total des recettes | D43: =SUM(D31:D42) -> 37440.61 | E43: 35817.5 | F43: 58627.82 | G43: 71635 | H43: 58627.82 | I43: 107452.5 | J43: 58627.82 | K43: 143270
A45: Transferts entre Fraternité et Soeurs
B46: Versement à la Fraternité | D46: =SUM(T_Glob!D52:F52) -> 34650 | E46: --- | F46: =D46+SUM(T_Glob!G52:I52) -> 50250 | G46: --- | H46: =F46+SUM(T_Glob!J52:L52) -> 50250 | I46: --- | J46: =SUM(T_Glob!P52) -> 50250 | K46: ---
B47: Reçus des Sœurs | D47: =SUM(T_Glob!D53:F53) -> 34650 | E47: --- | F47: =D47+SUM(T_Glob!G53:I53) -> 48450 | G47: --- | H47: =F47+SUM(T_Glob!J53:L53) -> 48450 | I47: --- | J47: =SUM(T_Glob!P53) -> 48450 | K47: ---
B48: Donné aux Soeurs depuis caisse ou banque | D48: =SUM(T_Glob!D55:F55) -> 920 | E48: --- | F48: =D48+SUM(T_Glob!G55:I55) -> 1410 | G48: --- | H48: =F48+SUM(T_Glob!J55:L55) -> 1410 | I48: --- | J48: =SUM(T_Glob!P55) -> 1410 | K48: ---
B49: Reçu de Fraternité (caisse & banque) | D49: =SUM(T_Glob!D54:F54) -> 890 | E49: --- | F49: =D49+SUM(T_Glob!G54:I54) -> 1410 | G49: --- | H49: =F49+SUM(T_Glob!J54:L54) -> 1410 | I49: --- | J49: =SUM(T_Glob!P54) -> 1410 | K49: ---
B50: Retrait compte. courant (Srs +Com) | D50: =SUM(T_Glob!D56:F56) -> 1100 | E50: --- | F50: =D50+SUM(T_Glob!G56:I56) -> 1800 | G50: --- | H50: =F50+SUM(T_Glob!J56:L56) -> 1800 | I50: --- | J50: =SUM(T_Glob!P56) -> 1800 | K50: ---
B51: Mis en caisse depuis cpte courant (Srs+Frat) | D51: =SUM(T_Glob!D57:F57) -> 1100 | E51: --- | F51: =D51+SUM(T_Glob!G57:I57) -> 1800 | G51: --- | H51: =F51+SUM(T_Glob!J57:L57) -> 1800 | I51: --- | J51: =SUM(T_Glob!P57) -> 1800 | K51: ---

Sheet TabCroisésArrivDepart
A1: Cette feuille ne sera pas visible dans la version diffusée. Ne pas protéger cette feuille Elle permet la mise à jour automatique des zones correspondantes du compte de résultat
A2: ="Soldes des Sœurs arrivée en "& Deb_fin_exercice!H1 -> Soldes des Sœurs arrivée en 2015 | M2: ="Soldes des Sœurs parties en " & Deb_fin_exercice!H1 -> Soldes des Sœurs parties en 2015 | X2: ="Soldes des Sœurs présentes au 1er janvier " & Deb_fin_exercice!H1+1 -> Soldes des Sœurs présentes au 1er janvier 2016
A3: Srs_arrivées | B3: oui | M3: Srs_parties | N3: oui | X3: Srs_parties | Y3: (vide)
A6: Nom_Sœurs | B6: Especes | C6: Banque | D6: Total | M6: Nom_Sœurs | N6: Esp1 | O6: Bq1 | P6: Total1 | X6: Nom_Sœurs | Y6: Esp1 | Z6: Bq1 | AA6: Total1
A7: Sœur numero 2 | B7: 5.7 | C7: 767.74 | D7: 773.44 | M7: Sœur numero 4 | N7: 0 | O7: 866.24 | P7: 866.24 | X7: Sœur numero 1 | Y7: 39.2 | Z7: 1428.13 | AA7: 1467.33
M8: Sœur numero 5 | N8: 33.09 | O8: 361.01 | P8: 394.1 | X8: Sœur numero 2 | Y8: 18.2 | Z8: 625.32 | AA8: 643.52
M9: Sœur numero 8 | N9: 13.4 | O9: 2214.35 | P9: 2227.75 | X9: Sœur numero 3 | Y9: 21.16 | Z9: 1134.53 | AA9: 1155.69
M10: Sœur numero 9 | N10: 24.95 | O10: 1881.82 | P10: 1906.77 | X10: Sœur numero 6 | Y10: 12.49 | Z10: 348.55 | AA10: 361.04
X11: Sœur numero 7 | Y11: 19.3 | Z11: 580.17 | AA11: 599.47
X12: Sœur numero 10 | Y12: 3.3 | Z12: 863.27 | AA12: 866.57
X13: Sœur numero 11 | Y13: 3.95 | Z13: 3235.86 | AA13: 3239.81
